Workbook

Sheet Interface layout (no formulas) (hidden)
I1: [Donors] Carbon Trust
A2: 🔽 | B2: STEP 1: GENERAL INFORMATION | H2: Reset Button will delete all user input in this worksheet.
B4: Region* | C4: Africa 🔽
B5: Country* | C5: Angola 🔽
B6: Commodity* | C6: Meat (pig)
B7: Commodity group 🔒 | C7: =INDEX(IFC_Commodity_CommodityGroup[IFC Commodity group],MATCH(commodity,IFC_Commodity_CommodityGroup[IFC Commodity],0)) -> 
B8: Production Type (meat-only)*
B9: Commodity Price (optional) | C9: 25 | D9: =IF(commodity="Milk (cattle)", "USD/litre", "USD/t") -> USD/t
B10: Nitrogen Applied to Synthetic Fertilizer* | C10: 100 | D10: kg per year
B11: Unit of Measurement for Nitrogen* | C11: kg of Nitrogen per tonne of production (kg N/tonne) | D11: tonnes/hectare
B12: Yield per Year* | C12: 100000 | D12: tonnes/hectare
B13: Commodity Emission Factor (optional) | D13: tCO2e/tonne
A15: 🔽 | B15: STEP 2: SUPPLY CHAIN IMPROVEMENTS Select the stages of supply chain where improvements have been implemented.
C17: Production | D17: Transport Stage 1 | E17: Storage Location 1 | F17: Processing | G17: Transport Stage 2 | H17: Storage Location 2 | I17: Retail
B18: Description Needed | C18: Harvest and post-harvest losses (e.g. food preparation peeling, cutting, washing), plastic crates instead of bags for crops, temporary on-farm storage | D18: Losses during transport from farm to storage or sale | E18: Losses occuring in a dedicated storage facility (e.g. silos, warehouses, cooling facilities, etc.). May be on farm or off-site. | F18: Description Needed | G18: Description Needed | H18: Description Needed | I18: Description Needed
A20: 🔽 | B20: STEP 3: IMPROVEMENT DETAILS Describe the projects implemented at each of the revelant stages of the value chain.
B22: Supply Chain Stages | C22: Production | D22: Transport Stage 1 | E22: Storage Location 1 | F22: Processing | G22: Transport Stage 2 | H22: Storage Location 2 | I22: Retail
B23: Select main improvement (crops-only) | C23: 🔽 | D23: 🔽 | E23: 🔽 | F23: 🔽 | G23: 🔽 | H23: 🔽 | I23: 🔽
B24: Select main improvement (meat-only)
B25: Other improvements (optional) | C25: 🔽 | D25: 🔽 | E25: 🔽 | F25: 🔽 | G25: 🔽 | H25: 🔽 | I25: 🔽
A27: 🔽 | B27: STEP 4: POST IMPROVEMENT DETAILS Enter the amounts and loss rates associated with post improvement activities.
B29: Supply Chain Stages | C29: Production | D29: Transport Stage 1 | E29: Storage Location 1 | F29: Processing | G29: Transport Stage 2 | H29: Storage Location 2 | I29: Retail
B30: Commodity total after the improvements* | C30: 100 | D30: 100 | E30: 100
B31: =CONCATENATE("Unit of measurement (kg, tonnes)", IF(commodity="Milk (cattle)",". 1 milk litre = 1 kg.", ""), IF(OR(commodity="Meat (cattle)", commodity="Meat (chicken)", commodity="Meat (pig)"), " (carcass weight)*", "")) -> Unit of measurement (kg, tonnes) | C31: Tonnes | D31: Tonnes | E31: Tonnes
B32: Is amount reported net of food loss?* | C32: Yes | D32: Yes | E32: Yes
B33: Site/phase food loss rate after the project (%)* | C33: 0.05 | D33: 0.05 | E33: 0.05
B34: Site/phase food loss rate before the project (default 10%)* | C34: 0.1 | D34: 0.1 | E34: 0.1 | F34: 0.1 | G34: 0.1 | H34: 0.1 | I34: 0.1
A36: 🔽 | B36: Advance Inputs (Optional)
A37: 🔽 | B37: Advanced Production Details (Optional)
B39: Commodity Price (optional) | C39: 3 | D39: =IF(commodity="Milk (cattle)", "USD/litre", "USD/t") -> USD/t
B40: Nitrogen Applied to Synthetic Fertilizer* | D40: kg per year
B41: Unit of Measurement for Nitrogen* | C41: kg of Nitrogen per tonne of production (kg N/tonne)
B42: Yield per Year* | D42: tonnes/hectare
B43: Commodity Emission Factor (optional) | D43: tCO2e/tonne
A45: 🔽 | B45: Advanced Transportation Details (Optional)
B47: Distance travelled by the merchandise in the selected country. (If the dedicated storage site is the same as production put 0. Leave blank to apply the national average.) | C47: 50 | D47: km
B49: Transport Stage 1
B50: Emissions factor type
B51: Emissions factor value
B52: Distance | D52: km
B53: Transport mode
B54: Fuel type
B55: Category
B56: Temperature control
B57: Fleet age | D57: years
B58: Road conditions
B59: Total Emissions 🔒 | D59: tCO₂e
B60: Carbon Dioxide (CO2) Emissions 🔒 | D60: tCO₂e
B61: Methane (CH4) Emissions 🔒 | D61: tCO₂e
B62: Nitrous Oxide (N2O) Emissions 🔒 | D62: tCO₂e
B64: Transport Stage 2
B65: Emissions factor type
B66: Emissions factor value
B67: Distance | D67: km
B68: Transport mode
B69: Fuel type
B70: Category
B71: Temperature control
B72: Fleet age | D72: years
B73: Road conditions
B74: Total Emissions 🔒 | D74: tCO₂e
B75: Carbon Dioxide (CO2) Emissions 🔒 | D75: tCO₂e
B76: Methane (CH4) Emissions 🔒
B77: Nitrous Oxide (N2O) Emissions 🔒
A79: 🔽 | B79: Advanced Storage Details (Optional)
B81: Is any dedicated storage ambient or temperature controlled, heated and/or chilled | C81: 🔽
B83: Storage Location 1
B84: Time in Storage | D84: days
B85: Temperature control | C85: 🔽
B86: Electricity consumption | D86: kWh/day/tonne
B87: Natural gas consumption | D87: kWh/day/tonne
B88: Emissions per tonne | D88: tCO2e/tonne crop
B90: Storage Location 2
B91: Time in Storage | D91: days
B92: Temperature control | C92: 🔽
B93: Electricity consumption | D93: kWh/day/tonne
B94: Natural gas consumption | D94: kWh/day/tonne
B95: Emissions per tonne | D95: tCO2e/tonne crop
A97: 🔽 | B97: Advanced Processing Details (Optional)
B99: Electricity consumption | D99: kWh/tonne
B100: Natural gas consumption | D100: kWh/tonne
B101: Amount of processed food re-used (not eaten) | D101: tonne
B102: Emissions per tonne | D102: tCO2e/tonne crop
A104: 🔽 | B104: Advanced Retail Details (Optional)
B106: Store type | C106: 🔽
B107: Temperature control | C107: 🔽
B108: Electricity consumption | D108: kWh/tonne
B109: Gas consumption | D109: kWh/tonne
B110: Electricity consumption | D110: kWh/m2
B111: Gas consumption | D111: kWh/m2
B112: Emissions per tonne | D112: tCO2e/tonne crop
A114: 🔽 | B114: Advanced Landfill Details (Optional)
B116: Commodity losses going to landfill or thrown away | C116: 0.57
B117: Landfill Type | C117: 🔽
B118: Climate Zone | C118: 🔽
B119: Emissions per tonne | D119: tCO2e/tonne crop
A121: 🔽 | B121: STEP 5: Results
A122: 🔽 | B122: A. Summary 🔒
C123: Production | D123: Transport | E123: Storage
B124: Avoided losses per year | C124: ='GHG Results'!D10 -> 0 | D124: ='GHG Results'!E10 -> 0 | E124: ='GHG Results'!F10 -> 0 | F124: tonnes
B125: Total GhG emissions saved per phase per year | C125: =SUM('GHG Results'!D28:D30) -> 0 | D125: =SUM('GHG Results'!E28:E30) -> 0 | E125: =SUM('GHG Results'!F28:F30) -> 0 | F125: tonnes CO2e
B126: Improvement | C126: =IFERROR(('FL-output'!F26-'FL-output'!#REF!)/'FL-output'!F26,"") ->  | D126: =IFERROR(('FL-output'!#REF!-'FL-output'!#REF!)/'FL-output'!#REF!,"") ->  | E126: =IFERROR(('FL-output'!F27-'FL-output'!#REF!)/'FL-output'!F27,"") -> 
B127: Total financial savings (USD) | C127: =C124*$C$9 -> 0 | D127: =D124*$C$9 -> 0 | E127: =E124*$C$9 -> 0
B128: Additional comments | C128: The results above are calculated using food loss rates reported by the user. | D128: The results above are calculated using food loss rates reported by the user. | E128: The results above are calculated using food loss rates reported by the user.
B130: Cumulative total | C130: =SUM(C124:E124) -> 0 | D130: tonnes
C131: ='GHG Results'!F40 -> 0 | D131: tonnes CO2e
C132: =IFERROR(C131/C130,"") -> 
B133: Methane | D133: tonnes CO2e/tonne
B134: Co2 | D134: tonnes CO2e/tonne
B135: GHG savings | D135: tonnes CO2e/tonne
A137: 🔽 | B137: B. Charts 🔒
B155: *Required

Sheet Additional Inputs (hidden)
B2: include summary of instructions
B4: I. Production
C6: Default values | D6: User input
B7: Commodity price (USD/tonne) | D7: 3
E8: Section not applicable for animal proteins
B9: Synthetic nitrogen fertiliser applied per year (kg)
B10: Unit of measurement for nitrogen (per hectare, per tonne) | D10: kg of Nitrogen per tonne of production (kg N/tonne)
B11: Yield per year (tonnes/ha)
G12: Final value
B13: Commodity Emission Factor (tCO2e/tonne crop)
B19: II. Transport
B22: a) If available, provide an appropriate emission factor, otherwise leave this section blank and fill in section b) | C22: Default values | D22: User input (1st phase) | E22: User input (2nd phase)
B23: Emissions factor type | D23: Fuel efficiency (km/litre)
B24: Emissions factor value | G24: << split CO2e factor by GHG based on BEIS data
D25: change to liters per 100km, move fuel efficiency to section b) flag it as nice to have
B26: b) If emissions factors are not available, fill in one or more information below to use a standardised emission factor
G27: << split default value between the two phases
G28: << clear inputs when transport mode changes
A48: <<
A53: <<
B55: III. Storage
C57: Default values | D57: User input (1st phase) | E57: User input (2nd phase)
B58: Length of time (days) | C58: 1 | D58: 10 | E58: 10
B59: Temperature control | C59: Ambient | D59: Ambient | E59: Chilled
B61: Electricity consumption (kWh/day/tonne) | D61: 5 | E61: 10
B62: Natural gas consumption (kWh/day/tonne) | D62: 2 | E62: 3
G63: Final value
B64: Emissions per tonne (tCO2e/tonne crop) | G64: =IF(AND(D64="",E64=""),C64,SUM(D64:E64)) -> 0
B67: III. Processing
C69: Default values | D69: User input
B70: Electricity consumption (kWh/tonne) | C70: 1 | D70: 10
B71: Natural gas consumption (kWh/tonne) | C71: 1 | D71: 10
B72: Amount of processed food not eaten but re-used (tonne) | C72: 0 | H72: Amount sent to AD/energy generation, compost/mulch, animal feed or bio-materials
B73: Include re-use for user input against transport and storage too? | G73: Final value
B74: Emissions per tonne (tCO2e/tonne crop) | G74: =IF(AND(D74="",E74=""),C74,SUM(D74:E74)) -> 0
B76: IV. Retail
C78: Default values | D78: User input
B79: Store type | C79: Supermarket (280 to 1400 m2) | D79: Convenience store (<280 m2)
B80: Temperature control | C80: Chilled | D80: Chilled
B82: Electricity consumption (kWh/tonne) | C82: =IF(C80="Ambient",INDEX(RetailDefaultData[Electricity consumption - Ambient (kWh/m2)2],MATCH(C79,RetailDefaultData[Store Type],0)),INDEX(RetailDefaultData[Electricity consumption - Chilled (kWh/m2)22],MATCH(C79,RetailDefaultData[Store Type],0))) -> 650
B83: Gas consumption (kWh/tonne) | C83: 0
B85: Electricity consumption (kWh/m2) | C85: =C82 -> 650 | I85: =AVERAGE(RetailDefaultData[Electricity consumption (kWh/m2)]) -> 1125 | J85: =Retail!C32/$I$85 -> 1.315555556 | K85: =Retail!D32/$I$86 -> 1.655172414
B86: Gas consumption (kWh/m2) | C86: 0 | I86: =AVERAGE(RetailDefaultData[Refrigeration (kWh/m2)]) -> 536.5 | J86: =Retail!C33/$I$85 -> 1.155555556 | K86: =Retail!D33/$I$86 -> 1.211556384
G87: Final value | J87: =Retail!C34/$I$85 -> 0.8177777778 | K87: =Retail!D34/$I$86 -> 0.6859273066
B88: Emissions per tonne (tCO2e/tonne crop) | G88: =IF(AND(D88="",E88=""),C88,SUM(D88:E88)) -> 0 | J88: =Retail!C35/$I$85 -> 0.7111111111 | K88: =Retail!D35/$I$86 -> 0.4473438956
B92: IV. Landfill
C94: Default values | D94: User input
B95: Commodity losses going to landfill or thrown away (%) | C95: 0.57 | I95: Climate Zones | J95: Landfill type
B96: Landfill type | C96: 1 | I96: Temperate, dry
B97: Climate Zone | I97: Temperate, wet | J97: Managed
G98: Final value | I98: Tropical, dry | J98: Unmanaged deep (> 5m)
B99: Emissions per tonne (tCO2e/tonne crop) | C99: =INDEX(LandfillMethaneCorrectionFactors[Landfill CH4 Correction Factor],MATCH(country,LandfillMethaneCorrectionFactors[Country],0)) ->  | G99: =IF(AND(D99="",E99=""),C99,SUM(D99:E99)) ->  | I99: Tropical, wet | J99: Unmanaged shallow (< 5m)
J100: Uncategorised
J101: Other productive use (compost, gas collection system, etc.)

Sheet Cover page
B4: FOOD LOSS AND WASTE IMPACT TOOL
B5: v3.0
B8: Disclaimer
B9: The purpose of this Toolkit is to provide information about and a method to estimate the Green House Gas (GHG) emissions associated with food loss for certain crops and countries. It also provides impact results on food security indicators based on the avoided food losses, as well as avoided resource use quantities. The GHG estimates provided by the tool are indicative and based on simplified assumptions and calculations and should not be considered as an alternative to accurate GHG accounting or life cycle assessments. While IFC believes that the information set forth in the Toolkit is accurate, it is provided on a strictly “as-is” basis, without assurance or representation of any kind. IFC does not guarantee the accuracy, reliability or completeness of the content included in the Proposal, or for any conclusions or judgments described herein or that may be obtained from use of the Toolkit, and accepts no responsibility or liability for any omissions or errors (including, without limitation, typographical errors and technical errors) in the content whatsoever. Nor shall IFC have any liability, express or implied, for any asserted reliance by any individual or entity on the content of the Toolkit in making any decisions with respect to its internal mechanisms, strategies or investment decisions. No person may rely on the content of the Toolkit as advice on compliance with any obligations that it may have under contract or otherwise, including with IFC. The contents of the Toolkit and its use are intended solely for general informational purposes and are not intended to constitute legal, securities, or investment advice, an opinion regarding the appropriateness of any investment, or a solicitation of any type. You should rely on your own legal, accounting and investment advisors for such advice and any investment made shall be regarded as on your own accord. References to IFC used in this disclaimer shall include IFC’s contractors, consultants and subcontractors who have been involved with the creation and publication of the Toolkit.
B10: © International Finance Corporation 2025. All rights reserved.

Sheet Interface
B3: Color key | C3: Cell Type | D3: Description/Action
B4: Mandatory information | C4: Input cell | D4: Manual entry required
B5: Optional information | C5: Input cell | D5: Manual entry optional
B6: Non-editable Cell | C6: Non-editable cell | D6: Non-editable cell
B8: The interface includes 2 sections: - Section 1 on general information (mandatory to fill in where relevant) - Section 2 with the advanced inputs (optional) The results from the intervention projects and related indicators are shown in the tab Impact Results. When more than one intervention project is indicated below, the tool calculates the impact results of each project separately in terms of avoided food loss quantities and corresponding avoided emissions. Please note that Macros and ActiveX need to be enabled for the tool to work.
B10: Section 1 - General information | E10: << Reset Data button will delete all user inputs in this worksheet
B12: Do the supply chain stages happen in more than one country?* | C12: Yes
B13: Country of improvement intervention(s)*
B15: Commodity*
B16: Production Type (animal protein only)*
D18: For intervention project results to show, both the amount and food loss rate after the project need to be filled in for each of the relevant intervention stage(s). Amounts and food loss rates for stage(s) where there are no intervention can be left blank.
D19: Do not drag the cells below, please fill them in individually.
B20: Supply Chain Stages | C20: Country* (please indicate the country when known for each stage below) | D20: Commodity amount after the improvement project (tonnes)* | E20: Food loss rate before the project (%) | F20: Food loss rate after the project (%)* | G20: Select main improvement (crops-only) - Optional | H20: Select main improvement (animal protein-only) - Optional | I20: Other improvements - Optional | J20: Is there an intervention at this stage? | K20: Is this the last intervention stage?
B21: Production (post-harvest) | G21: drop-down | H21: drop-down | J21: =IF(OR(COUNTBLANK(farmAmountAfter)=1,OR(COUNTBLANK(farmLossAfter)=1)), FALSE,TRUE) -> FALSE | K21: =B21=LOOKUP(2,1/($J$21:$J$29=TRUE),$B$21:$B$29) ->  | L21: =firstCountry -> 
B22: Transport 1 | C22: =IF(multipleCountrySelector="Yes",_xlfn.IFNA('Country-selector'!D22,""),"") ->  | G22: drop-down | H22: drop-down | J22: =IF(OR(COUNTBLANK(transportAmountAfter)=1,OR(COUNTBLANK(transportLossAfter)=1)), FALSE,TRUE) -> FALSE | K22: =B22=LOOKUP(2,1/($J$21:$J$29=TRUE),$B$21:$B$29) ->  | L22: =commodityGroup -> 
B23: Storage 1 (pre-processing) | G23: drop-down | H23: drop-down | J23: =IF(OR(COUNTBLANK(storage1AmountAfter)=1,OR(COUNTBLANK(storage1LossAfter)=1)), FALSE,TRUE) -> FALSE | K23: =B23=LOOKUP(2,1/($J$21:$J$29=TRUE),$B$21:$B$29) -> 
B24: Transport 2 | C24: =IF(multipleCountrySelector="Yes",_xlfn.IFNA('Country-selector'!D24,""),"") ->  | G24: drop-down | H24: drop-down | J24: =IF(OR(COUNTBLANK(transport2AmountAfter)=1,OR(COUNTBLANK(transport2LossAfter)=1)), FALSE,TRUE) -> FALSE | K24: =B24=LOOKUP(2,1/($J$21:$J$29=TRUE),$B$21:$B$29) -> 
B25: Processing | G25: drop-down | H25: drop-down | J25: =IF(OR(COUNTBLANK(processingAmountAfter)=1,OR(COUNTBLANK(processingLossAfter)=1)), FALSE,TRUE) -> FALSE | K25: =B25=LOOKUP(2,1/($J$21:$J$29=TRUE),$B$21:$B$29) -> 
B26: Transport 3 | C26: =IF(multipleCountrySelector="Yes",_xlfn.IFNA('Country-selector'!D26,""),"") ->  | G26: drop-down | H26: drop-down | J26: =IF(OR(COUNTBLANK(transport3AmountAfter)=1,OR(COUNTBLANK(transport3LossAfter)=1)), FALSE,TRUE) -> FALSE | K26: =B26=LOOKUP(2,1/($J$21:$J$29=TRUE),$B$21:$B$29) -> 
B27: Storage 2 (pre-retail) | G27: drop-down | H27: drop-down | J27: =IF(OR(COUNTBLANK(storage2AmountAfter)=1,OR(COUNTBLANK(storage2LossAfter)=1)), FALSE,TRUE) -> FALSE | K27: =B27=LOOKUP(2,1/($J$21:$J$29=TRUE),$B$21:$B$29) -> 
B28: Transport 4 | C28: =IF(multipleCountrySelector="Yes",_xlfn.IFNA('Country-selector'!D28,""),"") ->  | G28: drop-down | H28: drop-down | J28: =IF(OR(COUNTBLANK(transport4AmountAfter)=1,OR(COUNTBLANK(transport4LossAfter)=1)), FALSE,TRUE) -> FALSE | K28: =B28=LOOKUP(2,1/($J$21:$J$29=TRUE),$B$21:$B$29) -> 
B29: Retail | G29: drop-down | H29: drop-down | J29: =IF(OR(COUNTBLANK(retailAmountAfter)=1,OR(COUNTBLANK(retailLossAfter)=1)), FALSE,TRUE) -> FALSE | K29: =B29=LOOKUP(2,1/($J$21:$J$29=TRUE),$B$21:$B$29) -> 
E30: =IF(ISNUMBER(MATCH(commodity,NoLR[Food Loss Rate not available],0)),"^ Mandatory input (default food loss data not available for this commodity).","^ Recommended input. If data is not available, leave blank.") -> ^ Recommended input. If data is not available, leave blank.
B32: In cell range D21-D29, have the food loss quantities been subtracted from the reported commodity amount?* | C32: Yes
B34: Commodity Price - optional | D34: USD/t
B36: Advanced Inputs (Optional)
B37: Advanced Production (post-harvest) Enter inputs for A or B below, do not fill in both.
B39: A) Emission factor
B40: Emissions per tonne | D40: tCO2e/tonne
B41: % of CO2e coming from CH4
B42: % of CO2e coming from N2O
B44: B) Synthetic Fertilizer
B45: Nitrogen applied as synthetic fertilizer | D45: kg
B46: Unit of measurement for nitrogen
B47: Yield per hectare | D47: tonnes/hectare
B50: Advanced Storage 1 (pre-processing) - Enter inputs for A, B, or C below, do not fill in all.
B52: A) Emission factor
B53: Emissions per tonne | D53: tCO2e/tonne commodity
B55: B) Temperature control
B56: Is any dedicated storage temperature controlled (chilled)?
B58: C) Storage time and energy consumption
B59: Time in Storage | D59: days
B60: Electricity consumption | D60: kWh/day/tonne
B61: Natural gas consumption | D61: kWh/day/tonne
B63: Advanced Processing - Enter inputs for A or B below, do not fill in both.
B65: A) Emission factor
B66: Emissions per tonne | D66: tCO2e/tonne commodity
B68: B) Energy consumption
B69: Electricity consumption | D69: kWh/tonne
B70: Natural gas consumption | D70: kWh/tonne
B72: Advanced Storage 2 (post-processing) - Enter inputs for A, B, or C below, do not fill in all.
B74: A) Emission factor
B75: Emissions per tonne | D75: tCO2e/tonne commodity
B77: B) Temperature control
B78: Is any dedicated storage temperature controlled (chilled)?
B80: C) Storage time and energy consumption
B81: Time in Storage | D81: days
B82: Electricity consumption | D82: kWh/day/tonne
B83: Natural gas consumption | D83: kWh/day/tonne
B85: Advanced Retail - Enter inputs for A or B below, do not fill in both.
B87: A) Emission factor
B88: Emissions per tonne | D88: tCO2e/tonne commodity
B90: B) Store type
B91: Store type
B93: Advanced Food loss destination - Enter inputs for A or B below, do not fill in both.
E95: A) Emission factor | G95: B) Food loss destination and climate
C96: Food losses going to landfill or thrown away along the supply chain (%) | E96: Emissions per tonne of commodity going to landfill (tCO2e/tonne commodity) | G96: Food Loss destination type | H96: Climate Zone
B97: Production (post-harvest)
B98: Transport 1
B99: Storage 1 (pre-processing)
B100: Transport 2
B101: Processing
B102: Transport 3
B103: Storage 2 (pre-retail)
B104: Transport 4 | H104: Temperate, dry
B105: Retail
B108: Advanced Transport - For each stage, enter the distance and enter inputs for either A (emission factor) or B (transportation mode) - do not fill in both options.
B110: =IF('Country-selector'!C32="","",_xlfn.CONCAT("Transport 1: Production to ",D114)) -> Transport 1: Production to
C112: Country | D112: Supply Chain Stages
B113: Origin 🔒 | C113: =_xlfn.IFNA(IF('Country-selector'!C32="","",INDEX('Country-selector'!$F$22:$F$28,MATCH("Transport 1",'Country-selector'!$E$22:$E$28,0))),"") ->  | D113: =IF('Country-selector'!C32="","",INDEX('Country-selector'!$G$22:$G$28,MATCH("Transport 1",'Country-selector'!$E$22:$E$28,0))) -> Production (post-harvest)
B114: Destination 🔒 | C114: =_xlfn.IFNA(IF('Country-selector'!C32="","",INDEX('Country-selector'!$H$22:$H$28,MATCH("Transport 1",'Country-selector'!$E$22:$E$28,0))),"") ->  | D114: =_xlfn.IFNA(IF('Country-selector'!C32="","",INDEX('Country-selector'!$I$22:$I$28,MATCH("Transport 1",'Country-selector'!$E$22:$E$28,0))),"") -> 
C116: =IF(C113=C114,"Within country","Within origin country") -> Within country | D116: Between countries | E116: Within destination country
B117: Distance (km)
B119: A) Emission factor
B120: Emissions factor type
B121: Emissions factor value
B123: B) Transportation mode
B124: Transport mode
B125: Fuel type
B126: Category
B127: Temperature control
B128: Road conditions
B130: =IF('Country-selector'!C32="","", IF('Country-selector'!C32>1,_xlfn.CONCAT("Transport 2: ",D133," to ",D134,),"")) -> 
C132: Country | D132: Supply Chain Stages
B133: Origin 🔒 | C133: =_xlfn.IFNA(INDEX('Country-selector'!$F$22:$F$28,MATCH("Transport 2",'Country-selector'!$E$22:$E$28,0)),"") ->  | D133: =_xlfn.IFNA(INDEX('Country-selector'!$G$22:$G$28,MATCH("Transport 2",'Country-selector'!$E$22:$E$28,0)),"") -> 
B134: Destination 🔒 | C134: =_xlfn.IFNA(INDEX('Country-selector'!$H$22:$H$28,MATCH("Transport 2",'Country-selector'!$E$22:$E$28,0)),"") ->  | D134: =_xlfn.IFNA(INDEX('Country-selector'!$I$22:$I$28,MATCH("Transport 2",'Country-selector'!$E$22:$E$28,0)),"") -> 
C136: =IF(C133=C134,"Within country","Within origin country") -> Within country | D136: Between countries | E136: Within destination country
B137: Distance (km)
B139: A) Emission factor
B140: Emissions factor type
B141: Emissions factor value
B143: B) Transportation mode
B144: Transport mode
B145: Fuel type
B146: Category
B147: Temperature control
B148: Road conditions
B150: =IF('Country-selector'!C32="","", IF('Country-selector'!C32>2,_xlfn.CONCAT("Transport 3: ",D153," to ",D154),"")) -> 
C152: Country | D152: Supply Chain Stages
B153: Origin 🔒 | C153: =_xlfn.IFNA(INDEX('Country-selector'!$F$22:$F$28,MATCH("Transport 3",'Country-selector'!$E$22:$E$28,0)),"") ->  | D153: =_xlfn.IFNA(INDEX('Country-selector'!$G$22:$G$28,MATCH("Transport 3",'Country-selector'!$E$22:$E$28,0)),"") -> 
B154: Destination 🔒 | C154: =_xlfn.IFNA(INDEX('Country-selector'!$H$22:$H$28,MATCH("Transport 3",'Country-selector'!$E$22:$E$28,0)),"") ->  | D154: =_xlfn.IFNA(INDEX('Country-selector'!$I$22:$I$28,MATCH("Transport 3",'Country-selector'!$E$22:$E$28,0)),"") -> 
C156: =IF(C153=C154,"Within country","Within origin country") -> Within country | D156: Between countries | E156: Within destination country
B157: Distance (km)
B159: A) Emission factor
B160: Emissions factor type
B161: Emissions factor value
B163: B) Transportation mode
B164: Transport mode
B165: Fuel type
B166: Category
B167: Temperature control
B168: Road conditions
B170: =IF('Country-selector'!C32="","", IF('Country-selector'!C32>3,_xlfn.CONCAT("Transport 4: ",D173," to ",D174),"")) -> 
C172: Country | D172: Supply Chain Stages
B173: Origin 🔒 | C173: =_xlfn.IFNA(INDEX('Country-selector'!$F$22:$F$28,MATCH("Transport 4",'Country-selector'!$E$22:$E$28,0)),"") ->  | D173: =_xlfn.IFNA(INDEX('Country-selector'!$G$22:$G$28,MATCH("Transport 4",'Country-selector'!$E$22:$E$28,0)),"") -> 
B174: Destination 🔒 | C174: =_xlfn.IFNA(INDEX('Country-selector'!$H$22:$H$28,MATCH("Transport 4",'Country-selector'!$E$22:$E$28,0)),"") ->  | D174: =_xlfn.IFNA(INDEX('Country-selector'!$I$22:$I$28,MATCH("Transport 4",'Country-selector'!$E$22:$E$28,0)),"") -> 
C176: =IF(C173=C174,"Within country","Within origin country") -> Within country | D176: Between countries | E176: Within destination country
B177: Distance (km)
B179: A) Emission factor
B180: Emissions factor type
B181: Emissions factor value
B183: B) Transportation mode
B184: Transport mode
B185: Fuel type
B186: Category
B187: Temperature control
B188: Road conditions

Sheet Impact Results
B3: Impact Results
B4: A. Summary
C6: Country | D6: Avoided food losses at each intervention stage (tonnes) | E6: Food loss rate reduction (%) | F6: Total GhG emissions saved (tCO2e) | G6: Total emissions disaggregated by GHG (tCO2e)
G7: Carbon Dioxide (CO2) Emissions saved | H7: Methane (CH4) Emissions saved | I7: Nitrous Oxide (N2O) emissions saved | K7: Additional comments:
B8: Production (post-harvest) | C8: =INDEX('Country-selector'!$C$21:$C$29,MATCH(B8,'Country-selector'!$B$21:$B$29,0)) ->  | D8: =IF('GHG Results'!D10=0,"",IFERROR('GHG Results'!D10,"")) ->  | E8: =IF(Interface!J21=FALSE,"",IFERROR('GHG Results'!D25,0)) ->  | F8: =IF(D8="","", IF(Interface!J21=FALSE,"",IFERROR('GHG Results'!D39,""))) ->  | G8: =IFERROR(F8-SUM('GHG Results'!D42:D43),"") ->  | H8: =IF(D8="","",IF(Interface!J21=FALSE,"",IFERROR('GHG Results'!D42,""))) ->  | I8: =IF(D8="","",IF(Interface!J21=FALSE,"",IFERROR('GHG Results'!D43,""))) ->  | K8: =IF(productionSelector=FALSE,"", IFERROR(IF(AND(requireBeforeLossData=TRUE,farmLossBefore=""),"Loss rate baseline for "&commodity&" not available. Please provide the food loss rate before the project.", IF('GHG Results'!D23<'GHG Results'!D14, IF(farmLossBefore="","The results above are calculated using "&'GHG Results'!D$15&" as a baseline rate for food loss before the project, and might not be reflective of site-specific conditions. Please provide the actual food loss rate prior to implementing the project to improve the accuracy of this result.","The results above are calculated using food loss rates reported by the user."), IF('GHG Results'!D23='GHG Results'!D14,"Food loss rates before and after the project are the same, hence there is no avoided food losses quantities and emissions.", "The loss rate before the project (estimated from the "&'GHG Results'!D$15&") is lower than the loss rate reported after the project, and it is therefore not possible to calculate emission savings. Please provide the actual food loss rate prior to implementing the project to improve the accuracy of this result."))),"Invalid data provided, please check your inputs")) -> 
B9: Transport 1 | C9: =_xlfn.CONCAT(C8," to ",C10) ->  | D9: =IF('GHG Results'!E10=0,"",IFERROR('GHG Results'!E10,"")) ->  | E9: =IF(Interface!J22=FALSE,"",IFERROR('GHG Results'!E25,0)) ->  | F9: =IF(D9="","", IF(Interface!J22=FALSE,"",IFERROR('GHG Results'!E39,""))) ->  | G9: =IFERROR(F9-SUM('GHG Results'!E42:E43),"") ->  | H9: =IF(D9="","",IF(Interface!J22=FALSE,"",IFERROR('GHG Results'!E42,""))) ->  | I9: =IF(D9="","",IF(Interface!J22=FALSE,"",IFERROR('GHG Results'!E43,""))) ->  | K9: =IF(transport1Selector=FALSE,"", IFERROR(IF(AND(requireBeforeLossData=TRUE,transportLossBefore=""),"Loss rate baseline for "&commodity&" not available. Please provide the food loss rate before the project.", IF('GHG Results'!E23<'GHG Results'!E14, IF(transportLossBefore="","The results above are calculated using "&'GHG Results'!E$15&" as a baseline rate for food loss before the project, and might not be reflective of site-specific conditions. Please provide the actual food loss rate prior to implementing the project to improve the accuracy of this result.","The results above are calculated using food loss rates reported by the user."), IF('GHG Results'!E23='GHG Results'!E14,"Food loss rates before and after the project are the same, hence there is no avoided food losses quantities and emissions.", "The loss rate before the project (estimated from the "&'GHG Results'!E$15&") is lower than the loss rate reported after the project, and it is therefore not possible to calculate emission savings. Please provide the actual food loss rate prior to implementing the project to improve the accuracy of this result."))),"Invalid data provided, please check your inputs")) -> 
B10: Storage 1 (pre-processing) | C10: =INDEX('Country-selector'!$C$21:$C$29,MATCH(B10,'Country-selector'!$B$21:$B$29,0)) ->  | D10: =IF('GHG Results'!F10=0,"",IFERROR('GHG Results'!F10,"")) ->  | E10: =IF(Interface!J23=FALSE,"",IFERROR('GHG Results'!F25,0)) ->  | F10: =IF(D10="","", IF(Interface!J23=FALSE,"",IFERROR('GHG Results'!F39,""))) ->  | G10: =IFERROR(F10-SUM('GHG Results'!F42:F43),"") ->  | H10: =IF(D10="","", IF(Interface!J23=FALSE,"",IFERROR('GHG Results'!F42,""))) ->  | I10: =IF(D10="","", IF(Interface!J23=FALSE,"",IFERROR('GHG Results'!F43,""))) ->  | K10: =IF(storage1Selector=FALSE,"", IFERROR(IF(AND(requireBeforeLossData=TRUE,storage1LossBefore=""),"Loss rate baseline for "&commodity&" not available. Please provide the food loss rate before the project.", IF('GHG Results'!F23<'GHG Results'!F14, IF(storage1LossBefore="","The results above are calculated using "&'GHG Results'!F$15&" as a baseline rate for food loss before the project, and might not be reflective of site-specific conditions. Please provide the actual food loss rate prior to implementing the project to improve the accuracy of this result.","The results above are calculated using food loss rates reported by the user."), IF('GHG Results'!F23='GHG Results'!F14,"Food loss rates before and after the project are the same, hence there is no avoided food losses quantities and emissions.", "The loss rate before the project (estimated from the "&'GHG Results'!F$15&") is lower than the loss rate reported after the project, and it is therefore not possible to calculate emission savings. Please provide the actual food loss rate prior to implementing the project to improve the accuracy of this result."))),"Invalid data provided, please check your inputs")) -> 
B11: Transport 2 | C11: =_xlfn.CONCAT(C10," to ",C12) ->  | D11: =IF('GHG Results'!G10=0,"",IFERROR('GHG Results'!G10,"")) ->  | E11: =IF(Interface!J24=FALSE,"",IFERROR('GHG Results'!G25,0)) ->  | F11: =IF(D11="","", IF(Interface!J24=FALSE,"",IFERROR('GHG Results'!G39,""))) ->  | G11: =IFERROR(F11-SUM('GHG Results'!G42:G43),"") ->  | H11: =IF(D11="","", IF(Interface!J24=FALSE,"",IFERROR('GHG Results'!G42,""))) ->  | I11: =IF(D11="","", IF(Interface!J24=FALSE,"",IFERROR('GHG Results'!G43,""))) ->  | K11: =IF(transport2Selector=FALSE,"", IFERROR(IF(AND(requireBeforeLossData=TRUE,transport2LossBefore=""),"Loss rate baseline for "&commodity&" not available. Please provide the food loss rate before the project.", IF('GHG Results'!G23<'GHG Results'!G14, IF(transport2LossBefore="","The results above are calculated using "&'GHG Results'!G$15&" as a baseline rate for food loss before the project, and might not be reflective of site-specific conditions. Please provide the actual food loss rate prior to implementing the project to improve the accuracy of this result.","The results above are calculated using food loss rates reported by the user."), IF('GHG Results'!G23='GHG Results'!G14,"Food loss rates before and after the project are the same, hence there is no avoided food losses quantities and emissions.", "The loss rate before the project (estimated from the "&'GHG Results'!G$15&") is lower than the loss rate reported after the project, and it is therefore not possible to calculate emission savings. Please provide the actual food loss rate prior to implementing the project to improve the accuracy of this result."))),"Invalid data provided, please check your inputs")) -> 
B12: Processing | C12: =INDEX('Country-selector'!$C$21:$C$29,MATCH(B12,'Country-selector'!$B$21:$B$29,0)) ->  | D12: =IF('GHG Results'!H10=0,"",IFERROR('GHG Results'!H10,"")) ->  | E12: =IF(Interface!J25=FALSE,"",IFERROR('GHG Results'!H25,0)) ->  | F12: =IF(D12="","", IF(Interface!J25=FALSE,"",IFERROR('GHG Results'!H39,""))) ->  | G12: =IFERROR(F12-SUM('GHG Results'!H42:H43),"") ->  | H12: =IF(D12="","", IF(Interface!J25=FALSE,"",IFERROR('GHG Results'!H42,""))) ->  | I12: =IF(D12="","", IF(Interface!J25=FALSE,"",IFERROR('GHG Results'!H43,""))) ->  | K12: =IF(processingSelector=FALSE,"", IFERROR(IF(AND(requireBeforeLossData=TRUE,processingLossBefore=""),"Loss rate baseline for "&commodity&" not available. Please provide the food loss rate before the project.", IF('GHG Results'!H23<'GHG Results'!H14, IF(processingLossBefore="","The results above are calculated using "&'GHG Results'!H$15&" as a baseline rate for food loss before the project, and might not be reflective of site-specific conditions. Please provide the actual food loss rate prior to implementing the project to improve the accuracy of this result.","The results above are calculated using food loss rates reported by the user."), IF('GHG Results'!H23='GHG Results'!H14,"Food loss rates before and after the project are the same, hence there is no avoided food losses quantities and emissions.", "The loss rate before the project (estimated from the "&'GHG Results'!H$15&") is lower than the loss rate reported after the project, and it is therefore not possible to calculate emission savings. Please provide the actual food loss rate prior to implementing the project to improve the accuracy of this result."))),"Invalid data provided, please check your inputs")) -> 
B13: Transport 3 | C13: =_xlfn.CONCAT(C12," to ",C14) ->  | D13: =IF('GHG Results'!I10=0,"",IFERROR('GHG Results'!I10,"")) ->  | E13: =IF(Interface!J26=FALSE,"",IFERROR('GHG Results'!I25,0)) ->  | F13: =IF(D13="","", IF(Interface!J26=FALSE,"",IFERROR('GHG Results'!I39,""))) ->  | G13: =IFERROR(F13-SUM('GHG Results'!I42:I43),"") ->  | H13: =IF(D13="","", IF(Interface!J26=FALSE,"",IFERROR('GHG Results'!I42,""))) ->  | I13: =IF(D13="","", IF(Interface!J26=FALSE,"",IFERROR('GHG Results'!I43,""))) ->  | K13: =IF(transport3Selector=FALSE,"", IFERROR(IF(AND(requireBeforeLossData=TRUE,transport3LossBefore=""),"Loss rate baseline for "&commodity&" not available. Please provide the food loss rate before the project.", IF('GHG Results'!I23<'GHG Results'!I14, IF(transport3LossBefore="","The results above are calculated using "&'GHG Results'!I$15&" as a baseline rate for food loss before the project, and might not be reflective of site-specific conditions. Please provide the actual food loss rate prior to implementing the project to improve the accuracy of this result.","The results above are calculated using food loss rates reported by the user."), IF('GHG Results'!I23='GHG Results'!I14,"Food loss rates before and after the project are the same, hence there is no avoided food losses quantities and emissions.", "The loss rate before the project (estimated from the "&'GHG Results'!I$15&") is lower than the loss rate reported after the project, and it is therefore not possible to calculate emission savings. Please provide the actual food loss rate prior to implementing the project to improve the accuracy of this result."))),"Invalid data provided, please check your inputs")) -> 
B14: Storage 2 (pre-retail) | C14: =INDEX('Country-selector'!$C$21:$C$29,MATCH(B14,'Country-selector'!$B$21:$B$29,0)) ->  | D14: =IF('GHG Results'!J10=0,"",IFERROR('GHG Results'!J10,"")) ->  | E14: =IF(Interface!J27=FALSE,"",IFERROR('GHG Results'!J25,0)) ->  | F14: =IF(D14="","", IF(Interface!J27=FALSE,"",IFERROR('GHG Results'!J39,""))) ->  | G14: =IFERROR(F14-SUM('GHG Results'!J42:J43),"") ->  | H14: =IF(D14="","", IF(Interface!J27=FALSE,"",IFERROR('GHG Results'!J42,""))) ->  | I14: =IF(D14="","", IF(Interface!J27=FALSE,"",IFERROR('GHG Results'!J43,""))) ->  | K14: =IF(storage2Selector=FALSE,"", IFERROR(IF(AND(requireBeforeLossData=TRUE,storage2LossBefore=""),"Loss rate baseline for "&commodity&" not available. Please provide the food loss rate before the project.", IF('GHG Results'!J23<'GHG Results'!J14, IF(storage2LossBefore="","The results above are calculated using "&'GHG Results'!J$15&" as a baseline rate for food loss before the project, and might not be reflective of site-specific conditions. Please provide the actual food loss rate prior to implementing the project to improve the accuracy of this result.","The results above are calculated using food loss rates reported by the user."), IF('GHG Results'!J23='GHG Results'!J14,"Food loss rates before and after the project are the same, hence there is no avoided food losses quantities and emissions.", "The loss rate before the project (estimated from the "&'GHG Results'!J$15&") is lower than the loss rate reported after the project, and it is therefore not possible to calculate emission savings. Please provide the actual food loss rate prior to implementing the project to improve the accuracy of this result."))),"Invalid data provided, please check your inputs")) -> 
B15: Transport 4 | C15: =_xlfn.CONCAT(C14," to ",C16) ->  | D15: =IF('GHG Results'!K10=0,"",IFERROR('GHG Results'!K10,"")) ->  | E15: =IF(Interface!J28=FALSE,"",IFERROR('GHG Results'!K25,0)) ->  | F15: =IF(D15="","", IF(Interface!J28=FALSE,"",IFERROR('GHG Results'!K39,""))) ->  | G15: =IFERROR(F15-SUM('GHG Results'!K42:K43),"") ->  | H15: =IF(D15="","", IF(Interface!J28=FALSE,"",IFERROR('GHG Results'!K42,""))) ->  | I15: =IF(D15="","", IF(Interface!J28=FALSE,"",IFERROR('GHG Results'!K43,""))) ->  | K15: =IF(transport4Selector=FALSE,"", IFERROR(IF(AND(requireBeforeLossData=TRUE,transport4LossBefore=""),"Loss rate baseline for "&commodity&" not available. Please provide the food loss rate before the project.", IF('GHG Results'!K23<'GHG Results'!K14, IF(transport4LossBefore="","The results above are calculated using "&'GHG Results'!K$15&" as a baseline rate for food loss before the project, and might not be reflective of site-specific conditions. Please provide the actual food loss rate prior to implementing the project to improve the accuracy of this result.","The results above are calculated using food loss rates reported by the user."), IF('GHG Results'!K23='GHG Results'!K14,"Food loss rates before and after the project are the same, hence there is no avoided food losses quantities and emissions.", "The loss rate before the project (estimated from the "&'GHG Results'!K$15&") is lower than the loss rate reported after the project, and it is therefore not possible to calculate emission savings. Please provide the actual food loss rate prior to implementing the project to improve the accuracy of this result."))),"Invalid data provided, please check your inputs")) -> 
B16: Retail | C16: =INDEX('Country-selector'!$C$21:$C$29,MATCH(B16,'Country-selector'!$B$21:$B$29,0)) ->  | D16: =IF('GHG Results'!L10=0,"",IFERROR('GHG Results'!L10,"")) ->  | E16: =IF(Interface!J29=FALSE,"",IFERROR('GHG Results'!L25,0)) ->  | F16: =IF(D16="","", IF(Interface!J29=FALSE,"",IFERROR('GHG Results'!L39,""))) ->  | G16: =IFERROR(F16-SUM('GHG Results'!L42:L43),"") ->  | H16: =IF(D16="","", IF(Interface!J29=FALSE,"",IFERROR('GHG Results'!L42,""))) ->  | I16: =IF(D16="","", IF(Interface!J29=FALSE,"",IFERROR('GHG Results'!L43,""))) ->  | K16: =IF(retailSelector=FALSE,"", IFERROR(IF(AND(requireBeforeLossData=TRUE,retailLossBefore=""),"Loss rate baseline for "&commodity&" not available. Please provide the food loss rate before the project.", IF('GHG Results'!L23<'GHG Results'!L14, IF(retailLossBefore="","The results above are calculated using "&'GHG Results'!L$15&" as a baseline rate for food loss before the project, and might not be reflective of site-specific conditions. Please provide the actual food loss rate prior to implementing the project to improve the accuracy of this result.","The results above are calculated using food loss rates reported by the user."), IF('GHG Results'!L23='GHG Results'!L14,"Food loss rates before and after the project are the same, hence there is no avoided food losses quantities and emissions.", "The loss rate before the project (estimated from the "&'GHG Results'!L$15&") is lower than the loss rate reported after the project, and it is therefore not possible to calculate emission savings. Please provide the actual food loss rate prior to implementing the project to improve the accuracy of this result."))),"Invalid data provided, please check your inputs")) -> 
B18: Total | D18: =SUM(D8:D16) -> 0 | F18: =SUM(F8:F16) -> 0 | G18: =SUM(G8:G16) -> 0 | H18: =SUM(H8:H16) -> 0 | I18: =SUM(I8:I16) -> 0
B21: Cumulative financial savings | C21: =IFERROR(price*SUM(D8:D16),0) -> 0 | D21: USD
B22: Total avoided emissions from landfill (tCO2e) | C22: =IFERROR(SUM('GHG Results'!D37:L37),"") -> 0 | D22: tCO2e
B24: B. Charts
B67: Impact Indicators - Food security, resources use and broader environmental impact
B68: A. Food security impacts and indicators
C70: Commodity | D70: =commodity -> 0
C71: Avoided losses | D71: =SUM(D8:D16) -> 0 | E71: tonne(s)
C72: Corresponding calories quantity | D72: ='FS-output'!C7 ->  | E72: kcal
C73: Corresponding protein quantity | D73: ='FS-output'!C8 ->  | E73: g
C75: Default caloric requirements | D75: ='FS-output'!D12 -> 2000 | E75: kcal/person/day
C76: Default protein requirement | D76: ='FS-output'!D13 -> 50 | E76: g/person/day
B78: Advanced Inputs (Optional)
C79: Enter specific caloric and / or protein requirement to over-ride default data
C80: Caloric requirement | E80: kcal/person/day
C81: Protein requirement | E81: g/person/day
B83: Indicator - Number of people fed equivalent per day
C84: The quantity of avoided food losses corresponds to the following number of people with their energy needs met:
C85: Population group | D85: Type | E85: Number of people fed equivalent per day
C86: Adult | D86: Calories | E86: =IF('FS-output'!C6,"Commodity is not considered in the food security basket", 'FS-output'!F12) -> 0
B88: Indicator - Number of people with their protein needs met per day
C89: The quantity of avoided food losses corresponds to the following number of people with their protein needs met:
C90: Population group | D90: Type | E90: Number of people with their protein needs met per day
C91: Adult | D91: Protein | E91: =IF('FS-output'!C6,"Commodity is not considered in the food security basket",'FS-output'!F13) -> 0
B93: Indicator Country profile - % Population at risk of hunger
B94: Data source: Aqueduct Food / IFPRI IMPACT Model 3.6
D96: Country | E96: % Population at risk of hunger
C97: Country of Production | D97: =countryOfProduction ->  | E97: =INDEX(PopAtRiskofHunger[Population at risk of hunger (%)],MATCH(D97,PopAtRiskofHunger[IFC Country],0)) -> 
C98: Assumed country of Export | D98: =lastCountry ->  | E98: =INDEX(PopAtRiskofHunger[Population at risk of hunger (%)],MATCH(D98,PopAtRiskofHunger[IFC Country],0)) -> 
C99: If the country of export is not the one listed above, please select the relevant country using the drop-down to the right: | E99: =IF(D99<>0,INDEX(PopAtRiskofHunger[Population at risk of hunger (%)],MATCH(D99,PopAtRiskofHunger[IFC Country],0)),"") -> 
B101: B. Avoided water consumption and Water risk profile of the production country
B102: The indicators below relate to the country of production of the selected commodity.
B104: =_xlfn.CONCAT("Avoided water consumption at production stage in ",countryOfProduction) -> 
B105: Data source: Water Footprint Network
B107: The water footprint indicates the avoided water consumption from the total avoided food losses from all intervention projects indicated in the interface.
D108: Water Footprint
C109: Total | D109: =IF(SUM(D110:D112)=0,"N/A for this commodity",SUM(D110:D112)) -> N/A for this commodity | E109: =IF(D109="N/A for this commodity","","m3") -> 
C110: Green water | D110: =IFERROR(IF(commodityGroup="Animal Protein", 'WF-output'!$C$22*SUMPRODUCT(totalTonnesLost,proteinExtractionRatePerStage), WFOutputGreen*SUMPRODUCT(totalTonnesLost,proteinExtractionRatePerStage)), "") ->  | E110: =IF(D110="","","m3") -> 
C111: Blue water | D111: =IFERROR(IF(commodityGroup="Animal Protein", 'WF-output'!$C$23*SUMPRODUCT(totalTonnesLost,proteinExtractionRatePerStage), WFOutputBlue*SUMPRODUCT(totalTonnesLost,proteinExtractionRatePerStage)),"") ->  | E111: =IF(D111="","","m3") -> 
C112: Grey water | D112: =IFERROR(IF(commodityGroup="Animal Protein", 'WF-output'!$C$24*SUMPRODUCT(totalTonnesLost,proteinExtractionRatePerStage), WFOutputGrey*SUMPRODUCT(totalTonnesLost,proteinExtractionRatePerStage)),"") -> 
B114: =_xlfn.CONCAT("Water risk profile of country of production - ",countryOfProduction) -> 
B115: Data source: WWF Water Risk Filter 2.0
B117: Risk type | C117: Risk category | D117: Risk score | E117: Country ranking
B118: Basin physical risks | C118: Water Availability | D118: =INDEX('WWF-Water-CountryRisk'!$R$11:$AG$262,MATCH(countryOfProduction,'WWF-Water-CountryRisk'!$R$11:$R$262,0),MATCH("BRC1 Risk Level",'WWF-Water-CountryRisk'!$R$11:$AG$11,0)) ->  | E118: =INDEX('WWF-Water-CountryRank'!$C$11:$R$262,MATCH(countryOfProduction,'WWF-Water-CountryRank'!$R$11:$R$262,0),MATCH("BRC1",'WWF-Water-CountryRank'!$C$11:$R$11,0)) ->  | F118: =IF(ISNA(E118),"",_xlfn.CONCAT("out of ",INDEX('WWF-Water-CountryRank'!$C$9:$R$9,1,MATCH("BRC1",'WWF-Water-CountryRank'!$C$11:$R$11,0))," country rankings")) -> 
C119: Drought | D119: =INDEX('WWF-Water-CountryRisk'!$R$11:$AG$262,MATCH(countryOfProduction,'WWF-Water-CountryRisk'!$R$11:$R$262,0),MATCH("BRC2 Risk Level",'WWF-Water-CountryRisk'!$R$11:$AG$11,0)) ->  | E119: =INDEX('WWF-Water-CountryRank'!$C$11:$R$262,MATCH(countryOfProduction,'WWF-Water-CountryRank'!$R$11:$R$262,0),MATCH("BRC2",'WWF-Water-CountryRank'!$C$11:$R$11,0)) ->  | F119: =IF(ISNA(E119),"",_xlfn.CONCAT("out of ",INDEX('WWF-Water-CountryRank'!$C$9:$R$9,1,MATCH("BRC2",'WWF-Water-CountryRank'!$C$11:$R$11,0))," country rankings")) -> 
C120: Flooding | D120: =INDEX('WWF-Water-CountryRisk'!$R$11:$AG$262,MATCH(countryOfProduction,'WWF-Water-CountryRisk'!$R$11:$R$262,0),MATCH("BRC3 Risk Level",'WWF-Water-CountryRisk'!$R$11:$AG$11,0)) ->  | E120: =INDEX('WWF-Water-CountryRank'!$C$11:$R$262,MATCH(countryOfProduction,'WWF-Water-CountryRank'!$R$11:$R$262,0),MATCH("BRC3",'WWF-Water-CountryRank'!$C$11:$R$11,0)) ->  | F120: =IF(ISNA(E120),"",_xlfn.CONCAT("out of ",INDEX('WWF-Water-CountryRank'!$C$9:$R$9,1,MATCH("BRC3",'WWF-Water-CountryRank'!$C$11:$R$11,0))," country rankings")) -> 
C121: Water Quality | D121: =INDEX('WWF-Water-CountryRisk'!$R$11:$AG$262,MATCH(countryOfProduction,'WWF-Water-CountryRisk'!$R$11:$R$262,0),MATCH("BRC4 Risk Level",'WWF-Water-CountryRisk'!$R$11:$AG$11,0)) ->  | E121: =INDEX('WWF-Water-CountryRank'!$C$11:$R$262,MATCH(countryOfProduction,'WWF-Water-CountryRank'!$R$11:$R$262,0),MATCH("BRC4",'WWF-Water-CountryRank'!$C$11:$R$11,0)) ->  | F121: =IF(ISNA(E121),"",_xlfn.CONCAT("out of ",INDEX('WWF-Water-CountryRank'!$C$9:$R$9,1,MATCH("BRC4",'WWF-Water-CountryRank'!$C$11:$R$11,0))," country rankings")) -> 
C122: Ecosystem Services Status | D122: =INDEX('WWF-Water-CountryRisk'!$R$11:$AG$262,MATCH(countryOfProduction,'WWF-Water-CountryRisk'!$R$11:$R$262,0),MATCH("BRC5 Risk Level",'WWF-Water-CountryRisk'!$R$11:$AG$11,0)) ->  | E122: =INDEX('WWF-Water-CountryRank'!$C$11:$R$262,MATCH(countryOfProduction,'WWF-Water-CountryRank'!$R$11:$R$262,0),MATCH("BRC5",'WWF-Water-CountryRank'!$C$11:$R$11,0)) ->  | F122: =IF(ISNA(E122),"",_xlfn.CONCAT("out of ",INDEX('WWF-Water-CountryRank'!$C$9:$R$9,1,MATCH("BRC5",'WWF-Water-CountryRank'!$C$11:$R$11,0))," country rankings")) -> 
B123: Basin regulatory risks | C123: Enabling Environment | D123: =INDEX('WWF-Water-CountryRisk'!$R$11:$AG$262,MATCH(countryOfProduction,'WWF-Water-CountryRisk'!$R$11:$R$262,0),MATCH("BRC6 Risk Level",'WWF-Water-CountryRisk'!$R$11:$AG$11,0)) ->  | E123: =INDEX('WWF-Water-CountryRank'!$C$11:$R$262,MATCH(countryOfProduction,'WWF-Water-CountryRank'!$R$11:$R$262,0),MATCH("BRC6",'WWF-Water-CountryRank'!$C$11:$R$11,0)) ->  | F123: =IF(ISNA(E123),"",_xlfn.CONCAT("out of ",INDEX('WWF-Water-CountryRank'!$C$9:$R$9,1,MATCH("BRC6",'WWF-Water-CountryRank'!$C$11:$R$11,0))," country rankings")) -> 
C124: Institutions & Governance | D124: =INDEX('WWF-Water-CountryRisk'!$R$11:$AG$262,MATCH(countryOfProduction,'WWF-Water-CountryRisk'!$R$11:$R$262,0),MATCH("BRC7 Risk Level",'WWF-Water-CountryRisk'!$R$11:$AG$11,0)) ->  | E124: =INDEX('WWF-Water-CountryRank'!$C$11:$R$262,MATCH(countryOfProduction,'WWF-Water-CountryRank'!$R$11:$R$262,0),MATCH("BRC7",'WWF-Water-CountryRank'!$C$11:$R$11,0)) ->  | F124: =IF(ISNA(E124),"",_xlfn.CONCAT("out of ",INDEX('WWF-Water-CountryRank'!$C$9:$R$9,1,MATCH("BRC7",'WWF-Water-CountryRank'!$C$11:$R$11,0))," country rankings")) -> 
C125: Management Instruments | D125: =INDEX('WWF-Water-CountryRisk'!$R$11:$AG$262,MATCH(countryOfProduction,'WWF-Water-CountryRisk'!$R$11:$R$262,0),MATCH("BRC8 Risk Level",'WWF-Water-CountryRisk'!$R$11:$AG$11,0)) ->  | E125: =INDEX('WWF-Water-CountryRank'!$C$11:$R$262,MATCH(countryOfProduction,'WWF-Water-CountryRank'!$R$11:$R$262,0),MATCH("BRC8",'WWF-Water-CountryRank'!$C$11:$R$11,0)) ->  | F125: =IF(ISNA(E125),"",_xlfn.CONCAT("out of ",INDEX('WWF-Water-CountryRank'!$C$9:$R$9,1,MATCH("BRC8",'WWF-Water-CountryRank'!$C$11:$R$11,0))," country rankings")) -> 
C126: WASH Infrastructure | D126: =INDEX('WWF-Water-CountryRisk'!$R$11:$AG$262,MATCH(countryOfProduction,'WWF-Water-CountryRisk'!$R$11:$R$262,0),MATCH("BRC9 Risk Level",'WWF-Water-CountryRisk'!$R$11:$AG$11,0)) ->  | E126: =INDEX('WWF-Water-CountryRank'!$C$11:$R$262,MATCH(countryOfProduction,'WWF-Water-CountryRank'!$R$11:$R$262,0),MATCH("BRC9",'WWF-Water-CountryRank'!$C$11:$R$11,0)) ->  | F126: =IF(ISNA(E126),"",_xlfn.CONCAT("out of ",INDEX('WWF-Water-CountryRank'!$C$9:$R$9,1,MATCH("BRC9",'WWF-Water-CountryRank'!$C$11:$R$11,0))," country rankings")) -> 
B127: Basin reputational risks | C127: Environmental Factors | D127: =INDEX('WWF-Water-CountryRisk'!$R$11:$AG$262,MATCH(countryOfProduction,'WWF-Water-CountryRisk'!$R$11:$R$262,0),MATCH("BRC10 Risk Level",'WWF-Water-CountryRisk'!$R$11:$AG$11,0)) ->  | E127: =INDEX('WWF-Water-CountryRank'!$C$11:$R$262,MATCH(countryOfProduction,'WWF-Water-CountryRank'!$R$11:$R$262,0),MATCH("BRC10",'WWF-Water-CountryRank'!$C$11:$R$11,0)) ->  | F127: =IF(ISNA(E127),"",_xlfn.CONCAT("out of ",INDEX('WWF-Water-CountryRank'!$C$9:$R$9,1,MATCH("BRC10",'WWF-Water-CountryRank'!$C$11:$R$11,0))," country rankings")) -> 
C128: Socioeconomic Factors | D128: =INDEX('WWF-Water-CountryRisk'!$R$11:$AG$262,MATCH(countryOfProduction,'WWF-Water-CountryRisk'!$R$11:$R$262,0),MATCH("BRC11 Risk Level",'WWF-Water-CountryRisk'!$R$11:$AG$11,0)) ->  | E128: =INDEX('WWF-Water-CountryRank'!$C$11:$R$262,MATCH(countryOfProduction,'WWF-Water-CountryRank'!$R$11:$R$262,0),MATCH("BRC11",'WWF-Water-CountryRank'!$C$11:$R$11,0)) ->  | F128: =IF(ISNA(E128),"",_xlfn.CONCAT("out of ",INDEX('WWF-Water-CountryRank'!$C$9:$R$9,1,MATCH("BRC11",'WWF-Water-CountryRank'!$C$11:$R$11,0))," country rankings")) -> 
C129: Additional Reputational Factors | D129: =INDEX('WWF-Water-CountryRisk'!$R$11:$AG$262,MATCH(countryOfProduction,'WWF-Water-CountryRisk'!$R$11:$R$262,0),MATCH("BRC12 Risk Level",'WWF-Water-CountryRisk'!$R$11:$AG$11,0)) ->  | E129: =INDEX('WWF-Water-CountryRank'!$C$11:$R$262,MATCH(countryOfProduction,'WWF-Water-CountryRank'!$R$11:$R$262,0),MATCH("BRC12",'WWF-Water-CountryRank'!$C$11:$R$11,0)) ->  | F129: =IF(ISNA(E129),"",_xlfn.CONCAT("out of ",INDEX('WWF-Water-CountryRank'!$C$9:$R$9,1,MATCH("BRC12",'WWF-Water-CountryRank'!$C$11:$R$11,0))," country rankings")) -> 
B131: C. Avoided land use and Biodiversity risk profile of the production country
B132: The indicators below relate to the country of production of the selected commodity.
B134: Assuming a worse case scenario, the avoided food loss have saved the following number of hectares from Land Use Change:
B135: Avoided land use
C136: Equivalent land area saved (crops only)
C137: =IF(commodityGroup<>"Animal Protein",IFERROR(SUM($D$8:$D$16)/IF(userYield>0,userYield,INDEX(defaultNorYield[#All],MATCH(countryOfProduction,defaultNorYield[[Country]:[Country]],0),8)),0),"N/A for animal protein") -> 0 | D137: =IF(C137="N/A for animal protein","","hectares") -> hectares
B139: The production country with this avoided land use has the following Biodiversity risk profile:
B140: =_xlfn.CONCAT("Biodiversity risk profile of country of production - ",countryOfProduction) -> 
B141: Data source: WWF Biodiversity Risk Filter 2.0
B143: Risk type | C143: Risk category | D143: Risk score | E143: Country ranking
B144: Physical risks | C144: Provisioning Services | D144: =INDEX('WWF-BioDiv-CountryRisk'!$AT$11:$BB$262,MATCH(countryOfProduction,'WWF-BioDiv-CountryRisk'!$AT$11:$AT$262,0),MATCH("SRC1 Risk Level",'WWF-BioDiv-CountryRisk'!$AT$11:$BB$11,0)) ->  | E144: =INDEX('WWF-BioDiv-CountryRank'!$B$7:$AP$258,MATCH(countryOfProduction,'WWF-BioDiv-CountryRank'!$AP$7:$AP$258,0),MATCH("SRC1",'WWF-BioDiv-CountryRank'!$B$7:$AP$7,0)) ->  | F144: =IF(ISNA(E144),"",_xlfn.CONCAT("out of ", INDEX('WWF-BioDiv-CountryRank'!$C$5:$AO$5,1,MATCH("SRC1",'WWF-BioDiv-CountryRank'!$C$7:$AO$7,0)), " country rankings")) -> 
C145: Regulating & Supporting Services - Enabling | D145: =INDEX('WWF-BioDiv-CountryRisk'!$AT$11:$BB$262,MATCH(countryOfProduction,'WWF-BioDiv-CountryRisk'!$AT$11:$AT$262,0),MATCH("SRC2 Risk Level",'WWF-BioDiv-CountryRisk'!$AT$11:$BB$11,0)) ->  | E145: =INDEX('WWF-BioDiv-CountryRank'!$B$7:$AP$258,MATCH(countryOfProduction,'WWF-BioDiv-CountryRank'!$AP$7:$AP$258,0),MATCH("SRC2",'WWF-BioDiv-CountryRank'!$B$7:$AP$7,0)) ->  | F145: =IF(ISNA(E145),"",_xlfn.CONCAT("out of ", INDEX('WWF-BioDiv-CountryRank'!$C$5:$AO$5,1,MATCH("SRC2",'WWF-BioDiv-CountryRank'!$C$7:$AO$7,0)), " country rankings")) -> 
C146: Regulating Services - Mitigating | D146: =INDEX('WWF-BioDiv-CountryRisk'!$AT$11:$BB$262,MATCH(countryOfProduction,'WWF-BioDiv-CountryRisk'!$AT$11:$AT$262,0),MATCH("SRC3 Risk Level",'WWF-BioDiv-CountryRisk'!$AT$11:$BB$11,0)) ->  | E146: =INDEX('WWF-BioDiv-CountryRank'!$B$7:$AP$258,MATCH(countryOfProduction,'WWF-BioDiv-CountryRank'!$AP$7:$AP$258,0),MATCH("SRC3",'WWF-BioDiv-CountryRank'!$B$7:$AP$7,0)) ->  | F146: =IF(ISNA(E146),"",_xlfn.CONCAT("out of ", INDEX('WWF-BioDiv-CountryRank'!$C$5:$AO$5,1,MATCH("SRC3",'WWF-BioDiv-CountryRank'!$C$7:$AO$7,0)), " country rankings")) -> 
C147: Cultural Services | D147: =INDEX('WWF-BioDiv-CountryRisk'!$AT$11:$BB$262,MATCH(countryOfProduction,'WWF-BioDiv-CountryRisk'!$AT$11:$AT$262,0),MATCH("SRC4 Risk Level",'WWF-BioDiv-CountryRisk'!$AT$11:$BB$11,0)) ->  | E147: =INDEX('WWF-BioDiv-CountryRank'!$B$7:$AP$258,MATCH(countryOfProduction,'WWF-BioDiv-CountryRank'!$AP$7:$AP$258,0),MATCH("SRC4",'WWF-BioDiv-CountryRank'!$B$7:$AP$7,0)) ->  | F147: =IF(ISNA(E147),"",_xlfn.CONCAT("out of ", INDEX('WWF-BioDiv-CountryRank'!$C$5:$AO$5,1,MATCH("SRC4",'WWF-BioDiv-CountryRank'!$C$7:$AO$7,0)), " country rankings")) -> 
C148: Pressures on Biodiversity | D148: =INDEX('WWF-BioDiv-CountryRisk'!$AT$11:$BB$262,MATCH(countryOfProduction,'WWF-BioDiv-CountryRisk'!$AT$11:$AT$262,0),MATCH("SRC5 Risk Level",'WWF-BioDiv-CountryRisk'!$AT$11:$BB$11,0)) ->  | E148: =INDEX('WWF-BioDiv-CountryRank'!$B$7:$AP$258,MATCH(countryOfProduction,'WWF-BioDiv-CountryRank'!$AP$7:$AP$258,0),MATCH("SRC5",'WWF-BioDiv-CountryRank'!$B$7:$AP$7,0)) ->  | F148: =IF(ISNA(E148),"",_xlfn.CONCAT("out of ", INDEX('WWF-BioDiv-CountryRank'!$C$5:$AO$5,1,MATCH("SRC5",'WWF-BioDiv-CountryRank'!$C$7:$AO$7,0)), " country rankings")) -> 
B149: Reputational risks | C149: Environmental Factors | D149: =INDEX('WWF-BioDiv-CountryRisk'!$AT$11:$BB$262,MATCH(countryOfProduction,'WWF-BioDiv-CountryRisk'!$AT$11:$AT$262,0),MATCH("SRC6 Risk Level",'WWF-BioDiv-CountryRisk'!$AT$11:$BB$11,0)) ->  | E149: =INDEX('WWF-BioDiv-CountryRank'!$B$7:$AP$258,MATCH(countryOfProduction,'WWF-BioDiv-CountryRank'!$AP$7:$AP$258,0),MATCH("SRC6",'WWF-BioDiv-CountryRank'!$B$7:$AP$7,0)) ->  | F149: =IF(ISNA(E149),"",_xlfn.CONCAT("out of ", INDEX('WWF-BioDiv-CountryRank'!$C$5:$AO$5,1,MATCH("SRC6",'WWF-BioDiv-CountryRank'!$C$7:$AO$7,0)), " country rankings")) -> 
B152: D. Avoided nitrogen fertilizer and fuel use indicators
B153: The indicators below correspond to the avoided resource use for the total avoided losses from all the intervention projects indicated in the interface.
B155: Avoided nitrogen use
C156: Nitrogen saved (crops only)
C157: =IF(commodityGroup="Animal Protein","N/A for animal protein", IF(AND(Interface!$C$46=NperTonne,Interface!$C$45<>""),Interface!$C$45, IF(AND(Interface!$C$46=NperHa,Interface!$C$45<>""),Interface!$C$45/userYield, userNDefault)) *SUMPRODUCT(totalTonnesLost,proteinExtractionRatePerStage)) ->  | D157: =IF(C137="N/A for animal protein","","kg of Nitrogen") -> kg of Nitrogen
B159: Avoided fuel use
C160: Transport fuel saved
C161: =SUM('Default parameters'!L5:L8)*1000*SUM(totalTonnesLost)/'TR-1'!D44 +IF(commodity="Tuna",SUMPRODUCT(totalTonnesLost,proteinExtractionRatePerStage)*ProteinData!$AK$77*1000,0) ->  | D161: equivalent liters of diesel
B163: E. Orphaned losses and emissions - additional upstream avoided food loss and emissions
B165: For any commodity, there are losses occurring between each supply chain stages. This means that for any given volume of commodity, a greater quantity of this commodity was produced upstream to obtain this specific volume. E.g. A consumer buys 1kg of tomatoes at the supermarket. Because of the losses in the upstream stages from harvesting to retail, it corresponds in reality to 1.5kg of tomatoes produced at the farm. In this example, for each kg of tomato purchased at the supermarket, there is an additional 0.5kg of tomato needed produced on farm. This logic applies as well for avoided food losses: for every kg of avoided food loss, it corresponds in reality to greater avoided quantities in the upstream stages based on the percentage loss rate between each supply chain stage, i.e. orphaned losses and emissions. These additional avoided losses in the upstream supply chain stages, i.e. the orphaned losses, are indicated in the table below, along with the corresponding additional avoided GHG emissions:
B167: Intervention stage(s) | C167: Avoided losses from the project intervention (tonnes) | D167: Additional upstream avoided losses (tonnes) | E167: Total avoided losses (tonnes) | F167: Avoided emissions from the project intervention (t CO2e) | G167: Additional upstream avoided emissions (t CO2e) | H167: Total avoided emissions (t CO2e)
B168: Production | C168: =D8 ->  | D168: N/A | E168: =IF(SUM(C168:D168)=0,"",SUM(C168:D168)) ->  | F168: =F8 ->  | G168: N/A | H168: =IF(SUM(F168:G168)=0,"",SUM(F168:G168)) -> 
B169: Transport 1 | D169: =_xlfn.IFNA(IF('Upstream Avoided Losses'!C170=0,"",'Upstream Avoided Losses'!C170),"") ->  | G169: =_xlfn.IFNA(IF('Upstream Avoided Losses'!C171=0,"",'Upstream Avoided Losses'!C171),"") ->  | H169: =IF(SUM(F169:G169)=0,"",SUM(F169:G169)) -> 
B170: Storage 1 (pre-processing) | D170: =_xlfn.IFNA(IF('Upstream Avoided Losses'!C153=0,"",'Upstream Avoided Losses'!C153),"") ->  | G170: =_xlfn.IFNA(IF('Upstream Avoided Losses'!C154=0,"",'Upstream Avoided Losses'!C154),"") -> 
B171: Transport 2 | D171: =_xlfn.IFNA(IF('Upstream Avoided Losses'!C134=0,"",'Upstream Avoided Losses'!C134),"") ->  | G171: =_xlfn.IFNA(IF('Upstream Avoided Losses'!C135=0,"",'Upstream Avoided Losses'!C135),"") ->  | H171: =IF(SUM(F171:G171)=0,"",SUM(F171:G171)) -> 
B172: Processing | D172: =_xlfn.IFNA(IF('Upstream Avoided Losses'!C113=0,"",'Upstream Avoided Losses'!C113),"") ->  | G172: =_xlfn.IFNA(IF('Upstream Avoided Losses'!C114=0,"",'Upstream Avoided Losses'!C114),"") ->  | H172: =IF(SUM(F172:G172)=0,"",SUM(F172:G172)) -> 
B173: Transport 3 | D173: =_xlfn.IFNA(IF('Upstream Avoided Losses'!C90=0,"",'Upstream Avoided Losses'!C90),"") ->  | G173: =_xlfn.IFNA(IF('Upstream Avoided Losses'!C91=0,"",'Upstream Avoided Losses'!C91),"") ->  | H173: =IF(SUM(F173:G173)=0,"",SUM(F173:G173)) -> 
B174: Storage 2 (pre-retail) | D174: =_xlfn.IFNA(IF('Upstream Avoided Losses'!C65=0,"",'Upstream Avoided Losses'!C65),"") ->  | G174: =_xlfn.IFNA(IF('Upstream Avoided Losses'!C66=0,"",'Upstream Avoided Losses'!C66),"") -> 
B175: Transport 4 | D175: =_xlfn.IFNA(IF('Upstream Avoided Losses'!C37=0,"",'Upstream Avoided Losses'!C37),"") ->  | G175: =_xlfn.IFNA(IF('Upstream Avoided Losses'!C38=0,"",'Upstream Avoided Losses'!C38),"") -> 
B176: Retail | D176: =_xlfn.IFNA(IF('Upstream Avoided Losses'!C7=0,"",'Upstream Avoided Losses'!C7),"") ->  | G176: =_xlfn.IFNA(IF('Upstream Avoided Losses'!C8=0,"",'Upstream Avoided Losses'!C8),"") -> 

Sheet Storage (hidden)
B1: Storage Emission Calculations
C2: =countryOfStorage1 ->  | D2: =countryOfStorage2 -> 
B3: DEFAULT EF | C3: Storage 1 | D3: Storage 2
B4: Chilled? | C4: =VLOOKUP(commodity,CHILLED,2,FALSE) ->  | D4: =VLOOKUP(commodity,CHILLED,2,FALSE) ->  | H4: Average grid emission factor (IEA)
B5: Length of time (days) | C5: =IF(ISNA(INDEX('TR-Road-dist'!$D$8:$D$167,MATCH(countryOfStorage1,'TR-Road-dist'!$B$8:$B$167,0))/IF((countryOfStorage1=countryOfStorage2),2,1)), 0, INDEX('TR-Road-dist'!$D$8:$D$167,MATCH(countryOfStorage1,'TR-Road-dist'!$B$8:$B$167,0))/IF((countryOfStorage1=countryOfStorage2),2,1)) -> 0 | D5: =IF(ISNA(IFERROR(INDEX('TR-Road-dist'!$D$8:$D$167,MATCH(countryOfStorage2,'TR-Road-dist'!$B$8:$B$167,0))/IF((countryOfStorage1=countryOfStorage2),2,1),INDEX('TR-Road-dist'!$D$8:$D$167,MATCH(userInputCountryofStorage2,'TR-Road-dist'!$B$8:$B$167,0))/IF((countryOfStorage1=userInputCountryofStorage2),2,1))), 0, IFERROR(INDEX('TR-Road-dist'!$D$8:$D$167,MATCH(countryOfStorage2,'TR-Road-dist'!$B$8:$B$167,0))/IF((countryOfStorage1=countryOfStorage2),2,1),INDEX('TR-Road-dist'!$D$8:$D$167,MATCH(userInputCountryofStorage2,'TR-Road-dist'!$B$8:$B$167,0))/IF((countryOfStorage1=userInputCountryofStorage2),2,1))) -> 0 | H5: Memo: European Union - 28 | I5: 0.296 | J5: kgCO2e/kWh
B6: Electricity consumption (kWh/day/tonne) | C6: =IF(C4="Y",$J$21,$I$21) ->  | D6: =IF(D4="Y",$J$21,$I$21) -> 
B7: Natural gas consumption (kWh/day/tonne) | C7: =IF(C4="Y",$J$22,$I$22) ->  | D7: =IF(D4="Y",$J$22,$I$22) -> 
B8: Emissions per tonne (tCO2e/tonne crop) | C8: =IF(C4="Y",$J$20,$I$20)*C5 ->  | D8: =IF(D4="Y",$J$20,$I$20)*D5 ->  | H8: Food loss rate adjustments | I8: Storage 1 | J8: Storage 2
H9: Storage time (days) - final input | I9: =C20 -> 0 | J9: =D20 -> 0
H10: Food loss rate distribution | I10: =I9/SUM($I$9:$J$9) ->  | J10: =J9/SUM($I$9:$J$9) -> 
B11: USER-INPUT EF
C12: Storage 1 | D12: Storage 2
B13: Selected electricity grid factor (kgCO2e/kWh) | C13: =VLOOKUP(countryOfStorage1,ENERGY,3,FALSE) ->  | D13: =VLOOKUP(countryOfStorage2,ENERGY,3,FALSE) -> 
A14: User Input option A | B14: User-defined EF? | C14: =IFERROR(AND(storage1UserDefinedEF<>storageDefaultEF,storage1UserDefinedEF<>0,storage1UserDefinedEF<>J20,storage1UserDefinedEF<>I20),FALSE) -> FALSE | D14: =IFERROR(AND(storage2UserDefinedEF<>storage2DefaultEF,storage2UserDefinedEF<>0,storage2UserDefinedEF<>J20,storage2UserDefinedEF<>I20),FALSE) -> FALSE | E14: (set TRUE in response to user EF input)
B15: User-defined EF value | C15: =IF(C14,storage1UserDefinedEF,0) -> 0 | D15: =IF(D14,storage2UserDefinedEF,0) -> 0 | E15: tCO2e/tonne commodity | H15: https://www.smartfreightcentre.org/en/how-to-implement-glec-framework/
A16: User Input option B | B16: User-defined temperature conditions? | C16: =AND(storage1TempControlled<>storage1TempControlledDefault,storage1TempControlled<>0) -> FALSE | D16: =AND(storage2TempControlled<>storage2TempControlledDefault,storage2TempControlled<>0) -> FALSE | E16: (set TRUE in response to user temperature condition input)
B17: User-defined EF value | C17: =IF(C16, IF(storage1TempControlled="No",Storage!$I$20,Storage!$J$20),0) -> 0 | D17: =IF(D16, IF(storage2TempControlled="No",Storage!$I$20,Storage!$J$20),0) -> 0 | E17: tCO2e per tonne per day | H17: Metric | I17: Ambient | J17: Temperature controlled | K17: Source/Notes
A18: User Input option C | B18: User-defined Storage time & energy consumption? | C18: =OR(C19,C21,C23) ->  | D18: =OR(D19,D21,D23) ->  | H18: Storage kgCO2e per tonne (Europe) = | I18: =5.4-1.2 -> 4.2 | J18: =11.7-1.2 -> 10.5 | K18: (Smart Freight Centre GLEC table 37, discounting transhipment). 450kg goods per pallet assumed
A19: User Input option C1 | B19: Use user-defined # of days? | C19: =storage1Time<>Storage!C5 -> FALSE | D19: =storage2Time<>Storage!D5 -> FALSE | H19: Estimated number of days in storage (Europe) = | I19: 3.8 | J19: 3.8 | K19: (World Bank LPI)
B20: # of days (user-defined or default) | C20: =IF(C19,storage1Time,C5) -> 0 | D20: =IF(D19,storage2Time,D5) -> 0 | E20: days in storage | H20: Storage tCO2e per tonne per day = | I20: =(I18/I19)/1000 -> 0.001105263158 | J20: =(J18/J19)/1000 -> 0.002763157895
A21: User Input option C2 | B21: Use user-defined electricity kWh input? | C21: =storage1Electricity<>storage1ElectricityDefault ->  | D21: =storage2Electricity<>storage2ElectricityDefault ->  | E21: (set TRUE in response to user kWh input) | H21: Estimated elec kWh per tonne per day = | I21: =(I20/2)/(EUGridAvg/1000) -> 1.866998578 | J21: =(J20/2)/(EUGridAvg/1000) -> 4.667496444 | K21: Assume 50% emissions from electricity
B22: kWh electricity (user-defined or default) | C22: =IF(C21,storage1Electricity,C7) ->  | D22: =IF(D21,storage2Electricity,D7) ->  | E22: Elec kWh/day/tonne | H22: Estimated natural gas kWh per tonne per day = | I22: =(I20/2)/(NaturalGasEF/1000) -> 2.402745995 | J22: =(J20/2)/(NaturalGasEF/1000) -> 6.006864989 | K22: Assume 50% emissions from natural gas, in reality fuel oil, district heating and biomass are also sometimes used
A23: User Input option C3 | B23: Use user-defined gas kWh input? | C23: =storage1Gas<>storage1GasDefault ->  | D23: =storage2Gas<>storage2GasDefault ->  | E23: (set TRUE in response to user kWh input)
B24: kWh gas (user-defined or default) | C24: =IF(C23,storage1Gas,C7) ->  | D24: =IF(D23,storage2Gas,D7) ->  | E24: Gas kWh/day/tonne
B25: Emissions per tonne (tCO2e/tonne crop) | C25: =IF(C14,storage1UserDefinedEF, IF(Storage!C16,C17*C20, IF(C18,C20*((C22*C13)+(C24*NaturalGasEF))/1000,storageDefaultEF))) ->  | D25: =IF(D14,storage2UserDefinedEF, IF(Storage!D16,D17*D20, IF(D18,D20*((D22*D13)+(D24*NaturalGasEF))/1000,storage2DefaultEF))) ->  | E25: tCO2e per tonne | H25: Issues:
H26: Not tailored to each country (based on average EU grid factor)
B27: FINAL SELECTION EF | H27: Original GLEC data is total per tonne, we have converted this to per tonne per day using an assumption about the average days storage in Europe
C28: Storage 1 | D28: Storage 2 | H28: The tonne/day emission factor is 10x lower than the value we used previously
B29: Emissions per tonne (tCO2e/tonne crop) | C29: =IFERROR(IF(storageDefaultEF<>storage1UserEF,IF(storage1UserEF<>0,storage1UserEF,storageDefaultEF),storageDefaultEF),storageDefaultEF) ->  | D29: =IFERROR(IF(storage2DefaultEF<>storage2UserEF,IF(storage2UserEF<>0,storage2UserEF,storage2DefaultEF),storage2DefaultEF),storage2DefaultEF) ->  | E29: tCO2e per tonne
H30: Benefits:
H31: The total emissions per tonne are quite similar to those reported by Carbon Trust data
H32: Based on good quality survey data
B33: Chilled/Not chilled commodities | H33: The referenced report also includes transport data which could in future replace/update our approach to transport
B34: Crop | C34: Chilled? | H34: Includes refrigerant leakage where relevant, not just energy
B35: Almonds | C35: N | H35: Smart Freight Centre looking for partners to improve the data in future
B36: Apples | C36: N
B37: Asparagus | C37: N
B38: Avocados | C38: N
B39: Bananas | C39: N
B40: Barley | C40: N
B41: Beans | C41: N
B42: Blueberries | C42: N
B43: Broccoli | C43: N
B44: Buckwheat | C44: N
B45: Butter | C45: Y
B46: Carrots | C46: N
B47: Cashew nuts | C47: N
B48: Cassava | C48: N
B49: Catfish | C49: Y
B50: Cheese | C50: Y
B51: Cherries | C51: N
B52: Chickpeas | C52: N
B53: Cocoa | C53: N
B54: Coconuts | C54: N
B55: Coffee | C55: N
B56: Cotton | C56: N
B57: Cotton seed oil | C57: N
B58: Cucumbers | C58: N
B59: Eggs | C59: N
B60: Flour | C60: N
B61: Garlic (green) | C61: N
B62: Ginger | C62: N
B63: Grapes | C63: N
B64: Hazelnuts | C64: N
B65: Lemons | C65: N
B66: Lentils | C66: N
B67: Lettuce | C67: N
B68: Litchi | C68: N
B69: Maize | C69: N
B70: Mandarins | C70: N
B71: Mangoes | C71: N
B72: Meat (cattle) | C72: Y
B73: Meat (chicken) | C73: Y
B74: Meat (pig) | C74: Y
B75: Milk (cattle) | C75: Y
B76: Millet | C76: N
B77: Mushrooms | C77: N
B78: Oats | C78: N
B79: Olive oil | C79: N
B80: Onions (fresh) | C80: N
B81: Onions, dry | C81: N
B82: Oranges | C82: N
B83: Palm oil | C83: N
B84: Peanuts | C84: N
B85: Pears | C85: N
B86: Peas (dry) | C86: N
B87: Peppers | C87: N
B88: Pineapples | C88: N
B89: Pistachios | C89: N
B90: Potatoes | C90: N
B91: Quinoa | C91: N
B92: Rapeseeds | C92: N
B93: Raspberries | C93: N
B94: Rice | C94: N
B95: Rye | C95: N
B96: Salmon | C96: Y
B97: Sesame seed | C97: N
B98: Shrimp | C98: Y
B99: Sorghum | C99: N
B100: Soybeans | C100: N
B101: Spinach | C101: N
B102: Strawberries | C102: N
B103: Sugar cane | C103: N
B104: Sunflower oil | C104: N
B105: Sunflower seeds | C105: N
B106: Sweet peppers | C106: N
B107: Sweet potatoes | C107: N
B108: Tilapia | C108: Y
B109: Tomatoes | C109: N
B110: Tuna | C110: Y
B111: Walnuts | C111: N
B112: Watermelons | C112: N
B113: Wheat | C113: N
B114: Yoghurt | C114: Y

Sheet Processing (hidden)
E1: Processing default data, scale the user-selected group by processing intensity | Q1: 0.2777778 | R1: MJ -> kWh | V1: Assume always Natural Gas
B2: =IFC_Commodity_CommodityGroup[[#Headers],[IFC Commodity]] -> IFC Commodity | C2: =IFC_Commodity_CommodityGroup[[#Headers],[IFC Commodity group]] -> IFC Commodity group | D2: Processing intensity | E2: Unique Groups | F2: Ave kWh/kg elec | G2: Ave elec EF kgCO2e/kWh | H2: Ave kWh/kg gas | I2: Ave gas EF kgCO2e/kWh | J2: TOTAL EF kgCO2e/kg | L2: Product | M2: IFC Name | N2: Process | O2: Electricity Energy Consumption (MJ/kg) | P2: Data Source | Q2: Electricity kWh/kg | R2: Commodity Group | T2: Product | U2: Process | V2: Fossil Fuel/ Fuels and heat Energy Consumption (MJ/kg) | W2: Data Source | X2: Natural Gas kWh/kg | Y2: Commodity Group
B3: =IFC_Commodity_CommodityGroup[IFC Commodity] -> Almonds | C3: =IFC_Commodity_CommodityGroup[IFC Commodity group] -> Nuts/Seeds | D3: =ProcessingIntensityRatio_Medium -> 0.5 | E3: Nuts/Seeds | F3: =IF(commodityGroup=CommodityGroupEnergyPerKg[[#This Row],[Unique Groups]], IFERROR(AVERAGEIF(ProcessingElectricity[[#All],[Commodity Group]],CommodityGroupEnergyPerKg[[#This Row],[Unique Groups]],ProcessingElectricity[[#All],[Electricity kWh/kg]]),0)*INDEX($B$2:$D$82,MATCH( IF(commodity="Sunflower oil","Sunflower seeds",IF(commodity="Cotton seed oil","Cotton",commodity)), $B$2:$B$82,0),3), IFERROR(AVERAGEIF(ProcessingElectricity[[#All],[Commodity Group]],CommodityGroupEnergyPerKg[[#This Row],[Unique Groups]],ProcessingElectricity[[#All],[Electricity kWh/kg]]),0)) -> 5.339583761 | G3: =CommodityGroupEnergyPerKg[[#This Row],[Ave kWh/kg elec]]*VLOOKUP(countryOfProcessing,ENERGY,3,FALSE) ->  | H3: =IF(commodityGroup=CommodityGroupEnergyPerKg[[#This Row],[Unique Groups]], IFERROR(AVERAGEIF(ProcessingHeatEnergy[[#All],[Commodity Group]],CommodityGroupEnergyPerKg[[#This Row],[Unique Groups]],ProcessingHeatEnergy[[#All],[Natural Gas kWh/kg]]),0)*INDEX($B$2:$D$82,MATCH( IF(commodity="Sunflower oil","Sunflower seeds",IF(commodity="Cotton seed oil","Cotton",commodity)),$B$2:$B$82,0),3), IFERROR(AVERAGEIF(ProcessingHeatEnergy[[#All],[Commodity Group]],CommodityGroupEnergyPerKg[[#This Row],[Unique Groups]],ProcessingHeatEnergy[[#All],[Natural Gas kWh/kg]]),0)) -> 10.44444528 | I3: =CommodityGroupEnergyPerKg[[#This Row],[Ave kWh/kg gas]]*NaturalGasEF -> 2.402222414 | J3: =SUM(CommodityGroupEnergyPerKg[[#This Row],[Ave elec EF kgCO2e/kWh]]+CommodityGroupEnergyPerKg[[#This Row],[Ave gas EF kgCO2e/kWh]]) ->  | L3: Flour | M3: Flour | N3: Drying | O3: 0.09 | P3: Carlsson-Kanyama and Faist (2000) - 1996 | Q3: =ProcessingElectricity[[#This Row],[Electricity Energy Consumption (MJ/kg)]]*MJtoKWH -> 0.025000002 | R3: =INDEX(C:C,MATCH(ProcessingElectricity[[#This Row],[IFC Name]],B:B,0)) -> Flour | T3: Flour | U3: Drying | V3: 46.8 | W3: Carlsson-Kanyama and Faist (2000) | X3: =ProcessingHeatEnergy[[#This Row],[Fossil Fuel/ Fuels and heat Energy Consumption (MJ/kg)]]*MJtoKWH -> 13.00000104 | Y3: =INDEX(ProcessingElectricity[[#All],[Commodity Group]],MATCH(ProcessingHeatEnergy[[#This Row],[Product]],ProcessingElectricity[[#All],[Product]],0)) -> Flour
B4: Apples | C4: Fruits | D4: =ProcessingIntensityRatio_Low -> 0.1 | E4: Tubers/Root Crops | F4: =IF(commodityGroup=CommodityGroupEnergyPerKg[[#This Row],[Unique Groups]], IFERROR(AVERAGEIF(ProcessingElectricity[[#All],[Commodity Group]],CommodityGroupEnergyPerKg[[#This Row],[Unique Groups]],ProcessingElectricity[[#All],[Electricity kWh/kg]]),0)*INDEX($B$2:$D$82,MATCH( IF(commodity="Sunflower oil","Sunflower seeds",IF(commodity="Cotton seed oil","Cotton",commodity)), $B$2:$B$82,0),3), IFERROR(AVERAGEIF(ProcessingElectricity[[#All],[Commodity Group]],CommodityGroupEnergyPerKg[[#This Row],[Unique Groups]],ProcessingElectricity[[#All],[Electricity kWh/kg]]),0)) -> 3.753623489 | G4: =CommodityGroupEnergyPerKg[[#This Row],[Ave kWh/kg elec]]*VLOOKUP(countryOfProcessing,ENERGY,3,FALSE) ->  | H4: =IF(commodityGroup=CommodityGroupEnergyPerKg[[#This Row],[Unique Groups]], IFERROR(AVERAGEIF(ProcessingHeatEnergy[[#All],[Commodity Group]],CommodityGroupEnergyPerKg[[#This Row],[Unique Groups]],ProcessingHeatEnergy[[#All],[Natural Gas kWh/kg]]),0)*INDEX($B$2:$D$82,MATCH( IF(commodity="Sunflower oil","Sunflower seeds",IF(commodity="Cotton seed oil","Cotton",commodity)),$B$2:$B$82,0),3), IFERROR(AVERAGEIF(ProcessingHeatEnergy[[#All],[Commodity Group]],CommodityGroupEnergyPerKg[[#This Row],[Unique Groups]],ProcessingHeatEnergy[[#All],[Natural Gas kWh/kg]]),0)) -> 3.398611383 | I4: =CommodityGroupEnergyPerKg[[#This Row],[Ave kWh/kg gas]]*NaturalGasEF -> 0.7816806181 | J4: =SUM(CommodityGroupEnergyPerKg[[#This Row],[Ave elec EF kgCO2e/kWh]]+CommodityGroupEnergyPerKg[[#This Row],[Ave gas EF kgCO2e/kWh]]) ->  | L4: Flour | M4: Flour | N4: Milling | O4: 2.58 | P4: Carlsson-Kanyama and Faist (2000) - 1996 | Q4: =ProcessingElectricity[[#This Row],[Electricity Energy Consumption (MJ/kg)]]*MJtoKWH -> 0.716666724 | R4: =INDEX(C:C,MATCH(ProcessingElectricity[[#This Row],[IFC Name]],B:B,0)) -> Flour | T4: Oat Flakes | U4: N/A | V4: 0.5 | W4: Carlsson-Kanyama and Faist (2000) - 1996 | X4: =ProcessingHeatEnergy[[#This Row],[Fossil Fuel/ Fuels and heat Energy Consumption (MJ/kg)]]*MJtoKWH -> 0.1388889 | Y4: =INDEX(ProcessingElectricity[[#All],[Commodity Group]],MATCH(ProcessingHeatEnergy[[#This Row],[Product]],ProcessingElectricity[[#All],[Product]],0)) -> Pulses & Grains
B5: Asparagus | C5: Vegetables | D5: =ProcessingIntensityRatio_Low -> 0.1 | E5: Fruits | F5: =IF(commodityGroup=CommodityGroupEnergyPerKg[[#This Row],[Unique Groups]], IFERROR(AVERAGEIF(ProcessingElectricity[[#All],[Commodity Group]],CommodityGroupEnergyPerKg[[#This Row],[Unique Groups]],ProcessingElectricity[[#All],[Electricity kWh/kg]]),0)*INDEX($B$2:$D$82,MATCH( IF(commodity="Sunflower oil","Sunflower seeds",IF(commodity="Cotton seed oil","Cotton",commodity)), $B$2:$B$82,0),3), IFERROR(AVERAGEIF(ProcessingElectricity[[#All],[Commodity Group]],CommodityGroupEnergyPerKg[[#This Row],[Unique Groups]],ProcessingElectricity[[#All],[Electricity kWh/kg]]),0)) -> 1.945277933 | G5: =CommodityGroupEnergyPerKg[[#This Row],[Ave kWh/kg elec]]*VLOOKUP(countryOfProcessing,ENERGY,3,FALSE) ->  | H5: =IF(commodityGroup=CommodityGroupEnergyPerKg[[#This Row],[Unique Groups]], IFERROR(AVERAGEIF(ProcessingHeatEnergy[[#All],[Commodity Group]],CommodityGroupEnergyPerKg[[#This Row],[Unique Groups]],ProcessingHeatEnergy[[#All],[Natural Gas kWh/kg]]),0)*INDEX($B$2:$D$82,MATCH( IF(commodity="Sunflower oil","Sunflower seeds",IF(commodity="Cotton seed oil","Cotton",commodity)),$B$2:$B$82,0),3), IFERROR(AVERAGEIF(ProcessingHeatEnergy[[#All],[Commodity Group]],CommodityGroupEnergyPerKg[[#This Row],[Unique Groups]],ProcessingHeatEnergy[[#All],[Natural Gas kWh/kg]]),0)) -> 1.330555662 | I5: =CommodityGroupEnergyPerKg[[#This Row],[Ave kWh/kg gas]]*NaturalGasEF -> 0.3060278023 | J5: =SUM(CommodityGroupEnergyPerKg[[#This Row],[Ave elec EF kgCO2e/kWh]]+CommodityGroupEnergyPerKg[[#This Row],[Ave gas EF kgCO2e/kWh]]) ->  | L5: Flour | M5: Flour | N5: Milling | O5: 0.17 | P5: Cleland, Earle and Boag (1981) - 1980 | Q5: =ProcessingElectricity[[#This Row],[Electricity Energy Consumption (MJ/kg)]]*MJtoKWH -> 0.047222226 | R5: =INDEX(C:C,MATCH(ProcessingElectricity[[#This Row],[IFC Name]],B:B,0)) -> Flour | T5: Sugar - Refined | U5: N/A | V5: 5.32 | W5: Wang (2014) - 2001 | X5: =ProcessingHeatEnergy[[#This Row],[Fossil Fuel/ Fuels and heat Energy Consumption (MJ/kg)]]*MJtoKWH -> 1.477777896 | Y5: =INDEX(ProcessingElectricity[[#All],[Commodity Group]],MATCH(ProcessingHeatEnergy[[#This Row],[Product]],ProcessingElectricity[[#All],[Product]],0)) -> Tubers/Root Crops
B6: Avocados | C6: Fruits | D6: =ProcessingIntensityRatio_Low -> 0.1 | E6: Pulses & Grains | F6: =IF(commodityGroup=CommodityGroupEnergyPerKg[[#This Row],[Unique Groups]], IFERROR(AVERAGEIF(ProcessingElectricity[[#All],[Commodity Group]],CommodityGroupEnergyPerKg[[#This Row],[Unique Groups]],ProcessingElectricity[[#All],[Electricity kWh/kg]]),0)*INDEX($B$2:$D$82,MATCH( IF(commodity="Sunflower oil","Sunflower seeds",IF(commodity="Cotton seed oil","Cotton",commodity)), $B$2:$B$82,0),3), IFERROR(AVERAGEIF(ProcessingElectricity[[#All],[Commodity Group]],CommodityGroupEnergyPerKg[[#This Row],[Unique Groups]],ProcessingElectricity[[#All],[Electricity kWh/kg]]),0)) -> 1.683796431 | G6: =CommodityGroupEnergyPerKg[[#This Row],[Ave kWh/kg elec]]*VLOOKUP(countryOfProcessing,ENERGY,3,FALSE) ->  | H6: =IF(commodityGroup=CommodityGroupEnergyPerKg[[#This Row],[Unique Groups]], IFERROR(AVERAGEIF(ProcessingHeatEnergy[[#All],[Commodity Group]],CommodityGroupEnergyPerKg[[#This Row],[Unique Groups]],ProcessingHeatEnergy[[#All],[Natural Gas kWh/kg]]),0)*INDEX($B$2:$D$82,MATCH( IF(commodity="Sunflower oil","Sunflower seeds",IF(commodity="Cotton seed oil","Cotton",commodity)),$B$2:$B$82,0),3), IFERROR(AVERAGEIF(ProcessingHeatEnergy[[#All],[Commodity Group]],CommodityGroupEnergyPerKg[[#This Row],[Unique Groups]],ProcessingHeatEnergy[[#All],[Natural Gas kWh/kg]]),0)) -> 1.076851938 | I6: =CommodityGroupEnergyPerKg[[#This Row],[Ave kWh/kg gas]]*NaturalGasEF -> 0.2476759457 | J6: =SUM(CommodityGroupEnergyPerKg[[#This Row],[Ave elec EF kgCO2e/kWh]]+CommodityGroupEnergyPerKg[[#This Row],[Ave gas EF kgCO2e/kWh]]) ->  | L6: Flour | M6: Flour | N6: N/A | O6: 0.42 | P6: Wang (2014) - 2001 | Q6: =ProcessingElectricity[[#This Row],[Electricity Energy Consumption (MJ/kg)]]*MJtoKWH -> 0.116666676 | R6: =INDEX(C:C,MATCH(ProcessingElectricity[[#This Row],[IFC Name]],B:B,0)) -> Flour | T6: Sugar - cane | U6: N/A | V6: 26 | W6: Carlsson-Kanyama and Faist (2000) - 1986 | X6: =ProcessingHeatEnergy[[#This Row],[Fossil Fuel/ Fuels and heat Energy Consumption (MJ/kg)]]*MJtoKWH -> 7.2222228 | Y6: =INDEX(ProcessingElectricity[[#All],[Commodity Group]],MATCH(ProcessingHeatEnergy[[#This Row],[Product]],ProcessingElectricity[[#All],[Product]],0)) -> Tubers/Root Crops
B7: Bananas | C7: Fruits | D7: =ProcessingIntensityRatio_High -> 1 | E7: Cotton | F7: =IF(commodityGroup=CommodityGroupEnergyPerKg[[#This Row],[Unique Groups]], IFERROR(AVERAGEIF(ProcessingElectricity[[#All],[Commodity Group]],CommodityGroupEnergyPerKg[[#This Row],[Unique Groups]],ProcessingElectricity[[#All],[Electricity kWh/kg]]),0)*INDEX($B$2:$D$82,MATCH( IF(commodity="Sunflower oil","Sunflower seeds",IF(commodity="Cotton seed oil","Cotton",commodity)), $B$2:$B$82,0),3), IFERROR(AVERAGEIF(ProcessingElectricity[[#All],[Commodity Group]],CommodityGroupEnergyPerKg[[#This Row],[Unique Groups]],ProcessingElectricity[[#All],[Electricity kWh/kg]]),0)) -> 24.83333532 | G7: =CommodityGroupEnergyPerKg[[#This Row],[Ave kWh/kg elec]]*VLOOKUP(countryOfProcessing,ENERGY,3,FALSE) ->  | H7: =IF(commodityGroup=CommodityGroupEnergyPerKg[[#This Row],[Unique Groups]], IFERROR(AVERAGEIF(ProcessingHeatEnergy[[#All],[Commodity Group]],CommodityGroupEnergyPerKg[[#This Row],[Unique Groups]],ProcessingHeatEnergy[[#All],[Natural Gas kWh/kg]]),0)*INDEX($B$2:$D$82,MATCH( IF(commodity="Sunflower oil","Sunflower seeds",IF(commodity="Cotton seed oil","Cotton",commodity)),$B$2:$B$82,0),3), IFERROR(AVERAGEIF(ProcessingHeatEnergy[[#All],[Commodity Group]],CommodityGroupEnergyPerKg[[#This Row],[Unique Groups]],ProcessingHeatEnergy[[#All],[Natural Gas kWh/kg]]),0)) -> 0 | I7: =CommodityGroupEnergyPerKg[[#This Row],[Ave kWh/kg gas]]*NaturalGasEF -> 0 | J7: =SUM(CommodityGroupEnergyPerKg[[#This Row],[Ave elec EF kgCO2e/kWh]]+CommodityGroupEnergyPerKg[[#This Row],[Ave gas EF kgCO2e/kWh]]) ->  | L7: Oat Flakes | M7: Oats | N7: N/A | O7: 0.3 | P7: Carlsson-Kanyama and Faist (2000) - 1996 | Q7: =ProcessingElectricity[[#This Row],[Electricity Energy Consumption (MJ/kg)]]*MJtoKWH -> 0.08333334 | R7: =INDEX(C:C,MATCH(ProcessingElectricity[[#This Row],[IFC Name]],B:B,0)) -> Pulses & Grains | T7: Fruits and Vegetables Canned | U7: N/A | V7: 2.54 | W7: Carlsson-Kanyama and Faist (2000) - 1986 | X7: =ProcessingHeatEnergy[[#This Row],[Fossil Fuel/ Fuels and heat Energy Consumption (MJ/kg)]]*MJtoKWH -> 0.705555612 | Y7: =INDEX(ProcessingElectricity[[#All],[Commodity Group]],MATCH(ProcessingHeatEnergy[[#This Row],[Product]],ProcessingElectricity[[#All],[Product]],0)) -> Vegetables
B8: Barley | C8: Pulses & Grains | D8: =ProcessingIntensityRatio_High -> 1 | E8: Animal Protein | F8: =IF(commodityGroup=CommodityGroupEnergyPerKg[[#This Row],[Unique Groups]], IFERROR(AVERAGEIF(ProcessingElectricity[[#All],[Commodity Group]],CommodityGroupEnergyPerKg[[#This Row],[Unique Groups]],ProcessingElectricity[[#All],[Electricity kWh/kg]]),0)*INDEX($B$2:$D$82,MATCH( IF(commodity="Sunflower oil","Sunflower seeds",IF(commodity="Cotton seed oil","Cotton",commodity)), $B$2:$B$82,0),3), IFERROR(AVERAGEIF(ProcessingElectricity[[#All],[Commodity Group]],CommodityGroupEnergyPerKg[[#This Row],[Unique Groups]],ProcessingElectricity[[#All],[Electricity kWh/kg]]),0)) -> 1.649498589 | G8: =CommodityGroupEnergyPerKg[[#This Row],[Ave kWh/kg elec]]*VLOOKUP(countryOfProcessing,ENERGY,3,FALSE) ->  | H8: =IF(commodityGroup=CommodityGroupEnergyPerKg[[#This Row],[Unique Groups]], IFERROR(AVERAGEIF(ProcessingHeatEnergy[[#All],[Commodity Group]],CommodityGroupEnergyPerKg[[#This Row],[Unique Groups]],ProcessingHeatEnergy[[#All],[Natural Gas kWh/kg]]),0)*INDEX($B$2:$D$82,MATCH( IF(commodity="Sunflower oil","Sunflower seeds",IF(commodity="Cotton seed oil","Cotton",commodity)),$B$2:$B$82,0),3), IFERROR(AVERAGEIF(ProcessingHeatEnergy[[#All],[Commodity Group]],CommodityGroupEnergyPerKg[[#This Row],[Unique Groups]],ProcessingHeatEnergy[[#All],[Natural Gas kWh/kg]]),0)) -> 1.654700987 | I8: =CommodityGroupEnergyPerKg[[#This Row],[Ave kWh/kg gas]]*NaturalGasEF -> 0.380581227 | J8: =SUM(CommodityGroupEnergyPerKg[[#This Row],[Ave elec EF kgCO2e/kWh]]+CommodityGroupEnergyPerKg[[#This Row],[Ave gas EF kgCO2e/kWh]]) ->  | L8: Rice | M8: Rice | N8: Processing | O8: 0.43 | P8: Lillywhite et al. (2013) | Q8: =ProcessingElectricity[[#This Row],[Electricity Energy Consumption (MJ/kg)]]*MJtoKWH -> 0.119444454 | R8: =INDEX(C:C,MATCH(ProcessingElectricity[[#This Row],[IFC Name]],B:B,0)) -> Pulses & Grains | T8: Fruits and Vegetables Dried | U8: N/A | V8: 4.5 | W8: Wang (2014) - 2001 | X8: =ProcessingHeatEnergy[[#This Row],[Fossil Fuel/ Fuels and heat Energy Consumption (MJ/kg)]]*MJtoKWH -> 1.2500001 | Y8: =INDEX(ProcessingElectricity[[#All],[Commodity Group]],MATCH(ProcessingHeatEnergy[[#This Row],[Product]],ProcessingElectricity[[#All],[Product]],0)) -> Vegetables
B9: Beans | C9: Pulses & Grains | D9: =ProcessingIntensityRatio_High -> 1 | E9: Flour | F9: =IF(commodityGroup=CommodityGroupEnergyPerKg[[#This Row],[Unique Groups]], IFERROR(AVERAGEIF(ProcessingElectricity[[#All],[Commodity Group]],CommodityGroupEnergyPerKg[[#This Row],[Unique Groups]],ProcessingElectricity[[#All],[Electricity kWh/kg]]),0)*INDEX($B$2:$D$82,MATCH( IF(commodity="Sunflower oil","Sunflower seeds",IF(commodity="Cotton seed oil","Cotton",commodity)), $B$2:$B$82,0),3), IFERROR(AVERAGEIF(ProcessingElectricity[[#All],[Commodity Group]],CommodityGroupEnergyPerKg[[#This Row],[Unique Groups]],ProcessingElectricity[[#All],[Electricity kWh/kg]]),0)) -> 0.226388907 | G9: =CommodityGroupEnergyPerKg[[#This Row],[Ave kWh/kg elec]]*VLOOKUP(countryOfProcessing,ENERGY,3,FALSE) ->  | H9: =IF(commodityGroup=CommodityGroupEnergyPerKg[[#This Row],[Unique Groups]], IFERROR(AVERAGEIF(ProcessingHeatEnergy[[#All],[Commodity Group]],CommodityGroupEnergyPerKg[[#This Row],[Unique Groups]],ProcessingHeatEnergy[[#All],[Natural Gas kWh/kg]]),0)*INDEX($B$2:$D$82,MATCH( IF(commodity="Sunflower oil","Sunflower seeds",IF(commodity="Cotton seed oil","Cotton",commodity)),$B$2:$B$82,0),3), IFERROR(AVERAGEIF(ProcessingHeatEnergy[[#All],[Commodity Group]],CommodityGroupEnergyPerKg[[#This Row],[Unique Groups]],ProcessingHeatEnergy[[#All],[Natural Gas kWh/kg]]),0)) -> 13.00000104 | I9: =CommodityGroupEnergyPerKg[[#This Row],[Ave kWh/kg gas]]*NaturalGasEF -> 2.990000239 | J9: =SUM(CommodityGroupEnergyPerKg[[#This Row],[Ave elec EF kgCO2e/kWh]]+CommodityGroupEnergyPerKg[[#This Row],[Ave gas EF kgCO2e/kWh]]) ->  | L9: Cocoa butter | M9: Cocoa | N9: N/A | O9: 0.67 | P9: Wojdalski et al. (2015) - 1986 | Q9: =ProcessingElectricity[[#This Row],[Electricity Energy Consumption (MJ/kg)]]*MJtoKWH -> 0.186111126 | R9: =INDEX(C:C,MATCH(ProcessingElectricity[[#This Row],[IFC Name]],B:B,0)) -> Nuts/Seeds | T9: Fruits and Vegetables Frozen | U9: N/A | V9: 1.8 | W9: Wang (2014) - 2001 | X9: =ProcessingHeatEnergy[[#This Row],[Fossil Fuel/ Fuels and heat Energy Consumption (MJ/kg)]]*MJtoKWH -> 0.50000004 | Y9: =INDEX(ProcessingElectricity[[#All],[Commodity Group]],MATCH(ProcessingHeatEnergy[[#This Row],[Product]],ProcessingElectricity[[#All],[Product]],0)) -> Vegetables
B10: Blueberries | C10: Fruits | D10: =ProcessingIntensityRatio_High -> 1 | E10: Vegetables | F10: =IF(commodityGroup=CommodityGroupEnergyPerKg[[#This Row],[Unique Groups]], IFERROR(AVERAGEIF(ProcessingElectricity[[#All],[Commodity Group]],CommodityGroupEnergyPerKg[[#This Row],[Unique Groups]],ProcessingElectricity[[#All],[Electricity kWh/kg]]),0)*INDEX($B$2:$D$82,MATCH( IF(commodity="Sunflower oil","Sunflower seeds",IF(commodity="Cotton seed oil","Cotton",commodity)), $B$2:$B$82,0),3), IFERROR(AVERAGEIF(ProcessingElectricity[[#All],[Commodity Group]],CommodityGroupEnergyPerKg[[#This Row],[Unique Groups]],ProcessingElectricity[[#All],[Electricity kWh/kg]]),0)) -> 0.3623737664 | G10: =CommodityGroupEnergyPerKg[[#This Row],[Ave kWh/kg elec]]*VLOOKUP(countryOfProcessing,ENERGY,3,FALSE) ->  | H10: =IF(commodityGroup=CommodityGroupEnergyPerKg[[#This Row],[Unique Groups]], IFERROR(AVERAGEIF(ProcessingHeatEnergy[[#All],[Commodity Group]],CommodityGroupEnergyPerKg[[#This Row],[Unique Groups]],ProcessingHeatEnergy[[#All],[Natural Gas kWh/kg]]),0)*INDEX($B$2:$D$82,MATCH( IF(commodity="Sunflower oil","Sunflower seeds",IF(commodity="Cotton seed oil","Cotton",commodity)),$B$2:$B$82,0),3), IFERROR(AVERAGEIF(ProcessingHeatEnergy[[#All],[Commodity Group]],CommodityGroupEnergyPerKg[[#This Row],[Unique Groups]],ProcessingHeatEnergy[[#All],[Natural Gas kWh/kg]]),0)) -> 2.696666882 | I10: =CommodityGroupEnergyPerKg[[#This Row],[Ave kWh/kg gas]]*NaturalGasEF -> 0.620233383 | J10: =SUM(CommodityGroupEnergyPerKg[[#This Row],[Ave elec EF kgCO2e/kWh]]+CommodityGroupEnergyPerKg[[#This Row],[Ave gas EF kgCO2e/kWh]]) ->  | L10: Sugar - Refined | M10: Sugar cane | N10: N/A | O10: 0.56 | P10: Wang (2014) -2001 | Q10: =ProcessingElectricity[[#This Row],[Electricity Energy Consumption (MJ/kg)]]*MJtoKWH -> 0.155555568 | R10: =INDEX(C:C,MATCH(ProcessingElectricity[[#This Row],[IFC Name]],B:B,0)) -> Tubers/Root Crops | T10: Tomato Juice | U10: N/A | V10: 4.79 | W10: Wang (2014) - 2002 | X10: =ProcessingHeatEnergy[[#This Row],[Fossil Fuel/ Fuels and heat Energy Consumption (MJ/kg)]]*MJtoKWH -> 1.330555662 | Y10: =INDEX(ProcessingElectricity[[#All],[Commodity Group]],MATCH(ProcessingHeatEnergy[[#This Row],[Product]],ProcessingElectricity[[#All],[Product]],0)) -> Fruits
B11: Broccoli | C11: Vegetables | D11: =ProcessingIntensityRatio_Low -> 0.1 | E11: Mycoprotein | F11: =IF(commodityGroup=CommodityGroupEnergyPerKg[[#This Row],[Unique Groups]], IFERROR(AVERAGEIF(ProcessingElectricity[[#All],[Commodity Group]],CommodityGroupEnergyPerKg[[#This Row],[Unique Groups]],ProcessingElectricity[[#All],[Electricity kWh/kg]]),0)*INDEX($B$2:$D$82,MATCH( IF(commodity="Sunflower oil","Sunflower seeds",IF(commodity="Cotton seed oil","Cotton",commodity)), $B$2:$B$82,0),3), IFERROR(AVERAGEIF(ProcessingElectricity[[#All],[Commodity Group]],CommodityGroupEnergyPerKg[[#This Row],[Unique Groups]],ProcessingElectricity[[#All],[Electricity kWh/kg]]),0)) -> 0.80555562 | G11: =CommodityGroupEnergyPerKg[[#This Row],[Ave kWh/kg elec]]*VLOOKUP(countryOfProcessing,ENERGY,3,FALSE) ->  | H11: =IF(commodityGroup=CommodityGroupEnergyPerKg[[#This Row],[Unique Groups]], IFERROR(AVERAGEIF(ProcessingHeatEnergy[[#All],[Commodity Group]],CommodityGroupEnergyPerKg[[#This Row],[Unique Groups]],ProcessingHeatEnergy[[#All],[Natural Gas kWh/kg]]),0)*INDEX($B$2:$D$82,MATCH( IF(commodity="Sunflower oil","Sunflower seeds",IF(commodity="Cotton seed oil","Cotton",commodity)),$B$2:$B$82,0),3), IFERROR(AVERAGEIF(ProcessingHeatEnergy[[#All],[Commodity Group]],CommodityGroupEnergyPerKg[[#This Row],[Unique Groups]],ProcessingHeatEnergy[[#All],[Natural Gas kWh/kg]]),0)) -> 0 | I11: =CommodityGroupEnergyPerKg[[#This Row],[Ave kWh/kg gas]]*NaturalGasEF -> 0 | J11: =SUM(CommodityGroupEnergyPerKg[[#This Row],[Ave elec EF kgCO2e/kWh]]+CommodityGroupEnergyPerKg[[#This Row],[Ave gas EF kgCO2e/kWh]]) ->  | L11: Sugar - Refined | M11: Sugar cane | N11: N/A | O11: 0.17 | P11: Cleland, Earle and Boag (1981) - 1980 | Q11: =ProcessingElectricity[[#This Row],[Electricity Energy Consumption (MJ/kg)]]*MJtoKWH -> 0.047222226 | R11: =INDEX(C:C,MATCH(ProcessingElectricity[[#This Row],[IFC Name]],B:B,0)) -> Tubers/Root Crops | T11: Potato Chips | U11: N/A | V11: 15 | W11: Carlsson-Kanyama and Faist (2000) - 1988 | X11: =ProcessingHeatEnergy[[#This Row],[Fossil Fuel/ Fuels and heat Energy Consumption (MJ/kg)]]*MJtoKWH -> 4.166667 | Y11: =INDEX(ProcessingElectricity[[#All],[Commodity Group]],MATCH(ProcessingHeatEnergy[[#This Row],[Product]],ProcessingElectricity[[#All],[Product]],0)) -> Tubers/Root Crops
B12: Buckwheat | C12: Pulses & Grains | D12: =ProcessingIntensityRatio_High -> 1 | L12: Sugar - from Sugar Cane | M12: Sugar cane | N12: N/A | O12: 0.36 | P12: Carlsson-Kanyama and Faist (2000) - 1986 | Q12: =ProcessingElectricity[[#This Row],[Electricity Energy Consumption (MJ/kg)]]*MJtoKWH -> 0.100000008 | R12: =INDEX(C:C,MATCH(ProcessingElectricity[[#This Row],[IFC Name]],B:B,0)) -> Tubers/Root Crops | T12: Potato Chips | U12: N/A | V12: 13 | W12: Andersson, Ohlsson and Olsson (1998) | X12: =ProcessingHeatEnergy[[#This Row],[Fossil Fuel/ Fuels and heat Energy Consumption (MJ/kg)]]*MJtoKWH -> 3.6111114 | Y12: =INDEX(ProcessingElectricity[[#All],[Commodity Group]],MATCH(ProcessingHeatEnergy[[#This Row],[Product]],ProcessingElectricity[[#All],[Product]],0)) -> Tubers/Root Crops
B13: Butter | C13: Animal Protein | D13: =ProcessingIntensityRatio_Low -> 0.1 | L13: Sugar - cane | M13: Sugar cane | N13: N/A | O13: 0.36 | P13: Carlsson-Kanyama and Faist (2000) - 1986 | Q13: =ProcessingElectricity[[#This Row],[Electricity Energy Consumption (MJ/kg)]]*MJtoKWH -> 0.100000008 | R13: =INDEX(C:C,MATCH(ProcessingElectricity[[#This Row],[IFC Name]],B:B,0)) -> Tubers/Root Crops | T13: Potato Chips | U13: N/A | V13: 11 | W13: Andersson, Ohlsson and Olsson (1998) | X13: =ProcessingHeatEnergy[[#This Row],[Fossil Fuel/ Fuels and heat Energy Consumption (MJ/kg)]]*MJtoKWH -> 3.0555558 | Y13: =INDEX(ProcessingElectricity[[#All],[Commodity Group]],MATCH(ProcessingHeatEnergy[[#This Row],[Product]],ProcessingElectricity[[#All],[Product]],0)) -> Tubers/Root Crops
B14: Carrots | C14: Tubers/Root Crops | D14: =ProcessingIntensityRatio_Medium -> 0.5 | E14: Processing selecting user defined or default data | L14: Sugar - cane | M14: Sugar cane | N14: N/A | O14: 14.1 | P14: Hendrickson (1996)- 1979 | Q14: =ProcessingElectricity[[#This Row],[Electricity Energy Consumption (MJ/kg)]]*MJtoKWH -> 3.91666698 | R14: =INDEX(C:C,MATCH(ProcessingElectricity[[#This Row],[IFC Name]],B:B,0)) -> Tubers/Root Crops | T14: Potato Chips | U14: N/A | V14: 15.7 | W14: Cleland, Earle and Boag (1981) - 1980 | X14: =ProcessingHeatEnergy[[#This Row],[Fossil Fuel/ Fuels and heat Energy Consumption (MJ/kg)]]*MJtoKWH -> 4.36111146 | Y14: =INDEX(ProcessingElectricity[[#All],[Commodity Group]],MATCH(ProcessingHeatEnergy[[#This Row],[Product]],ProcessingElectricity[[#All],[Product]],0)) -> Tubers/Root Crops
B15: Cashew nuts | C15: Nuts/Seeds | D15: =ProcessingIntensityRatio_Low -> 0.1 | E15: Unique Groups | F15: Ave kWh/kg elec | G15: Ave elec EF kgCO2e/kWh | H15: Ave kWh/kg gas | I15: Ave gas EF kgCO2e/kWh | J15: Current EF kgCO2e/kg | L15: Sugar - cane raw | M15: Sugar cane | N15: N/A | O15: 0.44 | P15: Van Alfen (2014) - 1986 | Q15: =ProcessingElectricity[[#This Row],[Electricity Energy Consumption (MJ/kg)]]*MJtoKWH -> 0.122222232 | R15: =INDEX(C:C,MATCH(ProcessingElectricity[[#This Row],[IFC Name]],B:B,0)) -> Tubers/Root Crops | T15: Potato French Fries | U15: N/A | V15: 8.3 | W15: Andersson, Ohlsson and Olsson (1998) - 1996 | X15: =ProcessingHeatEnergy[[#This Row],[Fossil Fuel/ Fuels and heat Energy Consumption (MJ/kg)]]*MJtoKWH -> 2.30555574 | Y15: =INDEX(ProcessingElectricity[[#All],[Commodity Group]],MATCH(ProcessingHeatEnergy[[#This Row],[Product]],ProcessingElectricity[[#All],[Product]],0)) -> Tubers/Root Crops
B16: Cassava | C16: Tubers/Root Crops | D16: =ProcessingIntensityRatio_High -> 1 | E16: Nuts/Seeds | F16: =IF(OR(processingUserElec<=0,processingUserElec=F3),F3,processingUserElec) -> 5.339583761 | G16: =CommodityGroupUserOrDefaultEnergyData[[#This Row],[Ave kWh/kg elec]]*VLOOKUP(countryOfProcessing,ENERGY,3,FALSE) ->  | H16: =IF(OR(processingUserGas<=0,processingUserGas=H3),H3,processingUserGas) -> 10.44444528 | I16: =CommodityGroupUserOrDefaultEnergyData[[#This Row],[Ave kWh/kg gas]]*NaturalGasEF -> 2.402222414 | J16: =IF(OR(processingUserElec<>F3,processingUserGas<>H3),SUM(CommodityGroupUserOrDefaultEnergyData[[#This Row],[Ave elec EF kgCO2e/kWh]]+CommodityGroupUserOrDefaultEnergyData[[#This Row],[Ave gas EF kgCO2e/kWh]]),SUM(CommodityGroupUserOrDefaultEnergyData[[#This Row],[Ave elec EF kgCO2e/kWh]]+CommodityGroupUserOrDefaultEnergyData[[#This Row],[Ave gas EF kgCO2e/kWh]])) ->  | L16: Apple - Fresh | M16: Apples | N16: tranport, processing and distribution | O16: 5.11 | P16: Stanhill (1984) | Q16: =ProcessingElectricity[[#This Row],[Electricity Energy Consumption (MJ/kg)]]*MJtoKWH -> 1.419444558 | R16: =INDEX(C:C,MATCH(ProcessingElectricity[[#This Row],[IFC Name]],B:B,0)) -> Fruits | T16: Starch Maize | U16: N/A | V16: 2.33 | W16: Wang (2014) - 2001 | X16: =ProcessingHeatEnergy[[#This Row],[Fossil Fuel/ Fuels and heat Energy Consumption (MJ/kg)]]*MJtoKWH -> 0.647222274 | Y16: =INDEX(ProcessingElectricity[[#All],[Commodity Group]],MATCH(ProcessingHeatEnergy[[#This Row],[Product]],ProcessingElectricity[[#All],[Product]],0)) -> Pulses & Grains
B17: Catfish | C17: Animal Protein | D17: =ProcessingIntensityRatio_High -> 1 | E17: Tubers/Root Crops | F17: 3.753623489 | G17: =CommodityGroupUserOrDefaultEnergyData[[#This Row],[Ave kWh/kg elec]]*VLOOKUP(countryOfProcessing,ENERGY,3,FALSE) ->  | H17: 3.398611383 | I17: =CommodityGroupUserOrDefaultEnergyData[[#This Row],[Ave kWh/kg gas]]*NaturalGasEF -> 0.7816806181 | J17: =IF(OR(processingUserElec<>F4,processingUserGas<>H4),SUM(CommodityGroupUserOrDefaultEnergyData[[#This Row],[Ave elec EF kgCO2e/kWh]]+CommodityGroupUserOrDefaultEnergyData[[#This Row],[Ave gas EF kgCO2e/kWh]]),SUM(CommodityGroupUserOrDefaultEnergyData[[#This Row],[Ave elec EF kgCO2e/kWh]]+CommodityGroupUserOrDefaultEnergyData[[#This Row],[Ave gas EF kgCO2e/kWh]])) ->  | L17: Apple | M17: Apples | N17: Packaging | O17: 0.05 | P17: Lillywhite et al. (2013) | Q17: =ProcessingElectricity[[#This Row],[Electricity Energy Consumption (MJ/kg)]]*MJtoKWH -> 0.01388889 | R17: =INDEX(C:C,MATCH(ProcessingElectricity[[#This Row],[IFC Name]],B:B,0)) -> Fruits | T17: Starch Wheat | U17: N/A | V17: 8.8 | W17: Wang (2014) - 2001 | X17: =ProcessingHeatEnergy[[#This Row],[Fossil Fuel/ Fuels and heat Energy Consumption (MJ/kg)]]*MJtoKWH -> 2.44444464 | Y17: =INDEX(ProcessingElectricity[[#All],[Commodity Group]],MATCH(ProcessingHeatEnergy[[#This Row],[Product]],ProcessingElectricity[[#All],[Product]],0)) -> Pulses & Grains
B18: Cheese | C18: Animal Protein | D18: =ProcessingIntensityRatio_Low -> 0.1 | E18: Fruits | F18: 1.945277933 | G18: =CommodityGroupUserOrDefaultEnergyData[[#This Row],[Ave kWh/kg elec]]*VLOOKUP(countryOfProcessing,ENERGY,3,FALSE) ->  | H18: 1.330555662 | I18: =CommodityGroupUserOrDefaultEnergyData[[#This Row],[Ave kWh/kg gas]]*NaturalGasEF -> 0.3060278023 | J18: =IF(OR(processingUserElec<>F5,processingUserGas<>H5),SUM(CommodityGroupUserOrDefaultEnergyData[[#This Row],[Ave elec EF kgCO2e/kWh]]+CommodityGroupUserOrDefaultEnergyData[[#This Row],[Ave gas EF kgCO2e/kWh]]),SUM(CommodityGroupUserOrDefaultEnergyData[[#This Row],[Ave elec EF kgCO2e/kWh]]+CommodityGroupUserOrDefaultEnergyData[[#This Row],[Ave gas EF kgCO2e/kWh]])) ->  | L18: Apple Frozen | M18: Apples | N18: N/A | O18: 21.4 | P18: Hendrickson (1996) - 1975-77 | Q18: =ProcessingElectricity[[#This Row],[Electricity Energy Consumption (MJ/kg)]]*MJtoKWH -> 5.94444492 | R18: =INDEX(C:C,MATCH(ProcessingElectricity[[#This Row],[IFC Name]],B:B,0)) -> Fruits | T18: Starch Potato | U18: N/A | V18: 3.56 | W18: Wang (2014) - 2002 | X18: =ProcessingHeatEnergy[[#This Row],[Fossil Fuel/ Fuels and heat Energy Consumption (MJ/kg)]]*MJtoKWH -> 0.988888968 | Y18: =INDEX(ProcessingElectricity[[#All],[Commodity Group]],MATCH(ProcessingHeatEnergy[[#This Row],[Product]],ProcessingElectricity[[#All],[Product]],0)) -> Tubers/Root Crops
B19: Cherries | C19: Fruits | D19: =ProcessingIntensityRatio_Medium -> 0.5 | E19: Pulses & Grains | F19: 1.683796431 | G19: =CommodityGroupUserOrDefaultEnergyData[[#This Row],[Ave kWh/kg elec]]*VLOOKUP(countryOfProcessing,ENERGY,3,FALSE) ->  | H19: 1.076851938 | I19: =CommodityGroupUserOrDefaultEnergyData[[#This Row],[Ave kWh/kg gas]]*NaturalGasEF -> 0.2476759457 | J19: =IF(OR(processingUserElec<>F6,processingUserGas<>H6),SUM(CommodityGroupUserOrDefaultEnergyData[[#This Row],[Ave elec EF kgCO2e/kWh]]+CommodityGroupUserOrDefaultEnergyData[[#This Row],[Ave gas EF kgCO2e/kWh]]),SUM(CommodityGroupUserOrDefaultEnergyData[[#This Row],[Ave elec EF kgCO2e/kWh]]+CommodityGroupUserOrDefaultEnergyData[[#This Row],[Ave gas EF kgCO2e/kWh]])) ->  | L19: Apple Canned | M19: Apples | N19: N/A | O19: 0.93 | P19: Hendrickson (1996) - 1975-78 | Q19: =ProcessingElectricity[[#This Row],[Electricity Energy Consumption (MJ/kg)]]*MJtoKWH -> 0.258333354 | R19: =INDEX(C:C,MATCH(ProcessingElectricity[[#This Row],[IFC Name]],B:B,0)) -> Fruits | T19: Vegetables Dehydrated | U19: N/A | V19: 38 | W19: Cleland, Earle and Boag (1981) - 1980 | X19: =ProcessingHeatEnergy[[#This Row],[Fossil Fuel/ Fuels and heat Energy Consumption (MJ/kg)]]*MJtoKWH -> 10.5555564 | Y19: =INDEX(ProcessingElectricity[[#All],[Commodity Group]],MATCH(ProcessingHeatEnergy[[#This Row],[Product]],ProcessingElectricity[[#All],[Product]],0)) -> Vegetables
B20: Chickpeas | C20: Pulses & Grains | D20: =ProcessingIntensityRatio_Low -> 0.1 | E20: Cotton | F20: 24.83333532 | G20: =CommodityGroupUserOrDefaultEnergyData[[#This Row],[Ave kWh/kg elec]]*VLOOKUP(countryOfProcessing,ENERGY,3,FALSE) ->  | H20: 0 | I20: =CommodityGroupUserOrDefaultEnergyData[[#This Row],[Ave kWh/kg gas]]*NaturalGasEF -> 0 | J20: =IF(OR(processingUserElec<>F7,processingUserGas<>H7),SUM(CommodityGroupUserOrDefaultEnergyData[[#This Row],[Ave elec EF kgCO2e/kWh]]+CommodityGroupUserOrDefaultEnergyData[[#This Row],[Ave gas EF kgCO2e/kWh]]),SUM(CommodityGroupUserOrDefaultEnergyData[[#This Row],[Ave elec EF kgCO2e/kWh]]+CommodityGroupUserOrDefaultEnergyData[[#This Row],[Ave gas EF kgCO2e/kWh]])) ->  | L20: Apple Dehydrated | M20: Apples | N20: N/A | O20: 53.96 | P20: Hendrickson (1996) - 1975-79 | Q20: =ProcessingElectricity[[#This Row],[Electricity Energy Consumption (MJ/kg)]]*MJtoKWH -> 14.98889009 | R20: =INDEX(C:C,MATCH(ProcessingElectricity[[#This Row],[IFC Name]],B:B,0)) -> Fruits | T20: Vegetables Frozen | U20: Includes refridgerated storage after processing but prior to distribution | V20: 1.7 | W20: Cleland, Earle and Boag (1981) - 1981 | X20: =ProcessingHeatEnergy[[#This Row],[Fossil Fuel/ Fuels and heat Energy Consumption (MJ/kg)]]*MJtoKWH -> 0.47222226 | Y20: =INDEX(ProcessingElectricity[[#All],[Commodity Group]],MATCH(ProcessingHeatEnergy[[#This Row],[Product]],ProcessingElectricity[[#All],[Product]],0)) -> Vegetables
B21: Cocoa | C21: Nuts/Seeds | D21: =ProcessingIntensityRatio_High -> 1 | E21: Animal Protein | F21: 1.649498589 | G21: =CommodityGroupUserOrDefaultEnergyData[[#This Row],[Ave kWh/kg elec]]*VLOOKUP(countryOfProcessing,ENERGY,3,FALSE) ->  | H21: 1.654700987 | I21: =CommodityGroupUserOrDefaultEnergyData[[#This Row],[Ave kWh/kg gas]]*NaturalGasEF -> 0.380581227 | J21: =IF(OR(processingUserElec<>F8,processingUserGas<>H8),SUM(CommodityGroupUserOrDefaultEnergyData[[#This Row],[Ave elec EF kgCO2e/kWh]]+CommodityGroupUserOrDefaultEnergyData[[#This Row],[Ave gas EF kgCO2e/kWh]]),SUM(CommodityGroupUserOrDefaultEnergyData[[#This Row],[Ave elec EF kgCO2e/kWh]]+CommodityGroupUserOrDefaultEnergyData[[#This Row],[Ave gas EF kgCO2e/kWh]])) ->  | L21: Soy Beans | M21: Soybeans | N21: N/A | O21: 3.2 | P21: Carlsson-Kanyama and Faist (2000) - 1998 | Q21: =ProcessingElectricity[[#This Row],[Electricity Energy Consumption (MJ/kg)]]*MJtoKWH -> 0.88888896 | R21: =INDEX(C:C,MATCH(ProcessingElectricity[[#This Row],[IFC Name]],B:B,0)) -> Pulses & Grains | T21: Butter | U21: N/A | V21: 1.29 | W21: Wang (2014) - 2001 | X21: =ProcessingHeatEnergy[[#This Row],[Fossil Fuel/ Fuels and heat Energy Consumption (MJ/kg)]]*MJtoKWH -> 0.358333362 | Y21: =INDEX(ProcessingElectricity[[#All],[Commodity Group]],MATCH(ProcessingHeatEnergy[[#This Row],[Product]],ProcessingElectricity[[#All],[Product]],0)) -> Animal Protein
B22: Coconuts | C22: Nuts/Seeds | D22: =ProcessingIntensityRatio_High -> 1 | E22: Flour | F22: 0.226388907 | G22: =CommodityGroupUserOrDefaultEnergyData[[#This Row],[Ave kWh/kg elec]]*VLOOKUP(countryOfProcessing,ENERGY,3,FALSE) ->  | H22: 13.00000104 | I22: =CommodityGroupUserOrDefaultEnergyData[[#This Row],[Ave kWh/kg gas]]*NaturalGasEF -> 2.990000239 | J22: =IF(OR(processingUserElec<>F9,processingUserGas<>H9),SUM(CommodityGroupUserOrDefaultEnergyData[[#This Row],[Ave elec EF kgCO2e/kWh]]+CommodityGroupUserOrDefaultEnergyData[[#This Row],[Ave gas EF kgCO2e/kWh]]),SUM(CommodityGroupUserOrDefaultEnergyData[[#This Row],[Ave elec EF kgCO2e/kWh]]+CommodityGroupUserOrDefaultEnergyData[[#This Row],[Ave gas EF kgCO2e/kWh]])) ->  | L22: Beet pulp | N22: N/A | O22: 0.01 | P22: Wang (2014) - 2001 | Q22: =ProcessingElectricity[[#This Row],[Electricity Energy Consumption (MJ/kg)]]*MJtoKWH -> 0.002777778 | R22: Vegetables | T22: Butter | U22: N/A | V22: 3.52 | W22: Cox and Miller (1986) - 1981 | X22: =ProcessingHeatEnergy[[#This Row],[Fossil Fuel/ Fuels and heat Energy Consumption (MJ/kg)]]*MJtoKWH -> 0.977777856 | Y22: =INDEX(ProcessingElectricity[[#All],[Commodity Group]],MATCH(ProcessingHeatEnergy[[#This Row],[Product]],ProcessingElectricity[[#All],[Product]],0)) -> Animal Protein
B23: Coffee | C23: Nuts/Seeds | D23: =ProcessingIntensityRatio_High -> 1 | E23: Vegetables | F23: 0.3623737664 | G23: =CommodityGroupUserOrDefaultEnergyData[[#This Row],[Ave kWh/kg elec]]*VLOOKUP(countryOfProcessing,ENERGY,3,FALSE) ->  | H23: 2.696666882 | I23: =CommodityGroupUserOrDefaultEnergyData[[#This Row],[Ave kWh/kg gas]]*NaturalGasEF -> 0.620233383 | J23: =IF(OR(processingUserElec<>F10,processingUserGas<>H10),SUM(CommodityGroupUserOrDefaultEnergyData[[#This Row],[Ave elec EF kgCO2e/kWh]]+CommodityGroupUserOrDefaultEnergyData[[#This Row],[Ave gas EF kgCO2e/kWh]]),SUM(CommodityGroupUserOrDefaultEnergyData[[#This Row],[Ave elec EF kgCO2e/kWh]]+CommodityGroupUserOrDefaultEnergyData[[#This Row],[Ave gas EF kgCO2e/kWh]])) ->  | L23: Carrot - Primary energy | M23: Carrots | N23: Processing and storage | O23: 0.23 | P23: Van Hauwermeiren et al. (2007) | Q23: =ProcessingElectricity[[#This Row],[Electricity Energy Consumption (MJ/kg)]]*MJtoKWH -> 0.063888894 | R23: =INDEX(C:C,MATCH(ProcessingElectricity[[#This Row],[IFC Name]],B:B,0)) -> Tubers/Root Crops | T23: Butter | U23: N/A | V23: 4.27 | W23: Cox and Miller (1986) - 1979 | X23: =ProcessingHeatEnergy[[#This Row],[Fossil Fuel/ Fuels and heat Energy Consumption (MJ/kg)]]*MJtoKWH -> 1.186111206 | Y23: =INDEX(ProcessingElectricity[[#All],[Commodity Group]],MATCH(ProcessingHeatEnergy[[#This Row],[Product]],ProcessingElectricity[[#All],[Product]],0)) -> Animal Protein
B24: Cotton | C24: Cotton | D24: =ProcessingIntensityRatio_High -> 1 | E24: Mycoprotein | F24: 0.80555562 | G24: =CommodityGroupUserOrDefaultEnergyData[[#This Row],[Ave kWh/kg elec]]*VLOOKUP(countryOfProcessing,ENERGY,3,FALSE) ->  | H24: 0 | I24: =CommodityGroupUserOrDefaultEnergyData[[#This Row],[Ave kWh/kg gas]]*NaturalGasEF -> 0 | J24: =IF(OR(processingUserElec<>F11,processingUserGas<>H11),SUM(CommodityGroupUserOrDefaultEnergyData[[#This Row],[Ave elec EF kgCO2e/kWh]]+CommodityGroupUserOrDefaultEnergyData[[#This Row],[Ave gas EF kgCO2e/kWh]]),SUM(CommodityGroupUserOrDefaultEnergyData[[#This Row],[Ave elec EF kgCO2e/kWh]]+CommodityGroupUserOrDefaultEnergyData[[#This Row],[Ave gas EF kgCO2e/kWh]])) ->  | L24: Carrot Canned | M24: Carrots | N24: N/A | O24: 21.4 | P24: Hendrickson (1996) - 1975-78 | Q24: =ProcessingElectricity[[#This Row],[Electricity Energy Consumption (MJ/kg)]]*MJtoKWH -> 5.94444492 | R24: =INDEX(C:C,MATCH(ProcessingElectricity[[#This Row],[IFC Name]],B:B,0)) -> Tubers/Root Crops | T24: Butter | U24: N/A | V24: 3.53 | W24: Foster et al. (2006) - 2000 | X24: =ProcessingHeatEnergy[[#This Row],[Fossil Fuel/ Fuels and heat Energy Consumption (MJ/kg)]]*MJtoKWH -> 0.980555634 | Y24: =INDEX(ProcessingElectricity[[#All],[Commodity Group]],MATCH(ProcessingHeatEnergy[[#This Row],[Product]],ProcessingElectricity[[#All],[Product]],0)) -> Animal Protein
B25: Cotton seed oil | C25: Nuts/Seeds | D25: =ProcessingIntensityRatio_Medium -> 0.5 | L25: Carrot Frozen | M25: Carrots | N25: N/A | O25: 29.66 | P25: Hendrickson (1996) - 1975-79 | Q25: =ProcessingElectricity[[#This Row],[Electricity Energy Consumption (MJ/kg)]]*MJtoKWH -> 8.238889548 | R25: =INDEX(C:C,MATCH(ProcessingElectricity[[#This Row],[IFC Name]],B:B,0)) -> Tubers/Root Crops | T25: Cheese | U25: N/A | V25: 2.11 | W25: Wang (2014) - 2001 | X25: =ProcessingHeatEnergy[[#This Row],[Fossil Fuel/ Fuels and heat Energy Consumption (MJ/kg)]]*MJtoKWH -> 0.586111158 | Y25: =INDEX(ProcessingElectricity[[#All],[Commodity Group]],MATCH(ProcessingHeatEnergy[[#This Row],[Product]],ProcessingElectricity[[#All],[Product]],0)) -> Animal Protein
B26: Cucumbers | C26: Vegetables | D26: =ProcessingIntensityRatio_High -> 1 | L26: Carrot Dehydrated | M26: Carrots | N26: N/A | O26: 86.3 | P26: Hendrickson (1996) - 1975-80 | Q26: =ProcessingElectricity[[#This Row],[Electricity Energy Consumption (MJ/kg)]]*MJtoKWH -> 23.97222414 | R26: =INDEX(C:C,MATCH(ProcessingElectricity[[#This Row],[IFC Name]],B:B,0)) -> Tubers/Root Crops | T26: Cheese | U26: N/A | V26: 4.34 | W26: Cox and Miller (1986) | X26: =ProcessingHeatEnergy[[#This Row],[Fossil Fuel/ Fuels and heat Energy Consumption (MJ/kg)]]*MJtoKWH -> 1.205555652 | Y26: =INDEX(ProcessingElectricity[[#All],[Commodity Group]],MATCH(ProcessingHeatEnergy[[#This Row],[Product]],ProcessingElectricity[[#All],[Product]],0)) -> Animal Protein
B27: Eggs | C27: Animal Protein | D27: =ProcessingIntensityRatio_Medium -> 0.5 | L27: Cabbage - primary | N27: Processing and storage | O27: 0.45 | P27: Van Hauwermeiren et al. (2007) | Q27: =ProcessingElectricity[[#This Row],[Electricity Energy Consumption (MJ/kg)]]*MJtoKWH -> 0.12500001 | R27: Vegetables | T27: Cheese | U27: N/A | V27: 4.44 | W27: Cox and Miller (1986) | X27: =ProcessingHeatEnergy[[#This Row],[Fossil Fuel/ Fuels and heat Energy Consumption (MJ/kg)]]*MJtoKWH -> 1.233333432 | Y27: =INDEX(ProcessingElectricity[[#All],[Commodity Group]],MATCH(ProcessingHeatEnergy[[#This Row],[Product]],ProcessingElectricity[[#All],[Product]],0)) -> Animal Protein
B28: Flour | C28: Flour | D28: =ProcessingIntensityRatio_Low -> 0.1 | L28: Canned Sweet Corn | M28: Maize | N28: Processing | O28: 2.4 | P28: Pimentel and Hall (1984) | Q28: =ProcessingElectricity[[#This Row],[Electricity Energy Consumption (MJ/kg)]]*MJtoKWH -> 0.66666672 | R28: =INDEX(C:C,MATCH(ProcessingElectricity[[#This Row],[IFC Name]],B:B,0)) -> Pulses & Grains | T28: Cream Long-term | U28: N/A | V28: 0.18 | W28: Carlsson-Kanyama and Faist (2000) - 1997 | X28: =ProcessingHeatEnergy[[#This Row],[Fossil Fuel/ Fuels and heat Energy Consumption (MJ/kg)]]*MJtoKWH -> 0.050000004 | Y28: =INDEX(ProcessingElectricity[[#All],[Commodity Group]],MATCH(ProcessingHeatEnergy[[#This Row],[Product]],ProcessingElectricity[[#All],[Product]],0)) -> Animal Protein
B29: Garlic (green) | C29: Vegetables | D29: =ProcessingIntensityRatio_Low -> 0.1 | L29: Frozen Packaged Sweet Corn | M29: Maize | N29: Processing | O29: 7.6 | P29: Pimentel and Hall (1984) | Q29: =ProcessingElectricity[[#This Row],[Electricity Energy Consumption (MJ/kg)]]*MJtoKWH -> 2.11111128 | R29: =INDEX(C:C,MATCH(ProcessingElectricity[[#This Row],[IFC Name]],B:B,0)) -> Pulses & Grains | T29: Milk | U29: N/A | V29: 0.46 | W29: Cox and Miller (1986) | X29: =ProcessingHeatEnergy[[#This Row],[Fossil Fuel/ Fuels and heat Energy Consumption (MJ/kg)]]*MJtoKWH -> 0.127777788 | Y29: =INDEX(ProcessingElectricity[[#All],[Commodity Group]],MATCH(ProcessingHeatEnergy[[#This Row],[Product]],ProcessingElectricity[[#All],[Product]],0)) -> Animal Protein
B30: Ginger | C30: Tubers/Root Crops | D30: =ProcessingIntensityRatio_Medium -> 0.5 | E30: Assumed per-country electricity grid factor | L30: Canned Frozen Corn | M30: Maize | N30: N/A | O30: 23.96 | P30: Hendrickson (1996) - 1975-79 | Q30: =ProcessingElectricity[[#This Row],[Electricity Energy Consumption (MJ/kg)]]*MJtoKWH -> 6.655556088 | R30: =INDEX(C:C,MATCH(ProcessingElectricity[[#This Row],[IFC Name]],B:B,0)) -> Pulses & Grains | T30: Milk | U30: N/A | V30: 0.88 | W30: Cox and Miller (1986) | X30: =ProcessingHeatEnergy[[#This Row],[Fossil Fuel/ Fuels and heat Energy Consumption (MJ/kg)]]*MJtoKWH -> 0.244444464 | Y30: =INDEX(ProcessingElectricity[[#All],[Commodity Group]],MATCH(ProcessingHeatEnergy[[#This Row],[Product]],ProcessingElectricity[[#All],[Product]],0)) -> Animal Protein
B31: Grapes | C31: Fruits | D31: =ProcessingIntensityRatio_High -> 1 | E31: Assumed UK natural gas emission factor | L31: Canned Sweet Corn | M31: Maize | N31: Processing | O31: 5.2 | P31: Commission of the European Communities (1981) - 1979 | Q31: =ProcessingElectricity[[#This Row],[Electricity Energy Consumption (MJ/kg)]]*MJtoKWH -> 1.44444456 | R31: =INDEX(C:C,MATCH(ProcessingElectricity[[#This Row],[IFC Name]],B:B,0)) -> Pulses & Grains | T31: Milk | U31: N/A | V31: 0.1 | W31: Xu, Flapper and Kramer (2009) - 2008 | X31: =ProcessingHeatEnergy[[#This Row],[Fossil Fuel/ Fuels and heat Energy Consumption (MJ/kg)]]*MJtoKWH -> 0.02777778 | Y31: =INDEX(ProcessingElectricity[[#All],[Commodity Group]],MATCH(ProcessingHeatEnergy[[#This Row],[Product]],ProcessingElectricity[[#All],[Product]],0)) -> Animal Protein
B32: Hazelnuts | C32: Nuts/Seeds | D32: =ProcessingIntensityRatio_Low -> 0.1 | E32: Relvant crop processing data is averaged, in an attempt to represent the potential range of processing activities which | L32: Fruits and Vegetables Canned | N32: N/A | O32: 0.2 | P32: Andersson, Ohlsson and Olsson (1998) - 1993-94 | Q32: =ProcessingElectricity[[#This Row],[Electricity Energy Consumption (MJ/kg)]]*MJtoKWH -> 0.05555556 | R32: Vegetables | T32: Milk | U32: N/A | V32: 3.1 | W32: Xu, Flapper and Kramer (2009) - 2008 | X32: =ProcessingHeatEnergy[[#This Row],[Fossil Fuel/ Fuels and heat Energy Consumption (MJ/kg)]]*MJtoKWH -> 0.86111118 | Y32: =INDEX(ProcessingElectricity[[#All],[Commodity Group]],MATCH(ProcessingHeatEnergy[[#This Row],[Product]],ProcessingElectricity[[#All],[Product]],0)) -> Animal Protein
B33: Lemons | C33: Fruits | D33: =ProcessingIntensityRatio_Low -> 0.1 | E33: can vary considerably | L33: Fruits and Vegetables Canned | N33: N/A | O33: 2.41 | P33: Carlsson-Kanyama and Faist (2000) - 1977 | Q33: =ProcessingElectricity[[#This Row],[Electricity Energy Consumption (MJ/kg)]]*MJtoKWH -> 0.669444498 | R33: Vegetables | T33: Milk | U33: N/A | V33: 1.1 | W33: Xu, Flapper and Kramer (2009) - 1993,2007 | X33: =ProcessingHeatEnergy[[#This Row],[Fossil Fuel/ Fuels and heat Energy Consumption (MJ/kg)]]*MJtoKWH -> 0.30555558 | Y33: =INDEX(ProcessingElectricity[[#All],[Commodity Group]],MATCH(ProcessingHeatEnergy[[#This Row],[Product]],ProcessingElectricity[[#All],[Product]],0)) -> Animal Protein
B34: Lentils | C34: Pulses & Grains | D34: =ProcessingIntensityRatio_Medium -> 0.5 | E34: Modify default electricity and gas kWh according to estimated processing intensity factor | L34: Fruits and Vegetables Canned | N34: N/A | O34: 0.15 | P34: Carlsson-Kanyama and Faist (2000) - 1986 | Q34: =ProcessingElectricity[[#This Row],[Electricity Energy Consumption (MJ/kg)]]*MJtoKWH -> 0.04166667 | R34: Vegetables | T34: Milk | U34: N/A | V34: 2.5 | W34: Xu, Flapper and Kramer (2009) - 2006 | X34: =ProcessingHeatEnergy[[#This Row],[Fossil Fuel/ Fuels and heat Energy Consumption (MJ/kg)]]*MJtoKWH -> 0.6944445 | Y34: =INDEX(ProcessingElectricity[[#All],[Commodity Group]],MATCH(ProcessingHeatEnergy[[#This Row],[Product]],ProcessingElectricity[[#All],[Product]],0)) -> Animal Protein
B35: Lettuce | C35: Vegetables | D35: 0.5 | E35: Allow for user-defined elec and gas kWh plus a straight processing EF | L35: Fruits and Vegetables Dried | N35: N/A | O35: 1.5 | P35: Wang (2014) - 2001 | Q35: =ProcessingElectricity[[#This Row],[Electricity Energy Consumption (MJ/kg)]]*MJtoKWH -> 0.4166667 | R35: Vegetables | T35: Milk | U35: N/A | V35: 1.5 | W35: Xu, Flapper and Kramer (2009) - 2006 | X35: =ProcessingHeatEnergy[[#This Row],[Fossil Fuel/ Fuels and heat Energy Consumption (MJ/kg)]]*MJtoKWH -> 0.4166667 | Y35: =INDEX(ProcessingElectricity[[#All],[Commodity Group]],MATCH(ProcessingHeatEnergy[[#This Row],[Product]],ProcessingElectricity[[#All],[Product]],0)) -> Animal Protein
B36: Litchi | C36: Fruits | D36: 0.5 | L36: Fruits and Vegetables Frozen | N36: N/A | O36: 0.74 | P36: Wang (2014) - 2001 | Q36: =ProcessingElectricity[[#This Row],[Electricity Energy Consumption (MJ/kg)]]*MJtoKWH -> 0.205555572 | R36: Vegetables | T36: Concentrated Milk | U36: N/A | V36: 1.3 | W36: Xu and Flapper (2011)- 2009 | X36: =ProcessingHeatEnergy[[#This Row],[Fossil Fuel/ Fuels and heat Energy Consumption (MJ/kg)]]*MJtoKWH -> 0.36111114 | Y36: =INDEX(ProcessingElectricity[[#All],[Commodity Group]],MATCH(ProcessingHeatEnergy[[#This Row],[Product]],ProcessingElectricity[[#All],[Product]],0)) -> Animal Protein
B37: Maize | C37: Pulses & Grains | D37: 0.5 | E37: Processing intensity factor | L37: Tomato Juice | M37: Tomatoes | N37: N/A | O37: 0.13 | P37: Wang (2014) - 2002 | Q37: =ProcessingElectricity[[#This Row],[Electricity Energy Consumption (MJ/kg)]]*MJtoKWH -> 0.036111114 | R37: =INDEX(C:C,MATCH(ProcessingElectricity[[#This Row],[IFC Name]],B:B,0)) -> Fruits | T37: Powder Milk | U37: N/A | V37: 4 | W37: Xu and Flapper (2011)- 2004 | X37: =ProcessingHeatEnergy[[#This Row],[Fossil Fuel/ Fuels and heat Energy Consumption (MJ/kg)]]*MJtoKWH -> 1.1111112 | Y37: =INDEX(ProcessingElectricity[[#All],[Commodity Group]],MATCH(ProcessingHeatEnergy[[#This Row],[Product]],ProcessingElectricity[[#All],[Product]],0)) -> Animal Protein
B38: Mandarins | C38: Fruits | D38: 0.5 | E38: Low | F38: 0.1 | L38: Preserved Mushroom | M38: Mushrooms | N38: N/A | O38: 2.9 | P38: Wang (2014) - 2003 | Q38: =ProcessingElectricity[[#This Row],[Electricity Energy Consumption (MJ/kg)]]*MJtoKWH -> 0.80555562 | R38: =INDEX(C:C,MATCH(ProcessingElectricity[[#This Row],[IFC Name]],B:B,0)) -> Mycoprotein | T38: Powder Milk | U38: N/A | V38: 9.2 | W38: Xu and Flapper (2011)- 2006 | X38: =ProcessingHeatEnergy[[#This Row],[Fossil Fuel/ Fuels and heat Energy Consumption (MJ/kg)]]*MJtoKWH -> 2.55555576 | Y38: =INDEX(ProcessingElectricity[[#All],[Commodity Group]],MATCH(ProcessingHeatEnergy[[#This Row],[Product]],ProcessingElectricity[[#All],[Product]],0)) -> Animal Protein
B39: Mangoes | C39: Fruits | D39: 0.5 | E39: Medium | F39: 0.5 | L39: Yellow Peas | M39: Peas (dry) | N39: Previously soaked and boilder | O39: 4 | P39: Carlsson-Kanyama and Faist (2000) - 1998 | Q39: =ProcessingElectricity[[#This Row],[Electricity Energy Consumption (MJ/kg)]]*MJtoKWH -> 1.1111112 | R39: =INDEX(C:C,MATCH(ProcessingElectricity[[#This Row],[IFC Name]],B:B,0)) -> Pulses & Grains | T39: Powder Milk | U39: N/A | V39: =AVERAGE(10.2,20.6) -> 15.4 | W39: Xu and Flapper (2011)- 2007 | X39: =ProcessingHeatEnergy[[#This Row],[Fossil Fuel/ Fuels and heat Energy Consumption (MJ/kg)]]*MJtoKWH -> 4.27777812 | Y39: =INDEX(ProcessingElectricity[[#All],[Commodity Group]],MATCH(ProcessingHeatEnergy[[#This Row],[Product]],ProcessingElectricity[[#All],[Product]],0)) -> Animal Protein
B40: Meat (cattle) | C40: Animal Protein | D40: 0.5 | E40: High | F40: 1 | L40: Green Peas Canned | M40: Peas (dry) | N40: From farm gate to market place - transport, processing and distribution | O40: 10.39 | P40: Stanhill (1984) | Q40: =ProcessingElectricity[[#This Row],[Electricity Energy Consumption (MJ/kg)]]*MJtoKWH -> 2.886111342 | R40: =INDEX(C:C,MATCH(ProcessingElectricity[[#This Row],[IFC Name]],B:B,0)) -> Pulses & Grains | T40: Powder Milk | U40: N/A | V40: =AVERAGE(28.5,190) -> 109.25 | W40: Xu and Flapper (2011)- 2006 | X40: =ProcessingHeatEnergy[[#This Row],[Fossil Fuel/ Fuels and heat Energy Consumption (MJ/kg)]]*MJtoKWH -> 30.34722465 | Y40: =INDEX(ProcessingElectricity[[#All],[Commodity Group]],MATCH(ProcessingHeatEnergy[[#This Row],[Product]],ProcessingElectricity[[#All],[Product]],0)) -> Animal Protein
B41: Meat (chicken) | C41: Animal Protein | D41: =ProcessingIntensityRatio_High -> 1 | E41: Categorise specific commodities according to likely processing intensity | L41: Green Peas Frozen | M41: Peas (dry) | N41: From farm gate to market place - transport, processing and distribution | O41: 11.36 | P41: Stanhill (1984) | Q41: =ProcessingElectricity[[#This Row],[Electricity Energy Consumption (MJ/kg)]]*MJtoKWH -> 3.155555808 | R41: =INDEX(C:C,MATCH(ProcessingElectricity[[#This Row],[IFC Name]],B:B,0)) -> Pulses & Grains | T41: Powder Milk | U41: N/A | V41: 12.6 | W41: Xu and Flapper (2011)- 2002 | X41: =ProcessingHeatEnergy[[#This Row],[Fossil Fuel/ Fuels and heat Energy Consumption (MJ/kg)]]*MJtoKWH -> 3.50000028 | Y41: =INDEX(ProcessingElectricity[[#All],[Commodity Group]],MATCH(ProcessingHeatEnergy[[#This Row],[Product]],ProcessingElectricity[[#All],[Product]],0)) -> Animal Protein
B42: Meat (pig) | C42: Animal Protein | D42: =ProcessingIntensityRatio_High -> 1 | L42: Pickles | N42: N/A | O42: 0.48 | P42: Andersson, Ohlsson and Olsson (1998) - 1993-94 | Q42: =ProcessingElectricity[[#This Row],[Electricity Energy Consumption (MJ/kg)]]*MJtoKWH -> 0.133333344 | R42: Vegetables | T42: Milk | U42: Processing | V42: 0.46 | W42: Foster et al. (2006) - 1999-2003 | X42: =ProcessingHeatEnergy[[#This Row],[Fossil Fuel/ Fuels and heat Energy Consumption (MJ/kg)]]*MJtoKWH -> 0.127777788 | Y42: =INDEX(ProcessingElectricity[[#All],[Commodity Group]],MATCH(ProcessingHeatEnergy[[#This Row],[Product]],ProcessingElectricity[[#All],[Product]],0)) -> Animal Protein
B43: Milk (cattle) | C43: Animal Protein | D43: =ProcessingIntensityRatio_Medium -> 0.5 | E43: Cotton | L43: Potato Chips | M43: Potatoes | N43: N/A | O43: 1 | P43: Carlsson-Kanyama and Faist (2000) - 1988 | Q43: =ProcessingElectricity[[#This Row],[Electricity Energy Consumption (MJ/kg)]]*MJtoKWH -> 0.2777778 | R43: =INDEX(C:C,MATCH(ProcessingElectricity[[#This Row],[IFC Name]],B:B,0)) -> Tubers/Root Crops | T43: Milk | U43: N/A | V43: 0.5 | W43: Van Alfen (2014) - 2000 | X43: =ProcessingHeatEnergy[[#This Row],[Fossil Fuel/ Fuels and heat Energy Consumption (MJ/kg)]]*MJtoKWH -> 0.1388889 | Y43: =INDEX(ProcessingElectricity[[#All],[Commodity Group]],MATCH(ProcessingHeatEnergy[[#This Row],[Product]],ProcessingElectricity[[#All],[Product]],0)) -> Animal Protein
B44: Millet | C44: Pulses & Grains | D44: =ProcessingIntensityRatio_Low -> 0.1 | E44: Cotton processing, from fibre into textile - several industry LCAs but little data beyond % | L44: Potato Chips | M44: Potatoes | N44: N/A | O44: 0.9 | P44: Andersson, Ohlsson and Olsson (1998) | Q44: =ProcessingElectricity[[#This Row],[Electricity Energy Consumption (MJ/kg)]]*MJtoKWH -> 0.25000002 | R44: =INDEX(C:C,MATCH(ProcessingElectricity[[#This Row],[IFC Name]],B:B,0)) -> Tubers/Root Crops | T44: Milk | U44: N/A | V44: 1.7 | W44: Van Alfen (2014) - 2000 | X44: =ProcessingHeatEnergy[[#This Row],[Fossil Fuel/ Fuels and heat Energy Consumption (MJ/kg)]]*MJtoKWH -> 0.47222226 | Y44: =INDEX(ProcessingElectricity[[#All],[Commodity Group]],MATCH(ProcessingHeatEnergy[[#This Row],[Product]],ProcessingElectricity[[#All],[Product]],0)) -> Animal Protein
B45: Mushrooms | C45: Mycoprotein | D45: =ProcessingIntensityRatio_Medium -> 0.5 | E45: Reference this paper (which is very reliant on Ecoinvent) | L45: Potato Chips | M45: Potatoes | N45: N/A | O45: 2.1 | P45: Andersson, Ohlsson and Olsson (1998) | Q45: =ProcessingElectricity[[#This Row],[Electricity Energy Consumption (MJ/kg)]]*MJtoKWH -> 0.58333338 | R45: =INDEX(C:C,MATCH(ProcessingElectricity[[#This Row],[IFC Name]],B:B,0)) -> Tubers/Root Crops | T45: Milk | U45: N/A | V45: 1.3 | W45: Van Alfen (2014) - 2000 | X45: =ProcessingHeatEnergy[[#This Row],[Fossil Fuel/ Fuels and heat Energy Consumption (MJ/kg)]]*MJtoKWH -> 0.36111114 | Y45: =INDEX(ProcessingElectricity[[#All],[Commodity Group]],MATCH(ProcessingHeatEnergy[[#This Row],[Product]],ProcessingElectricity[[#All],[Product]],0)) -> Animal Protein
B46: Oats | C46: Pulses & Grains | D46: 0.5 | E46: https://doi.org/10.3390/fib7120101 | L46: Potato Chips | M46: Potatoes | N46: N/A | O46: 1.9 | P46: Cleland, Earle and Boag (1981) - 1980 | Q46: =ProcessingElectricity[[#This Row],[Electricity Energy Consumption (MJ/kg)]]*MJtoKWH -> 0.52777782 | R46: =INDEX(C:C,MATCH(ProcessingElectricity[[#This Row],[IFC Name]],B:B,0)) -> Tubers/Root Crops | T46: Milk | U46: N/A | V46: 1.7 | W46: Van Alfen (2014) - 2000 | X46: =ProcessingHeatEnergy[[#This Row],[Fossil Fuel/ Fuels and heat Energy Consumption (MJ/kg)]]*MJtoKWH -> 0.47222226 | Y46: =INDEX(ProcessingElectricity[[#All],[Commodity Group]],MATCH(ProcessingHeatEnergy[[#This Row],[Product]],ProcessingElectricity[[#All],[Product]],0)) -> Animal Protein
B47: Olive oil | C47: Nuts/Seeds | D47: 0.5 | E47: Comparative Life Cycle Assessment of Cotton and Other Natural Fibers for Textile Applications | L47: Potato French Fries | M47: Potatoes | N47: Peeling, cooking, freezing and cold storage | O47: 3.7 | P47: Carlsson-Kanyama and Faist (2000) - 1997 | Q47: =ProcessingElectricity[[#This Row],[Electricity Energy Consumption (MJ/kg)]]*MJtoKWH -> 1.02777786 | R47: =INDEX(C:C,MATCH(ProcessingElectricity[[#This Row],[IFC Name]],B:B,0)) -> Tubers/Root Crops | T47: Milk | U47: N/A | V47: 0.8 | W47: Van Alfen (2014) - 2000 | X47: =ProcessingHeatEnergy[[#This Row],[Fossil Fuel/ Fuels and heat Energy Consumption (MJ/kg)]]*MJtoKWH -> 0.22222224 | Y47: =INDEX(ProcessingElectricity[[#All],[Commodity Group]],MATCH(ProcessingHeatEnergy[[#This Row],[Product]],ProcessingElectricity[[#All],[Product]],0)) -> Animal Protein
B48: Onions (fresh) | C48: Vegetables | D48: 0.5 | E48: La Rosa & Grammatikos, 2019 | L48: Potato French Fries | M48: Potatoes | N48: N/A | O48: 9 | P48: Andersson, Ohlsson and Olsson (1998) - 1996 | Q48: =ProcessingElectricity[[#This Row],[Electricity Energy Consumption (MJ/kg)]]*MJtoKWH -> 2.5000002 | R48: =INDEX(C:C,MATCH(ProcessingElectricity[[#This Row],[IFC Name]],B:B,0)) -> Tubers/Root Crops | T48: Milk | U48: N/A | V48: 0.3 | W48: Van Alfen (2014) - 2002 | X48: =ProcessingHeatEnergy[[#This Row],[Fossil Fuel/ Fuels and heat Energy Consumption (MJ/kg)]]*MJtoKWH -> 0.08333334 | Y48: =INDEX(ProcessingElectricity[[#All],[Commodity Group]],MATCH(ProcessingHeatEnergy[[#This Row],[Product]],ProcessingElectricity[[#All],[Product]],0)) -> Animal Protein
B49: Onions, dry | C49: Tubers/Root Crops | D49: 0.5 | L49: Potato Fresh | M49: Potatoes | N49: From farm gate to market place - transport, processing and distribution | O49: 2.38 | P49: Stanhill (1984) | Q49: =ProcessingElectricity[[#This Row],[Electricity Energy Consumption (MJ/kg)]]*MJtoKWH -> 0.661111164 | R49: =INDEX(C:C,MATCH(ProcessingElectricity[[#This Row],[IFC Name]],B:B,0)) -> Tubers/Root Crops | T49: Dried Milk | U49: N/A | V49: 20.6 | W49: Van Alfen (2014) - 2000 | X49: =ProcessingHeatEnergy[[#This Row],[Fossil Fuel/ Fuels and heat Energy Consumption (MJ/kg)]]*MJtoKWH -> 5.72222268 | Y49: =INDEX(ProcessingElectricity[[#All],[Commodity Group]],MATCH(ProcessingHeatEnergy[[#This Row],[Product]],ProcessingElectricity[[#All],[Product]],0)) -> Animal Protein
B50: Oranges | C50: Fruits | D50: 0.5 | E50: Land occupation (table 4) | L50: Potato Frozen Chips | M50: Potatoes | N50: From farm gate to market place - transport, processing and distribution | O50: 8.45 | P50: Stanhill (1984) | Q50: =ProcessingElectricity[[#This Row],[Electricity Energy Consumption (MJ/kg)]]*MJtoKWH -> 2.34722241 | R50: =INDEX(C:C,MATCH(ProcessingElectricity[[#This Row],[IFC Name]],B:B,0)) -> Tubers/Root Crops | T50: Dried Milk | U50: N/A | V50: 7.9 | W50: Van Alfen (2014) - 2003 | X50: =ProcessingHeatEnergy[[#This Row],[Fossil Fuel/ Fuels and heat Energy Consumption (MJ/kg)]]*MJtoKWH -> 2.19444462 | Y50: =INDEX(ProcessingElectricity[[#All],[Commodity Group]],MATCH(ProcessingHeatEnergy[[#This Row],[Product]],ProcessingElectricity[[#All],[Product]],0)) -> Animal Protein
B51: Palm oil | C51: Nuts/Seeds | D51: 0.5 | E51: Fibre | G51: 7261 | L51: Potato Dehydrated | M51: Potatoes | N51: From farm gate to market place - transport, processing and distribution | O51: 8.56 | P51: Stanhill (1984) | Q51: =ProcessingElectricity[[#This Row],[Electricity Energy Consumption (MJ/kg)]]*MJtoKWH -> 2.377777968 | R51: =INDEX(C:C,MATCH(ProcessingElectricity[[#This Row],[IFC Name]],B:B,0)) -> Tubers/Root Crops | T51: Yoghurt | U51: N/A | V51: 0.46 | W51: Foster et al. (2006) - 2000 | X51: =ProcessingHeatEnergy[[#This Row],[Fossil Fuel/ Fuels and heat Energy Consumption (MJ/kg)]]*MJtoKWH -> 0.127777788 | Y51: Animal Protein
B52: Peanuts | C52: Nuts/Seeds | D52: 0.5 | E52: Textile | G52: 8290 | L52: Potato Canned | M52: Potatoes | N52: N/A | O52: 20.93 | P52: Hendrickson (1996) - 1975-77 | Q52: =ProcessingElectricity[[#This Row],[Electricity Energy Consumption (MJ/kg)]]*MJtoKWH -> 5.813889354 | R52: =INDEX(C:C,MATCH(ProcessingElectricity[[#This Row],[IFC Name]],B:B,0)) -> Tubers/Root Crops | T52: Fishmeal | U52: N/A | V52: 12.1 | W52: Cleland, Earle and Boag (1981) - 1980 | X52: =ProcessingHeatEnergy[[#This Row],[Fossil Fuel/ Fuels and heat Energy Consumption (MJ/kg)]]*MJtoKWH -> 3.36111138 | Y52: =INDEX(ProcessingElectricity[[#All],[Commodity Group]],MATCH(ProcessingHeatEnergy[[#This Row],[Product]],ProcessingElectricity[[#All],[Product]],0)) -> 
B53: Pears | C53: Fruits | D53: =ProcessingIntensityRatio_Low -> 0.1 | E53: Implies conversion ratio of | G53: =G52/G51 -> 1.141716017 | H53: (units cotton fibre per unit textile) | L53: Potato Frozen | M53: Potatoes | N53: N/A | O53: 34.77 | P53: Hendrickson (1996) - 1975-78 | Q53: =ProcessingElectricity[[#This Row],[Electricity Energy Consumption (MJ/kg)]]*MJtoKWH -> 9.658334106 | R53: =INDEX(C:C,MATCH(ProcessingElectricity[[#This Row],[IFC Name]],B:B,0)) -> Tubers/Root Crops | T53: Fish Frozen (whole fish and fillets) | U53: Includes refrigeration, storage after processing | V53: 0.8 | W53: Cleland, Earle and Boag (1981) - 1980 | X53: =ProcessingHeatEnergy[[#This Row],[Fossil Fuel/ Fuels and heat Energy Consumption (MJ/kg)]]*MJtoKWH -> 0.22222224 | Y53: =INDEX(ProcessingElectricity[[#All],[Commodity Group]],MATCH(ProcessingHeatEnergy[[#This Row],[Product]],ProcessingElectricity[[#All],[Product]],0)) -> Animal Protein
B54: Peas (dry) | C54: Pulses & Grains | D54: =ProcessingIntensityRatio_Low -> 0.1 | E54: Primary Energy for textile production | G54: 298 | H54: MJ/tonne (no elec/gas split but assume 100% electricity) | L54: Potato Dehydrated | M54: Potatoes | N54: N/A | O54: 62.1 | P54: Hendrickson (1996) - 1975-79 | Q54: =ProcessingElectricity[[#This Row],[Electricity Energy Consumption (MJ/kg)]]*MJtoKWH -> 17.25000138 | R54: =INDEX(C:C,MATCH(ProcessingElectricity[[#This Row],[IFC Name]],B:B,0)) -> Tubers/Root Crops | T54: Processed Fish products | U54: Includes refrigeration, storage after processing | V54: =2.8+2 -> 4.8 | W54: Cleland, Earle and Boag (1981) - 1980 | X54: =ProcessingHeatEnergy[[#This Row],[Fossil Fuel/ Fuels and heat Energy Consumption (MJ/kg)]]*MJtoKWH -> 1.33333344 | Y54: =INDEX(ProcessingElectricity[[#All],[Commodity Group]],MATCH(ProcessingHeatEnergy[[#This Row],[Product]],ProcessingElectricity[[#All],[Product]],0)) -> Animal Protein
B55: Peppers | C55: Vegetables | D55: =ProcessingIntensityRatio_Low -> 0.1 | E55: Electricity for textile production | G55: =G54*30% -> 89.4 | H55: MJ electricity | L55: Spinache Canned | N55: N/A | O55: 4.2 | P55: Carlsson-Kanyama and Faist (2000) - 1996 | Q55: =ProcessingElectricity[[#This Row],[Electricity Energy Consumption (MJ/kg)]]*MJtoKWH -> 1.16666676 | R55: Vegetables | T55: Meat | U55: Processing | V55: 1 | W55: Cleland, Earle and Boag (1981) - 1980 | X55: =ProcessingHeatEnergy[[#This Row],[Fossil Fuel/ Fuels and heat Energy Consumption (MJ/kg)]]*MJtoKWH -> 0.2777778 | Y55: =INDEX(ProcessingElectricity[[#All],[Commodity Group]],MATCH(ProcessingHeatEnergy[[#This Row],[Product]],ProcessingElectricity[[#All],[Product]],0)) -> Animal Protein
B56: Pineapples | C56: Fruits | D56: =ProcessingIntensityRatio_Low -> 0.1 | H56: Allow for thermal efficiency of elec generation | L56: Starch Maize | M56: Maize | N56: N/A | O56: 1 | P56: Wang (2014) - 2001 | Q56: =ProcessingElectricity[[#This Row],[Electricity Energy Consumption (MJ/kg)]]*MJtoKWH -> 0.2777778 | R56: =INDEX(C:C,MATCH(ProcessingElectricity[[#This Row],[IFC Name]],B:B,0)) -> Pulses & Grains | T56: Pig | U56: N/A | V56: 0.93 | W56: Wang (2014) - 2001 | X56: =ProcessingHeatEnergy[[#This Row],[Fossil Fuel/ Fuels and heat Energy Consumption (MJ/kg)]]*MJtoKWH -> 0.258333354 | Y56: =INDEX(ProcessingElectricity[[#All],[Commodity Group]],MATCH(ProcessingHeatEnergy[[#This Row],[Product]],ProcessingElectricity[[#All],[Product]],0)) -> Animal Protein
B57: Pistachios | C57: Nuts/Seeds | D57: =ProcessingIntensityRatio_Low -> 0.1 | H57: Also note is PED, primary energy demand, so assume 30% efficiency | L57: Starch Wheat | M57: Wheat | N57: N/A | O57: 2.9 | P57: Wang (2014) - 2001 | Q57: =ProcessingElectricity[[#This Row],[Electricity Energy Consumption (MJ/kg)]]*MJtoKWH -> 0.80555562 | R57: =INDEX(C:C,MATCH(ProcessingElectricity[[#This Row],[IFC Name]],B:B,0)) -> Pulses & Grains | T57: Pig - ham and bacon | U57: Direct use in processing + allocated baseload | V57: 1.8 | W57: Cleland, Earle and Boag (1981) | X57: =ProcessingHeatEnergy[[#This Row],[Fossil Fuel/ Fuels and heat Energy Consumption (MJ/kg)]]*MJtoKWH -> 0.50000004 | Y57: =INDEX(ProcessingElectricity[[#All],[Commodity Group]],MATCH(ProcessingHeatEnergy[[#This Row],[Product]],ProcessingElectricity[[#All],[Product]],0)) -> Animal Protein
B58: Potatoes | C58: Tubers/Root Crops | D58: 1 | L58: Starch Potato | M58: Potatoes | N58: N/A | O58: 1.43 | P58: Wang (2014) - 2002 | Q58: =ProcessingElectricity[[#This Row],[Electricity Energy Consumption (MJ/kg)]]*MJtoKWH -> 0.397222254 | R58: =INDEX(C:C,MATCH(ProcessingElectricity[[#This Row],[IFC Name]],B:B,0)) -> Tubers/Root Crops | T58: Poultry | U58: N/A - dress carcass weight | V58: 0.58 | W58: Wang (2014) - 2001 | X58: =ProcessingHeatEnergy[[#This Row],[Fossil Fuel/ Fuels and heat Energy Consumption (MJ/kg)]]*MJtoKWH -> 0.161111124 | Y58: =INDEX(ProcessingElectricity[[#All],[Commodity Group]],MATCH(ProcessingHeatEnergy[[#This Row],[Product]],ProcessingElectricity[[#All],[Product]],0)) -> Animal Protein
B59: Quinoa | C59: Nuts/Seeds | D59: 1 | L59: Tomato Puree, glass packaged | M59: Tomatoes | N59: Processing | O59: 3.05 | P59: Del Borghi et al. (2014) | Q59: =ProcessingElectricity[[#This Row],[Electricity Energy Consumption (MJ/kg)]]*MJtoKWH -> 0.84722229 | R59: =INDEX(C:C,MATCH(ProcessingElectricity[[#This Row],[IFC Name]],B:B,0)) -> Fruits | T59: Poultry - Fresh | U59: N/A | V59: =0.61+0.18 -> 0.79 | W59: Cleland, Earle and Boag (1981) - 1980 | X59: =ProcessingHeatEnergy[[#This Row],[Fossil Fuel/ Fuels and heat Energy Consumption (MJ/kg)]]*MJtoKWH -> 0.219444462 | Y59: =INDEX(ProcessingElectricity[[#All],[Commodity Group]],MATCH(ProcessingHeatEnergy[[#This Row],[Product]],ProcessingElectricity[[#All],[Product]],0)) -> Animal Protein
B60: Rapeseeds | C60: Nuts/Seeds | D60: 1 | L60: Tomato Puree, glass packaged | M60: Tomatoes | N60: Processing | O60: 5.15 | P60: Del Borghi et al. (2014) | Q60: =ProcessingElectricity[[#This Row],[Electricity Energy Consumption (MJ/kg)]]*MJtoKWH -> 1.43055567 | R60: =INDEX(C:C,MATCH(ProcessingElectricity[[#This Row],[IFC Name]],B:B,0)) -> Fruits | T60: Poultry - Frozen | U60: N/A | V60: =0.61+0.22 -> 0.83 | W60: Cleland, Earle and Boag (1981) - 1981 | X60: =ProcessingHeatEnergy[[#This Row],[Fossil Fuel/ Fuels and heat Energy Consumption (MJ/kg)]]*MJtoKWH -> 0.230555574 | Y60: =INDEX(ProcessingElectricity[[#All],[Commodity Group]],MATCH(ProcessingHeatEnergy[[#This Row],[Product]],ProcessingElectricity[[#All],[Product]],0)) -> Animal Protein
B61: Raspberries | C61: Fruits | D61: 1 | L61: Tomato Puree, glass packaged | M61: Tomatoes | N61: Processing | O61: 5.38 | P61: Del Borghi et al. (2014) | Q61: =ProcessingElectricity[[#This Row],[Electricity Energy Consumption (MJ/kg)]]*MJtoKWH -> 1.494444564 | R61: =INDEX(C:C,MATCH(ProcessingElectricity[[#This Row],[IFC Name]],B:B,0)) -> Fruits | T61: Coffee - Instant | U61: N/A | V61: 45 | W61: Cleland, Earle and Boag (1981) - 1980 | X61: =ProcessingHeatEnergy[[#This Row],[Fossil Fuel/ Fuels and heat Energy Consumption (MJ/kg)]]*MJtoKWH -> 12.500001 | Y61: =INDEX(ProcessingElectricity[[#All],[Commodity Group]],MATCH(ProcessingHeatEnergy[[#This Row],[Product]],ProcessingElectricity[[#All],[Product]],0)) -> Nuts/Seeds
B62: Rice | C62: Pulses & Grains | D62: =ProcessingIntensityRatio_Low -> 0.1 | L62: Tomato Puree, glass packaged | M62: Tomatoes | N62: Processing | O62: 4.97 | P62: Del Borghi et al. (2014) | Q62: =ProcessingElectricity[[#This Row],[Electricity Energy Consumption (MJ/kg)]]*MJtoKWH -> 1.380555666 | R62: =INDEX(C:C,MATCH(ProcessingElectricity[[#This Row],[IFC Name]],B:B,0)) -> Fruits | T62: Coffee - Instant | U62: Processing | V62: 30.2 | W62: Morawicki and Hager (2014) 2009 | X62: =ProcessingHeatEnergy[[#This Row],[Fossil Fuel/ Fuels and heat Energy Consumption (MJ/kg)]]*MJtoKWH -> 8.38888956 | Y62: =INDEX(ProcessingElectricity[[#All],[Commodity Group]],MATCH(ProcessingHeatEnergy[[#This Row],[Product]],ProcessingElectricity[[#All],[Product]],0)) -> Nuts/Seeds
B63: Rye | C63: Pulses & Grains | D63: 0.1 | L63: Tomato Puree, carton based packaged | M63: Tomatoes | N63: Processing | O63: 5.23 | P63: Del Borghi et al. (2014) | Q63: =ProcessingElectricity[[#This Row],[Electricity Energy Consumption (MJ/kg)]]*MJtoKWH -> 1.452777894 | R63: =INDEX(C:C,MATCH(ProcessingElectricity[[#This Row],[IFC Name]],B:B,0)) -> Fruits
B64: Salmon | C64: Animal Protein | D64: =ProcessingIntensityRatio_Medium -> 0.5 | L64: Tomato Puree, carton based packaged | M64: Tomatoes | N64: Processing | O64: 5.79 | P64: Del Borghi et al. (2014) | Q64: =ProcessingElectricity[[#This Row],[Electricity Energy Consumption (MJ/kg)]]*MJtoKWH -> 1.608333462 | R64: =INDEX(C:C,MATCH(ProcessingElectricity[[#This Row],[IFC Name]],B:B,0)) -> Fruits
B65: Sesame seed | C65: Nuts/Seeds | D65: 0.1 | L65: Tomato Puree, carton based packaged | M65: Tomatoes | N65: Processing | O65: 6.08 | P65: Del Borghi et al. (2014) | Q65: =ProcessingElectricity[[#This Row],[Electricity Energy Consumption (MJ/kg)]]*MJtoKWH -> 1.688889024 | R65: =INDEX(C:C,MATCH(ProcessingElectricity[[#This Row],[IFC Name]],B:B,0)) -> Fruits
B66: Shrimp | C66: Animal Protein | D66: 0.1 | L66: Tomato Copped, packaged | M66: Tomatoes | N66: Processing | O66: 5.19 | P66: Del Borghi et al. (2014) | Q66: =ProcessingElectricity[[#This Row],[Electricity Energy Consumption (MJ/kg)]]*MJtoKWH -> 1.441666782 | R66: =INDEX(C:C,MATCH(ProcessingElectricity[[#This Row],[IFC Name]],B:B,0)) -> Fruits
B67: Sorghum | C67: Pulses & Grains | D67: 0.1 | L67: Tomato Copped, packaged | M67: Tomatoes | N67: Processing | O67: 3.68 | P67: Del Borghi et al. (2014) | Q67: =ProcessingElectricity[[#This Row],[Electricity Energy Consumption (MJ/kg)]]*MJtoKWH -> 1.022222304 | R67: =INDEX(C:C,MATCH(ProcessingElectricity[[#This Row],[IFC Name]],B:B,0)) -> Fruits
B68: Soybeans | C68: Pulses & Grains | D68: 0.1 | L68: Tomato Copped, packaged | M68: Tomatoes | N68: Processing | O68: 3.68 | P68: Del Borghi et al. (2014) | Q68: =ProcessingElectricity[[#This Row],[Electricity Energy Consumption (MJ/kg)]]*MJtoKWH -> 1.022222304 | R68: =INDEX(C:C,MATCH(ProcessingElectricity[[#This Row],[IFC Name]],B:B,0)) -> Fruits
B69: Spinach | C69: Vegetables | D69: 0.1 | L69: Tomato Peeled, canned | M69: Tomatoes | N69: Processing | O69: 3.46 | P69: Del Borghi et al. (2014) | Q69: =ProcessingElectricity[[#This Row],[Electricity Energy Consumption (MJ/kg)]]*MJtoKWH -> 0.961111188 | R69: =INDEX(C:C,MATCH(ProcessingElectricity[[#This Row],[IFC Name]],B:B,0)) -> Fruits
B70: Strawberries | C70: Fruits | D70: 0.1 | L70: Tomato Peeled, canned | M70: Tomatoes | N70: Processing | O70: 3.46 | P70: Del Borghi et al. (2014) | Q70: =ProcessingElectricity[[#This Row],[Electricity Energy Consumption (MJ/kg)]]*MJtoKWH -> 0.961111188 | R70: =INDEX(C:C,MATCH(ProcessingElectricity[[#This Row],[IFC Name]],B:B,0)) -> Fruits
B71: Sugar cane | C71: Tubers/Root Crops | D71: 0.1 | L71: Tomato Peeled, canned | M71: Tomatoes | N71: Processing | O71: 3.25 | P71: Del Borghi et al. (2014) | Q71: =ProcessingElectricity[[#This Row],[Electricity Energy Consumption (MJ/kg)]]*MJtoKWH -> 0.90277785 | R71: =INDEX(C:C,MATCH(ProcessingElectricity[[#This Row],[IFC Name]],B:B,0)) -> Fruits
B72: Sunflower oil | C72: Nuts/Seeds | D72: 0.1 | L72: Tomato - primary | M72: Tomatoes | N72: Processing and stoage | O72: 0.11 | P72: Van Hauwermeiren et al. (2007) | Q72: =ProcessingElectricity[[#This Row],[Electricity Energy Consumption (MJ/kg)]]*MJtoKWH -> 0.030555558 | R72: =INDEX(C:C,MATCH(ProcessingElectricity[[#This Row],[IFC Name]],B:B,0)) -> Fruits
B73: Sunflower seeds | C73: Nuts/Seeds | D73: 0.1 | L73: Vegetables Dehydrated | N73: N/A | O73: 3.4 | P73: Cleland, Earle and Boag (1981) - 1980 | Q73: =ProcessingElectricity[[#This Row],[Electricity Energy Consumption (MJ/kg)]]*MJtoKWH -> 0.94444452 | R73: Vegetables
B74: Sweet peppers | C74: Vegetables | D74: 0.1 | L74: Vegetables Frozen | N74: Includes refridgerated storage after processing but prior to distribution | O74: 0.81 | P74: Cleland, Earle and Boag (1981) - 1981 | Q74: =ProcessingElectricity[[#This Row],[Electricity Energy Consumption (MJ/kg)]]*MJtoKWH -> 0.225000018 | R74: Vegetables
B75: Sweet potatoes | C75: Tubers/Root Crops | D75: 0.1 | L75: Butter | M75: Milk (cattle) | N75: N/A | O75: 0.46 | P75: Wang (2014) - 2001 | Q75: =ProcessingElectricity[[#This Row],[Electricity Energy Consumption (MJ/kg)]]*MJtoKWH -> 0.127777788 | R75: =INDEX(C:C,MATCH(ProcessingElectricity[[#This Row],[IFC Name]],B:B,0)) -> Animal Protein
B76: Tilapia | C76: Animal Protein | D76: =ProcessingIntensityRatio_Medium -> 0.5 | L76: Butter | M76: Milk (cattle) | N76: N/A | O76: 0.71 | P76: Cox and Miller (1986) - 1981 | Q76: =ProcessingElectricity[[#This Row],[Electricity Energy Consumption (MJ/kg)]]*MJtoKWH -> 0.197222238 | R76: =INDEX(C:C,MATCH(ProcessingElectricity[[#This Row],[IFC Name]],B:B,0)) -> Animal Protein
B77: Tomatoes | C77: Fruits | D77: =ProcessingIntensityRatio_Low -> 0.1 | L77: Butter | M77: Milk (cattle) | N77: N/A | O77: 0.45 | P77: Cox and Miller (1986) - 1979 | Q77: =ProcessingElectricity[[#This Row],[Electricity Energy Consumption (MJ/kg)]]*MJtoKWH -> 0.12500001 | R77: =INDEX(C:C,MATCH(ProcessingElectricity[[#This Row],[IFC Name]],B:B,0)) -> Animal Protein
B78: Tuna | C78: Animal Protein | D78: =ProcessingIntensityRatio_Medium -> 0.5 | L78: Butter | M78: Milk (cattle) | N78: N/A | O78: 2.1 | P78: Xu and Flapper (2011) - 2004 | Q78: =ProcessingElectricity[[#This Row],[Electricity Energy Consumption (MJ/kg)]]*MJtoKWH -> 0.58333338 | R78: =INDEX(C:C,MATCH(ProcessingElectricity[[#This Row],[IFC Name]],B:B,0)) -> Animal Protein
B79: Walnuts | C79: Nuts/Seeds | D79: =ProcessingIntensityRatio_Low -> 0.1 | L79: Butter | M79: Milk (cattle) | N79: N/A | O79: 60 | P79: Commission of the European Communities (1981) - 1977 | Q79: =ProcessingElectricity[[#This Row],[Electricity Energy Consumption (MJ/kg)]]*MJtoKWH -> 16.666668 | R79: =INDEX(C:C,MATCH(ProcessingElectricity[[#This Row],[IFC Name]],B:B,0)) -> Animal Protein
B80: Watermelons | C80: Fruits | D80: =ProcessingIntensityRatio_Low -> 0.1 | L80: Butter | M80: Milk (cattle) | N80: N/A | O80: 0.71 | P80: Foster et al. (2006) - 2000 | Q80: =ProcessingElectricity[[#This Row],[Electricity Energy Consumption (MJ/kg)]]*MJtoKWH -> 0.197222238 | R80: =INDEX(C:C,MATCH(ProcessingElectricity[[#This Row],[IFC Name]],B:B,0)) -> Animal Protein
B81: Wheat | C81: Pulses & Grains | D81: =ProcessingIntensityRatio_High -> 1 | L81: Butter - primary | M81: Milk (cattle) | N81: Processing and Packaging | O81: 5.4 | P81: Foster et al. (2006) - 2001 | Q81: =ProcessingElectricity[[#This Row],[Electricity Energy Consumption (MJ/kg)]]*MJtoKWH -> 1.50000012 | R81: =INDEX(C:C,MATCH(ProcessingElectricity[[#This Row],[IFC Name]],B:B,0)) -> Animal Protein
B82: Yoghurt | C82: Animal Protein | D82: =ProcessingIntensityRatio_High -> 1 | L82: Butter | M82: Milk (cattle) | N82: N/A | O82: 0.6 | P82: Van Alfen (2014) - 2003 | Q82: =ProcessingElectricity[[#This Row],[Electricity Energy Consumption (MJ/kg)]]*MJtoKWH -> 0.16666668 | R82: =INDEX(C:C,MATCH(ProcessingElectricity[[#This Row],[IFC Name]],B:B,0)) -> Animal Protein
L83: Cheese | M83: Milk (cattle) | N83: N/A | O83: 1.21 | P83: Wang (2014) - 2001 | Q83: =ProcessingElectricity[[#This Row],[Electricity Energy Consumption (MJ/kg)]]*MJtoKWH -> 0.336111138 | R83: =INDEX(C:C,MATCH(ProcessingElectricity[[#This Row],[IFC Name]],B:B,0)) -> Animal Protein
L84: Cheese | M84: Milk (cattle) | N84: N/A | O84: 0.76 | P84: Cox and Miller (1986) | Q84: =ProcessingElectricity[[#This Row],[Electricity Energy Consumption (MJ/kg)]]*MJtoKWH -> 0.211111128 | R84: =INDEX(C:C,MATCH(ProcessingElectricity[[#This Row],[IFC Name]],B:B,0)) -> Animal Protein
L85: Cheese | M85: Milk (cattle) | N85: N/A | O85: 0.8 | P85: Cox and Miller (1986) | Q85: =ProcessingElectricity[[#This Row],[Electricity Energy Consumption (MJ/kg)]]*MJtoKWH -> 0.22222224 | R85: =INDEX(C:C,MATCH(ProcessingElectricity[[#This Row],[IFC Name]],B:B,0)) -> Animal Protein
L86: Cottage Cheese | M86: Milk (cattle) | N86: N/A | O86: 0.2 | P86: Carlsson-Kanyama and Faist (2000) - 1986 | Q86: =ProcessingElectricity[[#This Row],[Electricity Energy Consumption (MJ/kg)]]*MJtoKWH -> 0.05555556 | R86: =INDEX(C:C,MATCH(ProcessingElectricity[[#This Row],[IFC Name]],B:B,0)) -> Animal Protein
L87: Mozarella Cheese | M87: Milk (cattle) | N87: Manufacturing | O87: 20.5 | P87: Kim et al. (2013) | Q87: =ProcessingElectricity[[#This Row],[Electricity Energy Consumption (MJ/kg)]]*MJtoKWH -> 5.6944449 | R87: =INDEX(C:C,MATCH(ProcessingElectricity[[#This Row],[IFC Name]],B:B,0)) -> Animal Protein
L88: Cheese | M88: Milk (cattle) | N88: Processing | O88: 13.85 | P88: Lillywhite et al. (2013) | Q88: =ProcessingElectricity[[#This Row],[Electricity Energy Consumption (MJ/kg)]]*MJtoKWH -> 3.84722253 | R88: =INDEX(C:C,MATCH(ProcessingElectricity[[#This Row],[IFC Name]],B:B,0)) -> Animal Protein
L89: Cream Fresh | M89: Milk (cattle) | N89: N/A | O89: 0.8 | P89: Carlsson-Kanyama and Faist (2000) - 1997 | Q89: =ProcessingElectricity[[#This Row],[Electricity Energy Consumption (MJ/kg)]]*MJtoKWH -> 0.22222224 | R89: =INDEX(C:C,MATCH(ProcessingElectricity[[#This Row],[IFC Name]],B:B,0)) -> Animal Protein
L90: Cream Long-term | M90: Milk (cattle) | N90: N/A | O90: 1 | P90: Carlsson-Kanyama and Faist (2000) - 1997 | Q90: =ProcessingElectricity[[#This Row],[Electricity Energy Consumption (MJ/kg)]]*MJtoKWH -> 0.2777778 | R90: =INDEX(C:C,MATCH(ProcessingElectricity[[#This Row],[IFC Name]],B:B,0)) -> Animal Protein
L91: Milk | M91: Milk (cattle) | N91: N/A | O91: 0.2 | P91: Cox and Miller (1986) | Q91: =ProcessingElectricity[[#This Row],[Electricity Energy Consumption (MJ/kg)]]*MJtoKWH -> 0.05555556 | R91: =INDEX(C:C,MATCH(ProcessingElectricity[[#This Row],[IFC Name]],B:B,0)) -> Animal Protein
L92: Milk | M92: Milk (cattle) | N92: N/A | O92: 0.2 | P92: Cox and Miller (1986) | Q92: =ProcessingElectricity[[#This Row],[Electricity Energy Consumption (MJ/kg)]]*MJtoKWH -> 0.05555556 | R92: =INDEX(C:C,MATCH(ProcessingElectricity[[#This Row],[IFC Name]],B:B,0)) -> Animal Protein
L93: Milk | M93: Milk (cattle) | N93: N/A | O93: 0.8 | P93: Xu, Flapper and Kramer (2009) - 2005 | Q93: =ProcessingElectricity[[#This Row],[Electricity Energy Consumption (MJ/kg)]]*MJtoKWH -> 0.22222224 | R93: =INDEX(C:C,MATCH(ProcessingElectricity[[#This Row],[IFC Name]],B:B,0)) -> Animal Protein
L94: Milk | M94: Milk (cattle) | N94: N/A | O94: 1.2 | P94: Xu, Flapper and Kramer (2009) - 2005 | Q94: =ProcessingElectricity[[#This Row],[Electricity Energy Consumption (MJ/kg)]]*MJtoKWH -> 0.33333336 | R94: =INDEX(C:C,MATCH(ProcessingElectricity[[#This Row],[IFC Name]],B:B,0)) -> Animal Protein
L95: Milk | M95: Milk (cattle) | N95: N/A | O95: 1.4 | P95: Xu, Flapper and Kramer (2009) - 2005 | Q95: =ProcessingElectricity[[#This Row],[Electricity Energy Consumption (MJ/kg)]]*MJtoKWH -> 0.38888892 | R95: =INDEX(C:C,MATCH(ProcessingElectricity[[#This Row],[IFC Name]],B:B,0)) -> Animal Protein
L96: Milk | M96: Milk (cattle) | N96: N/A | O96: 1.5 | P96: Xu, Flapper and Kramer (2009) - 2005 | Q96: =ProcessingElectricity[[#This Row],[Electricity Energy Consumption (MJ/kg)]]*MJtoKWH -> 0.4166667 | R96: =INDEX(C:C,MATCH(ProcessingElectricity[[#This Row],[IFC Name]],B:B,0)) -> Animal Protein
L97: Milk | M97: Milk (cattle) | N97: N/A | O97: 0.1 | P97: Xu, Flapper and Kramer (2009) - 2008 | Q97: =ProcessingElectricity[[#This Row],[Electricity Energy Consumption (MJ/kg)]]*MJtoKWH -> 0.02777778 | R97: =INDEX(C:C,MATCH(ProcessingElectricity[[#This Row],[IFC Name]],B:B,0)) -> Animal Protein
L98: Milk | M98: Milk (cattle) | N98: N/A | O98: 3.2 | P98: Xu, Flapper and Kramer (2009) - 2008 | Q98: =ProcessingElectricity[[#This Row],[Electricity Energy Consumption (MJ/kg)]]*MJtoKWH -> 0.88888896 | R98: =INDEX(C:C,MATCH(ProcessingElectricity[[#This Row],[IFC Name]],B:B,0)) -> Animal Protein
L99: Milk | M99: Milk (cattle) | N99: N/A | O99: 0.4 | P99: Xu, Flapper and Kramer (2009) - 2001 | Q99: =ProcessingElectricity[[#This Row],[Electricity Energy Consumption (MJ/kg)]]*MJtoKWH -> 0.11111112 | R99: =INDEX(C:C,MATCH(ProcessingElectricity[[#This Row],[IFC Name]],B:B,0)) -> Animal Protein
L100: Milk | M100: Milk (cattle) | N100: N/A | O100: 1.1 | P100: Xu, Flapper and Kramer (2009) - 2001 | Q100: =ProcessingElectricity[[#This Row],[Electricity Energy Consumption (MJ/kg)]]*MJtoKWH -> 0.30555558 | R100: =INDEX(C:C,MATCH(ProcessingElectricity[[#This Row],[IFC Name]],B:B,0)) -> Animal Protein
L101: Milk | M101: Milk (cattle) | N101: N/A | O101: 1.2 | P101: Xu, Flapper and Kramer (2009) - 1993,2007 | Q101: =ProcessingElectricity[[#This Row],[Electricity Energy Consumption (MJ/kg)]]*MJtoKWH -> 0.33333336 | R101: =INDEX(C:C,MATCH(ProcessingElectricity[[#This Row],[IFC Name]],B:B,0)) -> Animal Protein
L102: Milk | M102: Milk (cattle) | N102: N/A | O102: 0.2 | P102: Xu, Flapper and Kramer (2009) - 2006 | Q102: =ProcessingElectricity[[#This Row],[Electricity Energy Consumption (MJ/kg)]]*MJtoKWH -> 0.05555556 | R102: =INDEX(C:C,MATCH(ProcessingElectricity[[#This Row],[IFC Name]],B:B,0)) -> Animal Protein
L103: Milk | M103: Milk (cattle) | N103: N/A | O103: 0.2 | P103: Xu, Flapper and Kramer (2009) - 2006 | Q103: =ProcessingElectricity[[#This Row],[Electricity Energy Consumption (MJ/kg)]]*MJtoKWH -> 0.05555556 | R103: =INDEX(C:C,MATCH(ProcessingElectricity[[#This Row],[IFC Name]],B:B,0)) -> Animal Protein
L104: Powder Milk | M104: Milk (cattle) | N104: Total | O104: =AVERAGE(9.5,18) -> 13.75 | P104: Xu and Flapper (2011)- 1998 | Q104: =ProcessingElectricity[[#This Row],[Electricity Energy Consumption (MJ/kg)]]*MJtoKWH -> 3.81944475 | R104: =INDEX(C:C,MATCH(ProcessingElectricity[[#This Row],[IFC Name]],B:B,0)) -> Animal Protein
L105: Concentrated Milk | M105: Milk (cattle) | N105: N/A | O105: 0.4 | P105: Xu and Flapper (2011)- 2009 | Q105: =ProcessingElectricity[[#This Row],[Electricity Energy Consumption (MJ/kg)]]*MJtoKWH -> 0.11111112 | R105: =INDEX(C:C,MATCH(ProcessingElectricity[[#This Row],[IFC Name]],B:B,0)) -> Animal Protein
L106: Powder Milk | M106: Milk (cattle) | N106: N/A | O106: 0.6 | P106: Xu and Flapper (2011)- 2004 | Q106: =ProcessingElectricity[[#This Row],[Electricity Energy Consumption (MJ/kg)]]*MJtoKWH -> 0.16666668 | R106: =INDEX(C:C,MATCH(ProcessingElectricity[[#This Row],[IFC Name]],B:B,0)) -> Animal Protein
L107: Powder Milk | M107: Milk (cattle) | N107: N/A | O107: 1.9 | P107: Xu and Flapper (2011)- 2006 | Q107: =ProcessingElectricity[[#This Row],[Electricity Energy Consumption (MJ/kg)]]*MJtoKWH -> 0.52777782 | R107: =INDEX(C:C,MATCH(ProcessingElectricity[[#This Row],[IFC Name]],B:B,0)) -> Animal Protein
L108: Powder Milk | M108: Milk (cattle) | N108: N/A | O108: 1.4 | P108: Xu and Flapper (2011)- 1982 | Q108: =ProcessingElectricity[[#This Row],[Electricity Energy Consumption (MJ/kg)]]*MJtoKWH -> 0.38888892 | R108: =INDEX(C:C,MATCH(ProcessingElectricity[[#This Row],[IFC Name]],B:B,0)) -> Animal Protein
L109: Powder Milk | M109: Milk (cattle) | N109: N/A | O109: =AVERAGE(0.6,31.4) -> 16 | P109: Xu and Flapper (2011)- 2006 | Q109: =ProcessingElectricity[[#This Row],[Electricity Energy Consumption (MJ/kg)]]*MJtoKWH -> 4.4444448 | R109: =INDEX(C:C,MATCH(ProcessingElectricity[[#This Row],[IFC Name]],B:B,0)) -> Animal Protein
L110: Powder Milk | M110: Milk (cattle) | N110: N/A | O110: 1.6 | P110: Xu and Flapper (2011)- 2002 | Q110: =ProcessingElectricity[[#This Row],[Electricity Energy Consumption (MJ/kg)]]*MJtoKWH -> 0.44444448 | R110: =INDEX(C:C,MATCH(ProcessingElectricity[[#This Row],[IFC Name]],B:B,0)) -> Animal Protein
L111: Powder Milk | M111: Milk (cattle) | N111: N/A | O111: 0.9 | P111: Xu and Flapper (2011)- 1997 | Q111: =ProcessingElectricity[[#This Row],[Electricity Energy Consumption (MJ/kg)]]*MJtoKWH -> 0.25000002 | R111: =INDEX(C:C,MATCH(ProcessingElectricity[[#This Row],[IFC Name]],B:B,0)) -> Animal Protein
L112: Milk | M112: Milk (cattle) | N112: Processing | O112: 1.4 | P112: Lillywhite et al. (2013) | Q112: =ProcessingElectricity[[#This Row],[Electricity Energy Consumption (MJ/kg)]]*MJtoKWH -> 0.38888892 | R112: =INDEX(C:C,MATCH(ProcessingElectricity[[#This Row],[IFC Name]],B:B,0)) -> Animal Protein
L113: Milk | M113: Milk (cattle) | N113: N/A | O113: 1.48 | P113: Hendrickson (1996) - 1979 | Q113: =ProcessingElectricity[[#This Row],[Electricity Energy Consumption (MJ/kg)]]*MJtoKWH -> 0.411111144 | R113: =INDEX(C:C,MATCH(ProcessingElectricity[[#This Row],[IFC Name]],B:B,0)) -> Animal Protein
L114: Powder Milk | M114: Milk (cattle) | N114: N/A | O114: 15 | P114: Commission of the European Communities (1981)- 1977 | Q114: =ProcessingElectricity[[#This Row],[Electricity Energy Consumption (MJ/kg)]]*MJtoKWH -> 4.166667 | R114: =INDEX(C:C,MATCH(ProcessingElectricity[[#This Row],[IFC Name]],B:B,0)) -> Animal Protein
L115: Milk | M115: Milk (cattle) | N115: Processing | O115: 0.2 | P115: Foster et al. (2006) - 1999-2003 | Q115: =ProcessingElectricity[[#This Row],[Electricity Energy Consumption (MJ/kg)]]*MJtoKWH -> 0.05555556 | R115: =INDEX(C:C,MATCH(ProcessingElectricity[[#This Row],[IFC Name]],B:B,0)) -> Animal Protein
L116: Milk | M116: Milk (cattle) | N116: N/A | O116: 0.2 | P116: Van Alfen (2014) - 2000 | Q116: =ProcessingElectricity[[#This Row],[Electricity Energy Consumption (MJ/kg)]]*MJtoKWH -> 0.05555556 | R116: =INDEX(C:C,MATCH(ProcessingElectricity[[#This Row],[IFC Name]],B:B,0)) -> Animal Protein
L117: Milk | M117: Milk (cattle) | N117: N/A | O117: 0.5 | P117: Van Alfen (2014) - 2000 | Q117: =ProcessingElectricity[[#This Row],[Electricity Energy Consumption (MJ/kg)]]*MJtoKWH -> 0.1388889 | R117: =INDEX(C:C,MATCH(ProcessingElectricity[[#This Row],[IFC Name]],B:B,0)) -> Animal Protein
L118: Milk | M118: Milk (cattle) | N118: N/A | O118: 0.7 | P118: Van Alfen (2014) - 2000 | Q118: =ProcessingElectricity[[#This Row],[Electricity Energy Consumption (MJ/kg)]]*MJtoKWH -> 0.19444446 | R118: =INDEX(C:C,MATCH(ProcessingElectricity[[#This Row],[IFC Name]],B:B,0)) -> Animal Protein
L119: Milk | M119: Milk (cattle) | N119: N/A | O119: 0.8 | P119: Van Alfen (2014) - 2000 | Q119: =ProcessingElectricity[[#This Row],[Electricity Energy Consumption (MJ/kg)]]*MJtoKWH -> 0.22222224 | R119: =INDEX(C:C,MATCH(ProcessingElectricity[[#This Row],[IFC Name]],B:B,0)) -> Animal Protein
L120: Milk | M120: Milk (cattle) | N120: N/A | O120: 1 | P120: Van Alfen (2014) - 2000 | Q120: =ProcessingElectricity[[#This Row],[Electricity Energy Consumption (MJ/kg)]]*MJtoKWH -> 0.2777778 | R120: =INDEX(C:C,MATCH(ProcessingElectricity[[#This Row],[IFC Name]],B:B,0)) -> Animal Protein
L121: Milk | M121: Milk (cattle) | N121: N/A | O121: 0.2 | P121: Van Alfen (2014) - 2002 | Q121: =ProcessingElectricity[[#This Row],[Electricity Energy Consumption (MJ/kg)]]*MJtoKWH -> 0.05555556 | R121: =INDEX(C:C,MATCH(ProcessingElectricity[[#This Row],[IFC Name]],B:B,0)) -> Animal Protein
L122: Dried Milk | M122: Milk (cattle) | N122: N/A | O122: 1.4 | P122: Van Alfen (2014) - 2000 | Q122: =ProcessingElectricity[[#This Row],[Electricity Energy Consumption (MJ/kg)]]*MJtoKWH -> 0.38888892 | R122: =INDEX(C:C,MATCH(ProcessingElectricity[[#This Row],[IFC Name]],B:B,0)) -> Animal Protein
L123: Yoghurt - primary | M123: Milk (cattle) | N123: N/A | O123: 1.2 | P123: Foster et al. (2006) - 2000 | Q123: =ProcessingElectricity[[#This Row],[Electricity Energy Consumption (MJ/kg)]]*MJtoKWH -> 0.33333336 | R123: =INDEX(C:C,MATCH(ProcessingElectricity[[#This Row],[IFC Name]],B:B,0)) -> Animal Protein
L124: Yoghurt - primary | M124: Milk (cattle) | N124: Processing | O124: 4.6 | P124: Foster et al. (2006) - 2004 | Q124: =ProcessingElectricity[[#This Row],[Electricity Energy Consumption (MJ/kg)]]*MJtoKWH -> 1.27777788 | R124: =INDEX(C:C,MATCH(ProcessingElectricity[[#This Row],[IFC Name]],B:B,0)) -> Animal Protein
L125: Beef - Carcas | M125: Meat (cattle) | N125: Farm to market - transport, processing and distribution | O125: 32.2 | P125: Stanhill (1984) | Q125: =ProcessingElectricity[[#This Row],[Electricity Energy Consumption (MJ/kg)]]*MJtoKWH -> 8.94444516 | R125: =INDEX(C:C,MATCH(ProcessingElectricity[[#This Row],[IFC Name]],B:B,0)) -> Animal Protein
L126: Beef - Deboned meat | M126: Meat (cattle) | N126: N/A | O126: 43.3 | P126: Stanhill (1984) | Q126: =ProcessingElectricity[[#This Row],[Electricity Energy Consumption (MJ/kg)]]*MJtoKWH -> 12.02777874 | R126: =INDEX(C:C,MATCH(ProcessingElectricity[[#This Row],[IFC Name]],B:B,0)) -> Animal Protein
L127: Beef | M127: Meat (cattle) | N127: Processing | O127: 5.16 | P127: Lillywhite et al. (2013) | Q127: =ProcessingElectricity[[#This Row],[Electricity Energy Consumption (MJ/kg)]]*MJtoKWH -> 1.433333448 | R127: =INDEX(C:C,MATCH(ProcessingElectricity[[#This Row],[IFC Name]],B:B,0)) -> Animal Protein
L128: Fishmeal | N128: N/A | O128: 1.3 | P128: Cleland, Earle and Boag (1981) - 1980 | Q128: =ProcessingElectricity[[#This Row],[Electricity Energy Consumption (MJ/kg)]]*MJtoKWH -> 0.36111114 | R128: Animal Protein | S128: Special cases
L129: Fish Frozen | N129: Includes refrigeration | O129: 0.61 | P129: Wang (2014)- 2001 | Q129: =ProcessingElectricity[[#This Row],[Electricity Energy Consumption (MJ/kg)]]*MJtoKWH -> 0.169444458 | R129: Animal Protein
L130: Fish Frozen (whole fish and fillets) | N130: Includes refrigeration, storage after processing | O130: =0.63+2.6 -> 3.23 | P130: Cleland, Earle and Boag (1981) - 1980 | Q130: =ProcessingElectricity[[#This Row],[Electricity Energy Consumption (MJ/kg)]]*MJtoKWH -> 0.897222294 | R130: Animal Protein
L131: Processed Fish products | N131: Includes refrigeration, storage after processing | O131: =1.1+2.1 -> 3.2 | P131: Cleland, Earle and Boag (1981) - 1980 | Q131: =ProcessingElectricity[[#This Row],[Electricity Energy Consumption (MJ/kg)]]*MJtoKWH -> 0.88888896 | R131: Animal Protein
L132: Salmon | N132: Packaging not inlcuded | O132: 0.57 | P132: Lillywhite et al. (2013) | Q132: =ProcessingElectricity[[#This Row],[Electricity Energy Consumption (MJ/kg)]]*MJtoKWH -> 0.158333346 | R132: Animal Protein
L133: Frozen fish fingers, cod, packed (primary) | N133: Processing | O133: 6.5 | P133: Foster et al. (2006) | Q133: =ProcessingElectricity[[#This Row],[Electricity Energy Consumption (MJ/kg)]]*MJtoKWH -> 1.8055557 | R133: Animal Protein
L134: Meat | N134: Processed | O134: 3.5 | P134: Cleland, Earle and Boag (1981) - 1980 | Q134: =ProcessingElectricity[[#This Row],[Electricity Energy Consumption (MJ/kg)]]*MJtoKWH -> 0.9722223 | R134: Animal Protein
L135: Meat | N135: Grinding | O135: 0.3 | P135: Carlsson-Kanyama and Faist (2000) - 1997 | Q135: =ProcessingElectricity[[#This Row],[Electricity Energy Consumption (MJ/kg)]]*MJtoKWH -> 0.08333334 | R135: Animal Protein
L136: Meat | N136: N/A | O136: 5.05 | P136: Hendrickson (1996) | Q136: =ProcessingElectricity[[#This Row],[Electricity Energy Consumption (MJ/kg)]]*MJtoKWH -> 1.40277789 | R136: Animal Protein
L137: Meat - Canned | N137: N/A | O137: 4 | P137: Commission of the European Communities (1981) | Q137: =ProcessingElectricity[[#This Row],[Electricity Energy Consumption (MJ/kg)]]*MJtoKWH -> 1.1111112 | R137: Animal Protein
L138: Pig | M138: Meat (pig) | N138: N/A | O138: 0.47 | P138: Wang (2014) - 2001 | Q138: =ProcessingElectricity[[#This Row],[Electricity Energy Consumption (MJ/kg)]]*MJtoKWH -> 0.130555566 | R138: =INDEX(C:C,MATCH(ProcessingElectricity[[#This Row],[IFC Name]],B:B,0)) -> Animal Protein
L139: Pig - Carcas | M139: Meat (pig) | N139: Farm to market - transport, processing and distribution | O139: 52.4 | P139: Stanhill (1984) | Q139: =ProcessingElectricity[[#This Row],[Electricity Energy Consumption (MJ/kg)]]*MJtoKWH -> 14.55555672 | R139: =INDEX(C:C,MATCH(ProcessingElectricity[[#This Row],[IFC Name]],B:B,0)) -> Animal Protein
L140: Pig - Deboned meat | M140: Meat (pig) | N140: Includes energy inpur for slaughtering | O140: 62.5 | P140: Stanhill (1984) | Q140: =ProcessingElectricity[[#This Row],[Electricity Energy Consumption (MJ/kg)]]*MJtoKWH -> 17.3611125 | R140: =INDEX(C:C,MATCH(ProcessingElectricity[[#This Row],[IFC Name]],B:B,0)) -> Animal Protein
L141: Pig - ham and bacon | M141: Meat (pig) | N141: Direct use in processing + allocated baseload | O141: 6.7 | P141: Cleland, Earle and Boag (1981) | Q141: =ProcessingElectricity[[#This Row],[Electricity Energy Consumption (MJ/kg)]]*MJtoKWH -> 1.86111126 | R141: =INDEX(C:C,MATCH(ProcessingElectricity[[#This Row],[IFC Name]],B:B,0)) -> Animal Protein
L142: Pork | M142: Meat (pig) | N142: Processing | O142: 3 | P142: Lillywhite et al. (2013) | Q142: =ProcessingElectricity[[#This Row],[Electricity Energy Consumption (MJ/kg)]]*MJtoKWH -> 0.8333334 | R142: =INDEX(C:C,MATCH(ProcessingElectricity[[#This Row],[IFC Name]],B:B,0)) -> Animal Protein
L143: Pork | M143: Meat (pig) | N143: Processing | O143: 4 | P143: Lillywhite et al. (2013) | Q143: =ProcessingElectricity[[#This Row],[Electricity Energy Consumption (MJ/kg)]]*MJtoKWH -> 1.1111112 | R143: =INDEX(C:C,MATCH(ProcessingElectricity[[#This Row],[IFC Name]],B:B,0)) -> Animal Protein
L144: Poultry | M144: Meat (chicken) | N144: N/A - dress carcass weight | O144: 1.01 | P144: Wang (2014) - 2001 | Q144: =ProcessingElectricity[[#This Row],[Electricity Energy Consumption (MJ/kg)]]*MJtoKWH -> 0.280555578 | R144: =INDEX(C:C,MATCH(ProcessingElectricity[[#This Row],[IFC Name]],B:B,0)) -> Animal Protein
L145: Poultry - Fresh | M145: Meat (chicken) | N145: N/A | O145: =0.11+0.65 -> 0.76 | P145: Cleland, Earle and Boag (1981) - 1980 | Q145: =ProcessingElectricity[[#This Row],[Electricity Energy Consumption (MJ/kg)]]*MJtoKWH -> 0.211111128 | R145: =INDEX(C:C,MATCH(ProcessingElectricity[[#This Row],[IFC Name]],B:B,0)) -> Animal Protein
L146: Poultry - Frozen | M146: Meat (chicken) | N146: N/A | O146: =0.61+0.7 -> 1.31 | P146: Cleland, Earle and Boag (1981) - 1981 | Q146: =ProcessingElectricity[[#This Row],[Electricity Energy Consumption (MJ/kg)]]*MJtoKWH -> 0.363888918 | R146: =INDEX(C:C,MATCH(ProcessingElectricity[[#This Row],[IFC Name]],B:B,0)) -> Animal Protein
L147: Cocoa Beans | M147: Cocoa | N147: N/A | O147: 6.38 | P147: Wang (2014) - 2001 | Q147: =ProcessingElectricity[[#This Row],[Electricity Energy Consumption (MJ/kg)]]*MJtoKWH -> 1.772222364 | R147: =INDEX(C:C,MATCH(ProcessingElectricity[[#This Row],[IFC Name]],B:B,0)) -> Nuts/Seeds
L148: Coffee - Instant | M148: Coffee | N148: N/A | O148: 2.7 | P148: Cleland, Earle and Boag (1981) - 1980 | Q148: =ProcessingElectricity[[#This Row],[Electricity Energy Consumption (MJ/kg)]]*MJtoKWH -> 0.75000006 | R148: =INDEX(C:C,MATCH(ProcessingElectricity[[#This Row],[IFC Name]],B:B,0)) -> Nuts/Seeds
L149: Coffee - Instant | M149: Coffee | N149: Processing, packaging, shipping | O149: 2.5 | P149: Carlsson-Kanyama and Faist (2000) - 1980 | Q149: =ProcessingElectricity[[#This Row],[Electricity Energy Consumption (MJ/kg)]]*MJtoKWH -> 0.6944445 | R149: =INDEX(C:C,MATCH(ProcessingElectricity[[#This Row],[IFC Name]],B:B,0)) -> Nuts/Seeds
L150: Coffee - Instant | M150: Coffee | N150: Processing | O150: 8.3 | P150: Morawicki and Hager (2014) 2009 | Q150: =ProcessingElectricity[[#This Row],[Electricity Energy Consumption (MJ/kg)]]*MJtoKWH -> 2.30555574 | R150: =INDEX(C:C,MATCH(ProcessingElectricity[[#This Row],[IFC Name]],B:B,0)) -> Nuts/Seeds
L151: Coffee | M151: Coffee | N151: Processing | O151: 23.24 | P151: Lillywhite et al. (2013) | Q151: =ProcessingElectricity[[#This Row],[Electricity Energy Consumption (MJ/kg)]]*MJtoKWH -> 6.455556072 | R151: =INDEX(C:C,MATCH(ProcessingElectricity[[#This Row],[IFC Name]],B:B,0)) -> Nuts/Seeds
L152: Coffee | M152: Coffee | N152: Packaging | O152: 30.71 | P152: Lillywhite et al. (2013) | Q152: =ProcessingElectricity[[#This Row],[Electricity Energy Consumption (MJ/kg)]]*MJtoKWH -> 8.530556238 | R152: =INDEX(C:C,MATCH(ProcessingElectricity[[#This Row],[IFC Name]],B:B,0)) -> Nuts/Seeds
L153: Coffee - Instant | M153: Coffee | N153: N/A | O153: 79.28 | P153: Hendrickson (1996) - 1979 | Q153: =ProcessingElectricity[[#This Row],[Electricity Energy Consumption (MJ/kg)]]*MJtoKWH -> 22.02222398 | R153: =INDEX(C:C,MATCH(ProcessingElectricity[[#This Row],[IFC Name]],B:B,0)) -> Nuts/Seeds
L154: Cotton textile | M154: Cotton | N154: Ginning | O154: =$G$55 -> 89.4 | P154: =$E$48 -> La Rosa & Grammatikos, 2019 | Q154: =ProcessingElectricity[[#This Row],[Electricity Energy Consumption (MJ/kg)]]*MJtoKWH -> 24.83333532 | R154: =INDEX(C:C,MATCH(ProcessingElectricity[[#This Row],[IFC Name]],B:B,0)) -> Cotton

Sheet GHG Results (hidden)
B1: GHG Results
J2: =storage2LossBefore -> 0
D3: Farm | E3: Transport | F3: Storage
B4: I. Food loss (tonnage) | D4: Production (post-harvest) | E4: Transport 1 | F4: Storage 1 (pre-processing) | G4: Transport 2 | H4: Processing | I4: Transport 3 | J4: Storage 2 (pre-retail) | K4: Transport 4 | L4: Retail
C5: Equivalent gross amount before the project per year (tonnes) | D5: =D$8/(1-'GHG Results'!D$14) -> 0 | E5: =E$8/(1-'GHG Results'!E$14) -> 0 | F5: =F$8/(1-'GHG Results'!F$14) -> 0 | G5: =G$8/(1-'GHG Results'!G$14) -> 0 | H5: =H$8/(1-'GHG Results'!H$14) -> 0 | I5: =I$8/(1-'GHG Results'!I$14) -> 0 | J5: =J$8/(1-'GHG Results'!J$14) -> 0 | K5: =K$8/(1-'GHG Results'!K$14) -> 0 | L5: =L$8/(1-'GHG Results'!L$14) -> 0
C6: Equivalent waste before project per year (tonnes) | D6: =D$5*'GHG Results'!D$14 -> 0 | E6: =E$5*'GHG Results'!E$14 -> 0 | F6: =F$5*'GHG Results'!F$14 -> 0 | G6: =G$5*'GHG Results'!G$14 -> 0 | H6: =H$5*'GHG Results'!H$14 -> 0 | I6: =I$5*'GHG Results'!I$14 -> 0 | J6: =J$5*'GHG Results'!J$14 -> 0 | K6: =K$5*'GHG Results'!K$14 -> 0 | L6: =L$5*'GHG Results'!L$14 -> 0
C7: Amount gross of food losses per year (tonnes) - after the project | D7: =IF(amountNetAfter="Yes", Interface!$D21/(1-Interface!$F21),Interface!$D21) -> 0 | E7: =IF(amountNetAfter="Yes", Interface!$D22/(1-Interface!$F22),Interface!$D22) -> 0 | F7: =IF(amountNetAfter="Yes", Interface!$D23/(1-Interface!$F23),Interface!$D23) -> 0 | G7: =IF(amountNetAfter="Yes", Interface!$D24/(1-Interface!$F24),Interface!$D24) -> 0 | H7: =IF(amountNetAfter="Yes", Interface!$D25/(1-Interface!$F25),Interface!$D25) -> 0 | I7: =IF(amountNetAfter="Yes", Interface!$D26/(1-Interface!$F26),Interface!$D26) -> 0 | J7: =IF(amountNetAfter="Yes", Interface!$D27/(1-Interface!$F27),Interface!$D27) -> 0 | K7: =IF(amountNetAfter="Yes", Interface!$D28/(1-Interface!$F28),Interface!$D28) -> 0 | L7: =IF(amountNetAfter="Yes", Interface!$D29/(1-Interface!$F29),Interface!$D29) -> 0
C8: Amount net of food losses per year (tonnes) - after the project | D8: =IF(amountNetAfter="No",Interface!$D21*(1-Interface!$F21),Interface!$D21) -> 0 | E8: =IF(amountNetAfter="No",Interface!$D22*(1-Interface!$F22),Interface!$D22) -> 0 | F8: =IF(amountNetAfter="No",Interface!$D23*(1-Interface!$F23),Interface!$D23) -> 0 | G8: =IF(amountNetAfter="No",Interface!$D24*(1-Interface!$F24),Interface!$D24) -> 0 | H8: =IF(amountNetAfter="No",Interface!$D25*(1-Interface!$F25),Interface!$D25) -> 0 | I8: =IF(amountNetAfter="No",Interface!$D26*(1-Interface!$F26),Interface!$D26) -> 0 | J8: =IF(amountNetAfter="No",Interface!$D27*(1-Interface!$F27),Interface!$D27) -> 0 | K8: =IF(amountNetAfter="No",Interface!$D28*(1-Interface!$F28),Interface!$D28) -> 0 | L8: =IF(amountNetAfter="No",Interface!$D29*(1-Interface!$F29),Interface!$D29) -> 0
C9: Waste after project per year (tonnes) | D9: =D$7-D$8 -> 0 | E9: 0 | F9: 0 | G9: 0 | H9: 0 | I9: 0 | J9: 0 | K9: 0 | L9: 0
C10: Avoided losses per year (tonnes) | D10: =MAX(D6-D9, 0) -> 0 | E10: =MAX(E6-E9, 0) -> 0 | F10: 0 | G10: 0 | H10: =MAX(H6-H9, 0) -> 0 | I10: 0 | J10: =MAX(J6-J9, 0) -> 0 | K10: =MAX(K6-K9, 0) -> 0 | L10: =MAX(L6-L9, 0) -> 0
C11: Uplift factor based on extraction rates in tonnes per tonne of processed commodity (excl. Meat, eggs, milk & flour): | D11: =1/INDEX(ExtractionRates[Extraction rate%],MATCH(commodity,ExtractionRates[IFC Commodity],0)) ->  | E11: =1/INDEX(ExtractionRates[Extraction rate%],MATCH(commodity,ExtractionRates[IFC Commodity],0)) ->  | F11: =1/INDEX(ExtractionRates[Extraction rate%],MATCH(commodity,ExtractionRates[IFC Commodity],0)) ->  | G11: =1/INDEX(ExtractionRates[Extraction rate%],MATCH(commodity,ExtractionRates[IFC Commodity],0)) ->  | H11: =1/INDEX(ExtractionRates[Extraction rate%],MATCH(commodity,ExtractionRates[IFC Commodity],0)) ->  | I11: =1/INDEX(ExtractionRates[Extraction rate%],MATCH(commodity,ExtractionRates[IFC Commodity],0)) ->  | J11: =1/INDEX(ExtractionRates[Extraction rate%],MATCH(commodity,ExtractionRates[IFC Commodity],0)) ->  | K11: =1/INDEX(ExtractionRates[Extraction rate%],MATCH(commodity,ExtractionRates[IFC Commodity],0)) ->  | L11: =1/INDEX(ExtractionRates[Extraction rate%],MATCH(commodity,ExtractionRates[IFC Commodity],0)) -> 
B13: II. Food loss (rates) | D13: Production (post-harvest) | E13: Transport 1 | F13: Storage 1 (pre-processing) | G13: Transport 2 | H13: Processing | I13: Transport 3 | J13: Storage 2 (pre-retail) | K13: Transport 4 | L13: Retail
C14: Commodity loss rate before the project (%) | D14: =IF(productionSelector,IF(farmLossBefore<>"",farmLossBefore, IF(D16<>"",D16, IF(D17<>"",D17, MIN(IF(D18:D21>0,D18:D21)) ))),0) -> 0 | E14: =IF(transport1Selector,IF(transportLossBefore<>"", transportLossBefore, 'FL-output'!$I$66),0) -> 0 | F14: =IF(storage1Selector,IF(storage1LossBefore<>"",storage1LossBefore, Storage!$I$10* IF(F16<>"",F16, IF(F17<>"",F17, MIN(IF(F18:F21>0,F18:F21)) ))),0) -> 0 | G14: =IF(transport2Selector,IF(transport2LossBefore<>"", transport2LossBefore, 'FL-output'!$I$67),0) -> 0 | H14: =IF(processingSelector,IF(processingLossBefore<>"",processingLossBefore, IF(H16<>"",H16, IF(H17<>"",H17, MIN(IF(H18:H21>0,H18:H21)) ))),0) -> 0 | I14: =IF(transport3Selector,IF(transport3LossBefore<>"", transport3LossBefore, 'FL-output'!$I$68),0) -> 0 | J14: =IF(storage2Selector,IF(storage2LossBefore<>"",storage2LossBefore, Storage!$J$10* IF(J16<>"",J16, IF(J17<>"",J17, MIN(IF(J18:J21>0,J18:J21))))),0) -> 0 | K14: =IF(transport4Selector,IF(transport4LossBefore<>"", transport4LossBefore, 'FL-output'!$I$69),0) -> 0 | L14: =IF(retailSelector,IF(retailLossBefore<>"",retailLossBefore, IF(L16<>"",L16, IF(L17<>"",L17, MIN(IF(L18:L21>0,L18:L21))))),0) -> 0
C15: Data source | D15: =IF(farmLossBefore<>"","User input value", IF(D16<>"",$C16, IF(D17<>"",$C17, INDEX($C$18:$C$21,MATCH(MIN(D18:D21),D18:D21,0))))) ->  | E15: =IF(transportLossBefore<>"","User input value", "Weighted average of origin and destination countries") -> Weighted average of origin and destination countries | F15: =IF(storage1LossBefore<>"", "User input value", IF(F16<>"",$C16, IF(F17<>"",$C17, INDEX($C$18:$C$21,MATCH(MIN(F18:F21),F18:F21,0))))) ->  | G15: =IF(transport2Selector,IF(transport2LossBefore<>"", "User input value", "Weighted average of origin and destination countries"),"") ->  | H15: =IF(processingLossBefore<>"", "User input value", IF(H16<>"",$C16, IF(H17<>"",$C17, INDEX($C$18:$C$21,MATCH(MIN(H18:H21),H18:H21,0))))) ->  | I15: =IF(transport3Selector,IF(transport3LossBefore<>"", "User input value", "Weighted average of origin and destination countries"),"") ->  | J15: =IF(transport2Selector,IF(transport2LossBefore<>"","User input value", IF(J16<>"",$C16, IF(J17<>"",$C17, INDEX($C$18:$C$21,MATCH(MIN(J18:J21),J18:J21,0))))),"") ->  | K15: =IF(transport4Selector,IF(transport4LossBefore<>"", "User input value", "Weighted average of origin and destination countries"),"") ->  | L15: =IF(retailLossBefore<>"","User input value", IF(L16<>"",$C16, IF(L17<>"",$C17, INDEX($C$18:$C$21,MATCH(MIN(L18:L21),L18:L21,0))))) -> 
C16: ="IFC custom food loss rate (Country/"&commodity&")" -> IFC custom food loss rate (Country/) | D16: =INDEX('FL-output'!$B$25:$N$30,MATCH(D$13,'FL-output'!$B$25:$B$30,0),MATCH($C16,'FL-output'!$B$25:$N$25,0)) ->  | F16: =INDEX('FL-output'!$B$25:$N$30,MATCH(F$13,'FL-output'!$B$25:$B$30,0),MATCH($C16,'FL-output'!$B$25:$N$25,0)) ->  | H16: =INDEX('FL-output'!$B$25:$N$30,MATCH(H$13,'FL-output'!$B$25:$B$30,0),MATCH($C16,'FL-output'!$B$25:$N$25,0)) ->  | J16: =INDEX('FL-output'!$B$25:$N$30,MATCH(J$13,'FL-output'!$B$25:$B$30,0),MATCH($C16,'FL-output'!$B$25:$N$25,0)) ->  | L16: =INDEX('FL-output'!$B$25:$N$30,MATCH(L$13,'FL-output'!$B$25:$B$30,0),MATCH($C16,'FL-output'!$B$25:$N$25,0)) -> 
C17: ="FAO Food Loss database (Country/" & commodity &")" -> FAO Food Loss database (Country/) | D17: =INDEX('FL-output'!$B$25:$N$30,MATCH(D$13,'FL-output'!$B$25:$B$30,0),MATCH($C17,'FL-output'!$B$25:$N$25,0)) ->  | F17: =INDEX('FL-output'!$B$25:$N$30,MATCH(F$13,'FL-output'!$B$25:$B$30,0),MATCH($C17,'FL-output'!$B$25:$N$25,0)) ->  | H17: =INDEX('FL-output'!$B$25:$N$30,MATCH(H$13,'FL-output'!$B$25:$B$30,0),MATCH($C17,'FL-output'!$B$25:$N$25,0)) ->  | J17: =INDEX('FL-output'!$B$25:$N$30,MATCH(J$13,'FL-output'!$B$25:$B$30,0),MATCH($C17,'FL-output'!$B$25:$N$25,0)) ->  | L17: =INDEX('FL-output'!$B$25:$N$30,MATCH(L$13,'FL-output'!$B$25:$B$30,0),MATCH($C17,'FL-output'!$B$25:$N$25,0)) -> 
C18: ="FAO Food Loss database (Country/"&commodityGroup&")" -> FAO Food Loss database (Country/) | D18: =INDEX('FL-output'!$B$25:$N$30,MATCH(D$13,'FL-output'!$B$25:$B$30,0),MATCH($C18,'FL-output'!$B$25:$N$25,0)) ->  | F18: =INDEX('FL-output'!$B$25:$N$30,MATCH(F$13,'FL-output'!$B$25:$B$30,0),MATCH($C18,'FL-output'!$B$25:$N$25,0)) ->  | H18: =INDEX('FL-output'!$B$25:$N$30,MATCH(H$13,'FL-output'!$B$25:$B$30,0),MATCH($C18,'FL-output'!$B$25:$N$25,0)) ->  | J18: =INDEX('FL-output'!$B$25:$N$30,MATCH(J$13,'FL-output'!$B$25:$B$30,0),MATCH($C18,'FL-output'!$B$25:$N$25,0)) ->  | L18: =INDEX('FL-output'!$B$25:$N$30,MATCH(L$13,'FL-output'!$B$25:$B$30,0),MATCH($C18,'FL-output'!$B$25:$N$25,0)) -> 
C19: ="FAO Food Loss database (UN SubRegion/"&commodity&")" -> FAO Food Loss database (UN SubRegion/) | D19: =INDEX('FL-output'!$B$25:$N$30,MATCH(D$13,'FL-output'!$B$25:$B$30,0),MATCH($C19,'FL-output'!$B$25:$N$25,0)) ->  | F19: =INDEX('FL-output'!$B$25:$N$30,MATCH(F$13,'FL-output'!$B$25:$B$30,0),MATCH($C19,'FL-output'!$B$25:$N$25,0)) ->  | H19: =INDEX('FL-output'!$B$25:$N$30,MATCH(H$13,'FL-output'!$B$25:$B$30,0),MATCH($C19,'FL-output'!$B$25:$N$25,0)) ->  | J19: =INDEX('FL-output'!$B$25:$N$30,MATCH(J$13,'FL-output'!$B$25:$B$30,0),MATCH($C19,'FL-output'!$B$25:$N$25,0)) ->  | L19: =INDEX('FL-output'!$B$25:$N$30,MATCH(L$13,'FL-output'!$B$25:$B$30,0),MATCH($C19,'FL-output'!$B$25:$N$25,0)) -> 
C20: ="FAO Food Loss database (UN SubRegion/"&impliedFAOcommgroup&")" ->  | D20: =INDEX('FL-output'!$B$25:$N$30,MATCH(D$13,'FL-output'!$B$25:$B$30,0),MATCH($C20,'FL-output'!$B$25:$N$25,0)) ->  | F20: =INDEX('FL-output'!$B$25:$N$30,MATCH(F$13,'FL-output'!$B$25:$B$30,0),MATCH($C20,'FL-output'!$B$25:$N$25,0)) ->  | H20: =INDEX('FL-output'!$B$25:$N$30,MATCH(H$13,'FL-output'!$B$25:$B$30,0),MATCH($C20,'FL-output'!$B$25:$N$25,0)) ->  | J20: =INDEX('FL-output'!$B$25:$N$30,MATCH(J$13,'FL-output'!$B$25:$B$30,0),MATCH($C20,'FL-output'!$B$25:$N$25,0)) ->  | L20: =INDEX('FL-output'!$B$25:$N$30,MATCH(L$13,'FL-output'!$B$25:$B$30,0),MATCH($C20,'FL-output'!$B$25:$N$25,0)) -> 
C21: ="FAO estimate (FAO Region/" & impliedFAOcommgroup & ")" ->  | D21: =INDEX('FL-output'!$B$25:$N$30,MATCH(D$13,'FL-output'!$B$25:$B$30,0),MATCH($C21,'FL-output'!$B$25:$N$25,0)) ->  | F21: =INDEX('FL-output'!$B$25:$N$30,MATCH(F$13,'FL-output'!$B$25:$B$30,0),MATCH($C21,'FL-output'!$B$25:$N$25,0)) ->  | H21: =INDEX('FL-output'!$B$25:$N$30,MATCH(H$13,'FL-output'!$B$25:$B$30,0),MATCH($C21,'FL-output'!$B$25:$N$25,0)) ->  | J21: =INDEX('FL-output'!$B$25:$N$30,MATCH(J$13,'FL-output'!$B$25:$B$30,0),MATCH($C21,'FL-output'!$B$25:$N$25,0)) ->  | L21: =INDEX('FL-output'!$B$25:$N$30,MATCH(L$13,'FL-output'!$B$25:$B$30,0),MATCH($C21,'FL-output'!$B$25:$N$25,0)) -> 
C23: Commodity loss rate after the project (%) | D23: =IF(productionSelector,farmLossAfter,"") ->  | E23: =IF(transport1Selector,transportLossAfter,"") ->  | F23: =IF(storage1Selector,storage1LossAfter,"") ->  | G23: =IF(transport2Selector,transport2LossAfter,"") ->  | H23: =IF(processingSelector,processingLossAfter,"") ->  | I23: =IF(transport3Selector,transport3LossAfter,"") ->  | J23: =IF(storage2Selector,storage2LossAfter,"") ->  | K23: =IF(transport4Selector,transport4LossAfter,"") ->  | L23: =IF(retailSelector,retailLossAfter,"") -> 
C25: Food loss rate reduction (%) | D25: =(D14-D23)/D14 ->  | E25: =(E14-E23)/E14 ->  | I25: =(I14-I23)/I14 -> 
B27: III. Equivalent CO2 emission savings | D27: Production (post-harvest) | E27: Transport 1 | F27: Storage 1 (pre-processing) | G27: Transport 2 | H27: Processing | I27: Transport 3 | J27: Storage 2 (pre-retail) | K27: Transport 4 | L27: Retail
C28: Production equivalent CO2 emissions per year (tonnes) | D28: =IF(productionSelector,D10*'Default parameters'!$E$3,0) -> 0 | E28: =IF(transport1Selector,E10*'Default parameters'!$E$3,0) -> 0 | F28: =IF(storage1Selector,F10*'Default parameters'!$E$3,0) -> 0 | G28: =IF(transport2Selector,G10*'Default parameters'!$E$3,0) -> 0 | H28: =IF(processingSelector,H10*H11*'Default parameters'!$E$3,0) -> 0 | I28: =IF(transport3Selector,I10*I11*'Default parameters'!$E$3,0) -> 0 | J28: =IF(storage2Selector,J10*J11*'Default parameters'!$E$3,0) -> 0 | K28: =IF(transport4Selector,K10*K11*'Default parameters'!$E$3,0) -> 0 | L28: =IF(retailSelector,L10*L11*'Default parameters'!$E$3,0) -> 0
C29: Transport 1 equivalent CO2e emissions per year (tonnes) | D29: 0 | E29: =IF(transport1Selector,E10*'Default parameters'!$L$5,0) -> 0 | F29: =IF(storage1Selector,F10*'Default parameters'!$L$5,0) -> 0 | G29: =IF(transport2Selector,G10*'Default parameters'!$L$5,0) -> 0 | H29: =IF(processingSelector,H10*H11*'Default parameters'!$L$5,0) -> 0 | I29: =IF(transport3Selector,I10*I11*'Default parameters'!$L$5,0) -> 0 | J29: =IF(storage2Selector,J10*J11*'Default parameters'!$L$5,0) -> 0 | K29: =IF(transport4Selector,K10*K11*'Default parameters'!$L$5,0) -> 0 | L29: =IF(retailSelector,L10*L11*'Default parameters'!$L$5,0) -> 0
C30: Storage 1 equivalent CO2 emissions per year (tonnes) | D30: 0 | E30: 0 | F30: =IF(storage1Selector,F10*'Default parameters'!$L$9,0) -> 0 | G30: =IF(transport2Selector,G10*'Default parameters'!$L$9,0) -> 0 | H30: =IF(processingSelector,H10*H11*'Default parameters'!$L$9,0) -> 0 | I30: =IF(transport3Selector,I10*I11*'Default parameters'!$L$9,0) -> 0 | J30: =IF(storage2Selector,J10*J11*'Default parameters'!$L$9,0) -> 0 | K30: =IF(transport4Selector,K10*K11*'Default parameters'!$L$9,0) -> 0 | L30: =IF(retailSelector,L10*L11*'Default parameters'!$L$9,0) -> 0
C31: Transport 2 equivalent CO2e emissions per year (tonnes) | G31: =IF(transport2Selector,G10*'Default parameters'!$L$6,0) -> 0 | H31: =IF(processingSelector,H10*H11*'Default parameters'!$L$6,0) -> 0 | I31: =IF(transport3Selector,I10*I11*'Default parameters'!$L$6,0) -> 0 | J31: =IF(storage2Selector,J10*J11*'Default parameters'!$L$6,0) -> 0 | K31: =IF(transport4Selector,K10*K11*'Default parameters'!$L$6,0) -> 0 | L31: =IF(retailSelector,L10*L11*'Default parameters'!$L$6,0) -> 0
C32: Processing equivalent CO2 emissions per year (tonnes) | H32: =IF(processingSelector,H10*H11*'Default parameters'!$L$11,0) -> 0 | I32: =IF(transport3Selector,I10*I11*'Default parameters'!$L$11,0) -> 0 | J32: =IF(storage2Selector,J10*J11*'Default parameters'!$L$11,0) -> 0 | K32: =IF(transport4Selector,K10*K11*'Default parameters'!$L$11,0) -> 0 | L32: =IF(retailSelector,L10*L11*'Default parameters'!$L$11,0) -> 0
C33: Transport 3 equivalent CO2 emissions per year (tonnes) | I33: =IF(transport3Selector,I10*'Default parameters'!$L$7,0) -> 0 | J33: =IF(storage2Selector,J10*'Default parameters'!$L$7,0) -> 0 | K33: =IF(transport4Selector,K10*'Default parameters'!$L$7,0) -> 0 | L33: =IF(retailSelector,L10*'Default parameters'!$L$7,0) -> 0
C34: Storage 2 equivalent CO2 emissions per year (tonnes) | J34: =IF(storage2Selector,J10*'Default parameters'!$L$10,0) -> 0 | K34: =IF(transport4Selector,K10*'Default parameters'!$L$10,0) -> 0 | L34: =IF(retailSelector,L10*'Default parameters'!$L$10,0) -> 0
C35: Transport 4 equivalent CO2e emissions per year (tonnes) | K35: =IF(transport4Selector,K10*'Default parameters'!$L$8,0) -> 0 | L35: =IF(retailSelector,L10*'Default parameters'!$L$8,0) -> 0
C36: Retail/Distribution equivalent CO2 emissions per year (tonnes) | L36: =IF(retailSelector,'Default parameters'!L12*L10,0) -> 0
C37: Landfill equivalent CO2 emissions per year (tonnes) | D37: =IF(productionSelector,INDEX(LandfillEmissions[Landfill CO2e emissions per year (tonnes)],MATCH('GHG Results'!D$27,LandfillEmissions[Value chain stage],0)),0) -> 0 | E37: =IF(transport1Selector,INDEX(LandfillEmissions[Landfill CO2e emissions per year (tonnes)],MATCH('GHG Results'!E$27,LandfillEmissions[Value chain stage],0)),0) -> 0 | F37: =IF(storage1Selector,INDEX(LandfillEmissions[Landfill CO2e emissions per year (tonnes)],MATCH('GHG Results'!F$27,LandfillEmissions[Value chain stage],0)),0) -> 0 | G37: =IF(transport2Selector,INDEX(LandfillEmissions[Landfill CO2e emissions per year (tonnes)],MATCH('GHG Results'!G$27,LandfillEmissions[Value chain stage],0)),0) -> 0 | H37: =IF(processingSelector,INDEX(LandfillEmissions[Landfill CO2e emissions per year (tonnes)],MATCH('GHG Results'!H$27,LandfillEmissions[Value chain stage],0)),0) -> 0 | I37: =IF(transport3Selector,INDEX(LandfillEmissions[Landfill CO2e emissions per year (tonnes)],MATCH('GHG Results'!I$27,LandfillEmissions[Value chain stage],0)),0) -> 0 | J37: =IF(storage2Selector,INDEX(LandfillEmissions[Landfill CO2e emissions per year (tonnes)],MATCH('GHG Results'!J$27,LandfillEmissions[Value chain stage],0)),0) -> 0 | K37: =IF(transport4Selector,INDEX(LandfillEmissions[Landfill CO2e emissions per year (tonnes)],MATCH('GHG Results'!K$27,LandfillEmissions[Value chain stage],0)),0) -> 0 | L37: =IF(retailSelector,INDEX(LandfillEmissions[Landfill CO2e emissions per year (tonnes)],MATCH('GHG Results'!L$27,LandfillEmissions[Value chain stage],0)),0) -> 0
C38: Upstream equivalent CO2 emissions per year (tonnes) | D38: 0 | E38: =IF(noPreProcessing,0,E28) -> 0 | F38: =IF(noPreProcessing,0,SUM(F28,F29)) -> 0 | G38: =IF(noPreProcessing,0,SUM(G28,G29,G30)) -> 0 | H38: =SUM(H28,H29:H31) -> 0 | I38: =SUM(I28,I29:I32) -> 0 | J38: =SUM(J28,J29:J33) -> 0 | K38: =SUM(K28,K29:K34) -> 0 | L38: =SUM(L28,L29:L35) -> 0
C39: TOTAL stage equivalent CO2 emissions per year (tonnes) | D39: =IF(noPreProcessing,0,SUM(D28:D37)) -> 0 | E39: =IF(noPreProcessing,0,SUM(E28:E37)) -> 0 | F39: =IF(noPreProcessing,0,SUM(F28:F37)) -> 0 | G39: =IF(noPreProcessing,0,SUM(G28:G37)) -> 0 | H39: =SUM(H28:H37) -> 0 | I39: =SUM(I28:I37) -> 0 | J39: =SUM(J28:J37) -> 0 | K39: =SUM(K28:K37) -> 0 | L39: =SUM(L28:L37) -> 0
C40: Cumulative equivalent GhG emissions saved per year (tonnes CO2e) | D40: =D39 -> 0 | E40: =IF(noPreProcessing,0,IF(productionSelector,D40,0)) +IF(transport1Selector,E39,0) -> 0 | F40: =IF(noPreProcessing,0,IF(productionSelector,D40,0)) +IF(transport1Selector,E40-D40,0) +IF(storage1Selector,F39,0) -> 0 | G40: =IF(noPreProcessing,0,IF(productionSelector,D40,0)) +IF(transport1Selector,E40-D40,0) +IF(storage1Selector,F40-E40,0) +IF(transport2Selector,G39,0) -> 0 | H40: =IF(productionSelector,D40,0) +IF(transport1Selector,E40-D40,0) +IF(storage1Selector,F40-E40,0) +IF(transport2Selector,G40-F40,0) +IF(processingSelector,H39,0) -> 0 | I40: =IF(productionSelector,D40,0) +IF(transport1Selector,E40-D40,0) +IF(storage1Selector,F40-E40,0) +IF(transport2Selector,G40-F40,0) +IF(processingSelector,H40-G40,0) +IF(transport3Selector,I39,0) -> 0 | J40: =IF(productionSelector,D40,0) +IF(transport1Selector,E40-D40,0) +IF(storage1Selector,F40-E40,0) +IF(transport2Selector,G40-F40,0) +IF(processingSelector,H40-G40,0) +IF(transport3Selector,I40-H40,0) +IF(storage2Selector,J39,0) -> 0 | K40: =IF(productionSelector,D40,0) +IF(transport1Selector,E40-D40,0) +IF(storage1Selector,F40-E40,0) +IF(transport2Selector,G40-F40,0) +IF(processingSelector,H40-G40,0) +IF(transport3Selector,I40-H40,0) +IF(storage2Selector,J40-I40,0) +IF(transport4Selector,K39,0) -> 0 | L40: =IF(productionSelector,D40,0) +IF(transport1Selector,E40-D40,0) +IF(storage1Selector,F40-E40,0) +IF(transport2Selector,G40-F40,0) +IF(processingSelector,H40-G40,0) +IF(transport3Selector,I40-H40,0) +IF(storage2Selector,J40-I40,0) +IF(transport4Selector,K40-J40,0) +IF(retailSelector,L39,0) -> 0
C42: Emissions from CH4 (CO2e) | D42: =IF(noPreProcessing,0,IF(productionSelector,D$10*'Default parameters'!F3,0)+D37) -> 0 | E42: =IF(noPreProcessing,0,IF(transport1Selector,(E$10*'Default parameters'!$F$3)+(E$10*'Default parameters'!$N$5)+E$37,0)) -> 0 | F42: =IF(noPreProcessing,0,IF(storage1Selector,(F$10*'Default parameters'!$F$3)+(F$10*'Default parameters'!$N$5)+F$37,0)) -> 0 | G42: =IF(noPreProcessing,0,IF(transport2Selector,(G$10*'Default parameters'!$F$3)+(G$10*'Default parameters'!$N$6)+G$37,0)) -> 0 | H42: =IF(processingSelector,(H$10*'Default parameters'!$F$3)+(H$10*'Default parameters'!$N$5)+H$37,0) -> 0 | I42: =IF(transport3Selector,(I$10*'Default parameters'!$F$3)+(I$10*'Default parameters'!$N$7)+I$37,0) -> 0 | J42: =IF(storage2Selector,(J$10*'Default parameters'!$F$3)+(J$10*'Default parameters'!$N$6)+(J$10*'Default parameters'!$N$5)+J$37,0) -> 0 | K42: =IF(transport4Selector,(K$10*'Default parameters'!$F$3)+(K$10*'Default parameters'!$N$8)+K$37,0) -> 0 | L42: =IF(retailSelector,(L$10*'Default parameters'!$F$3)+(L$10*'Default parameters'!$N$5)+(J$10*'Default parameters'!$N$6)+L$37,0) -> 0
C43: Emissions from N2O (CO2e) | D43: =IF(noPreProcessing,0,IF(productionSelector,D$10*'Default parameters'!G3,0)) -> 0 | E43: =IF(noPreProcessing,0,IF(transport1Selector,(E$10*'Default parameters'!$G$3)+(E$10*'Default parameters'!$O$5),0)) -> 0 | F43: =IF(noPreProcessing,0,IF(storage1Selector,(F$10*'Default parameters'!$G$3)+(F$10*'Default parameters'!$O$5),0)) -> 0 | G43: =IF(noPreProcessing,0,IF(transport2Selector,(G$10*'Default parameters'!$G$3)+(G$10*'Default parameters'!$O$6),0)) -> 0 | H43: =IF(processingSelector,(H$10*'Default parameters'!$G$3)+(H$10*'Default parameters'!$O$5),0) -> 0 | I43: =IF(transport3Selector,(I$10*'Default parameters'!$G$3)+(I$10*'Default parameters'!$O$7),0) -> 0 | J43: =IF(storage2Selector,(J$10*'Default parameters'!$G$3)+(J$10*'Default parameters'!$O$5)+(J$10*'Default parameters'!$O$6),0) -> 0 | K43: =IF(transport4Selector,(K$10*'Default parameters'!$G$3)+(K$10*'Default parameters'!$O$8),0) -> 0 | L43: =IF(retailSelector,(L$10*'Default parameters'!$G$3)+(L$10*'Default parameters'!$O$5)+(J$10*'Default parameters'!$O$6),0) -> 0
C45: Additional comments | D45: =CONCATENATE("Emission Factor: '",'Default parameters'!E4,"' was used. ",IF('Default parameters'!E4="User defined Emission Factor", "","If available, please provide commodity Emission Factor for target country.")) -> 
D46: =IF(noPreProcessing,"Note that meat and flour only include losses during and/or after processing","") -> 
B48: IV. Equivalent land area saved | D48: Section not applicable for animal proteins
B51: Checks
B52: =IF(commodityGroup="Animal Protein",CONCATENATE(commodity, " ", farmingType),"") -> 
C102: Upstream = emissions due to producing or transporting food lost during transport or storage
C103: Direct = emissions incurred specifically duing the stage

Sheet Default data (hidden)
B2: Commodity group | C2: =IFERROR(INDEX(IFC_Commodity_CommodityGroup[IFC Commodity group],MATCH(commodity,IFC_Commodity_CommodityGroup[IFC Commodity],0)),"") -> 
B4: Advanced Post-harvest Production Details (Optional)
B6: Option a) Emission factor
B7: Emissions per tonne | C7: =IF(commodityGroup="Animal Protein",'Default parameters'!E21,'Default parameters'!E12) -> 
B8: % of CO2e coming from CH4 | C8: =IF(commodityGroup="Animal Protein",'Default parameters'!F20,'Default parameters'!F11) -> 
B9: % of CO2e coming from N2O | C9: =IF(commodityGroup="Animal Protein",'Default parameters'!G20,'Default parameters'!G11) -> 
B11: Option b) Synthetic Fertilizer information
B12: Nitrogen Applied to Synthetic Fertilizer | C12: =IF(commodityGroup="Animal Protein","N/A for animal protein",INDEX(defaultNorYield[],MATCH(countryOfProduction,defaultNorYield[Country],0),6)) -> 
B13: Unit of Measurement for Nitrogen | C13: kg of Nitrogen per tonne of production (kg N/tonne)
B14: Yield per Year | C14: =IF(commodityGroup="Animal Protein","N/A for animal protein",INDEX(defaultNorYield[],MATCH(countryOfProduction,defaultNorYield[Country],0),8)) -> 
B16: Advanced Storage 1 (pre-processing) Details (Optional)
B18: Option a) Emission factor
B19: Emissions per tonne | C19: ='Default parameters'!L9 -> 
B21: Option b) Information on temperature control
B22: Is any dedicated storage ambient or temperature controlled, heated and/or chilled | C22: =IFERROR(IF(INDEX(isChilledTable[Chilled?],MATCH(commodity,isChilledTable[Crop],0))="y","Yes","No"),"No") -> No
B24: Option c) Information on time in storage and energy consumption
B25: Time in Storage | C25: =Storage!C5 -> 0
B26: Electricity consumption | C26: =Storage!C6 -> 
B27: Natural gas consumption | C27: =Storage!C7 -> 
B29: Advanced Processing Details (Optional)
B31: Option a) Emission factor
B32: Emissions per tonne | C32: =IFERROR(INDEX(CommodityGroupUserOrDefaultEnergyData[Current EF kgCO2e/kg],MATCH(commodityGroup,CommodityGroupUserOrDefaultEnergyData[Unique Groups],0)),"") ->  | D32: tonnes CO2e per tonne
B34: Option b) Information on energy consumption
B35: Electricity consumption | C35: =INDEX(CommodityGroupEnergyPerKg[],MATCH(commodityGroup,CommodityGroupEnergyPerKg[Unique Groups],0),2) -> 
B36: Natural gas consumption | C36: =INDEX(CommodityGroupEnergyPerKg[],MATCH(commodityGroup,CommodityGroupEnergyPerKg[Unique Groups],0),4) -> 
B38: Advanced Storage 2 (post-processing) Details (Optional)
B40: Please fill in data for one of the following options:
B42: Option a) Emission factor
B43: Emissions per tonne | C43: ='Default parameters'!L10 -> 
B45: Option b) Information on temperature control
B46: Is any dedicated storage ambient or temperature controlled, heated and/or chilled | C46: =IFERROR(IF(INDEX(isChilledTable[Chilled?],MATCH(commodity,isChilledTable[Crop],0))="y","Yes","No"),"No") -> No
B48: Option c) Information on time in storage and energy consumption
B49: Time in Storage | C49: =Storage!D5 -> 0
B50: Electricity consumption | C50: =Storage!D6 -> 
B51: Natural gas consumption | C51: =Storage!D7 -> 
B53: Advanced Retail Details (Optional)
B55: Please fill in data for one of the following options:
B57: Option a) Emission factor
B58: Emissions per tonne | C58: =IFERROR(INDEX(StoreEF[],MATCH(CONCATENATE(countryOfRetail,commodityGroup),StoreEF[CONCAT],0),6),"") ->  | D58: tonnes CO2e per tonne
B60: Option b) Information on store type
B61: Store type | C61: =Retail!B34 -> Superstore (1400 to 5000 m2)
B63: Advanced Landfill Details (Optional)
E65: A) Emission factor | G65: B) Landfill type and climate
C66: Food losses going to landfill or thrown away along the supply chain (%) | E66: Emissions per tonne of commodity going to landfill | G66: Landfill Type | H66: Climate Zone
B67: Production (post-harvest) | C67: ='LF-Calcs'!N40 ->  | E67: =landfillEmissionsPerTonneDefault -> 0 | H67: ='LF-Calcs'!D40 -> 
B68: Transport 1 | C68: ='LF-Calcs'!N41 ->  | E68: =landfillEmissionsPerTonneTR1Default -> 0 | H68: ='LF-Calcs'!D41 -> 
B69: Storage 1 (pre-processing) | C69: ='LF-Calcs'!N42 ->  | E69: =landfillEmissionsPerTonneStorage1Default -> 0 | H69: ='LF-Calcs'!D42 -> 
B70: Transport 2 | C70: ='LF-Calcs'!N43 ->  | E70: =landfillEmissionsPerTonneTR2Default -> 0 | H70: ='LF-Calcs'!D43 -> 
B71: Processing | C71: ='LF-Calcs'!N44 ->  | E71: =landfillEmissionsPerTonneProcessingDefault -> 0 | H71: ='LF-Calcs'!D44 -> 
B72: Transport 3 | C72: ='LF-Calcs'!N45 ->  | E72: =landfillEmissionsPerTonneTR3Default -> 0 | H72: ='LF-Calcs'!D45 -> 
B73: Storage 2 (pre-retail) | C73: ='LF-Calcs'!N46 ->  | E73: =landfillEmissionsPerTonneStorage2Default -> 0 | H73: ='LF-Calcs'!D46 -> 
B74: Transport 4 | C74: ='LF-Calcs'!N47 ->  | E74: =landfillEmissionsPerTonneTR4Default -> 0 | H74: ='LF-Calcs'!D47 -> 
B75: Retail | C75: ='LF-Calcs'!N48 ->  | E75: =landfillEmissionsPerTonneRetailDefault -> 0 | H75: ='LF-Calcs'!D48 -> 
B77: Advanced Transportation 1 Details (Optional)
C79: Within origin country | D79: Between countries | E79: Within destination country
B80: Distance travelled by the merchandise in the selected country. (If the dedicated storage site is the same as production put 0. Leave blank to apply the national average.) | C80: ='TR-1'!C$19 ->  | D80: ='TR-1'!G$19 ->  | E80: ='TR-1'!K$19 -> 
B82: Option a) Emission factor
B83: Emissions factor type | C83: Trip emissions (kg CO2e/tonne.km) | D83: Trip emissions (kg CO2e/tonne.km) | E83: Trip emissions (kg CO2e/tonne.km)
B84: Emissions factor value | C84: ='TR-1'!E$56 ->  | D84: ='TR-1'!I$56 ->  | E84: ='TR-1'!M$56 -> 
B86: Option b) Information on transportation mode
B87: Transport mode | C87: ='TR-1'!C20 -> Truck | D87: ='TR-1'!G20 ->  | E87: ='TR-1'!K20 -> Truck
B88: Fuel type | C88: ='TR-1'!C21 -> Diesel | D88: ='TR-1'!G21 ->  | E88: ='TR-1'!K21 -> Diesel
B89: Category | C89: ='TR-1'!C22 ->  | D89: ='TR-1'!G22 ->  | E89: ='TR-1'!K22 -> 
B90: Temperature control | C90: ='TR-1'!C23 ->  | D90: ='TR-1'!G23 ->  | E90: ='TR-1'!K23 -> 
B91: Road conditions | C91: =IF(OR(transport1ModeSelection1Default="Rail",transport1ModeSelection1Default="Ship",transport1ModeSelection1Default="Freight Flight",transport1ModeSelection1Default="Non-motorized"),"Not applicable",INDEX(RoadConditionTable[Road conditions],MATCH(TR1OgCountry,RoadConditionTable[Country],0))) ->  | D91: =IF(OR(transport1ModeSelection2Default="Rail",transport1ModeSelection2Default="Ship",transport1ModeSelection2Default="Freight Flight",transport1ModeSelection2Default="Non-motorized",transport1ModeSelection2Default=0),"Not applicable",transport1ConditionsSelection1Default) ->  | E91: =IF(OR(transport1ModeSelection3Default="Rail",transport1ModeSelection3Default="Ship",transport1ModeSelection3Default="Freight Flight",transport1ModeSelection3Default="Non-motorized"),"Not applicable",INDEX(RoadConditionTable[Road conditions],MATCH(TR1DestCountry,RoadConditionTable[Country],0))) -> 
B93: Advanced Transportation 2 Details (Optional)
C95: Within origin country | D95: Between countries | E95: Within destination country
B96: Distance travelled by the merchandise in the selected country (leave blank to apply the national average.) | C96: ='TR-2'!C$19 ->  | D96: ='TR-2'!G$19 ->  | E96: ='TR-2'!K$19 -> 
B98: Option a) Emission factor
B99: Emissions factor type | C99: Trip emissions (kg CO2e/tonne.km) | D99: Trip emissions (kg CO2e/tonne.km) | E99: Trip emissions (kg CO2e/tonne.km)
B100: Emissions factor value (kgCO2e/tonne.km) | C100: ='TR-2'!E$56 ->  | D100: ='TR-2'!I$56 ->  | E100: ='TR-2'!M$56 -> 
B102: Option b) Information on transportation mode
B103: Transport mode | C103: ='TR-2'!C20 -> Truck | D103: ='TR-2'!G20 ->  | E103: ='TR-2'!K20 -> Truck
B104: Fuel type | C104: ='TR-2'!C21 -> Diesel | D104: ='TR-2'!G21 ->  | E104: ='TR-2'!K21 -> Diesel
B105: Category | C105: ='TR-2'!C22 ->  | D105: ='TR-2'!G22 ->  | E105: ='TR-2'!K22 -> 
B106: Temperature control | C106: ='TR-2'!C23 ->  | D106: ='TR-2'!G23 ->  | E106: ='TR-2'!K23 -> 
B107: Road conditions | C107: =IF(OR(transport2ModeSelection1Default="Rail",transport2ModeSelection1Default="Ship",transport2ModeSelection1Default="Freight Flight",transport2ModeSelection1Default="Non-motorized"),"Not applicable",INDEX(RoadConditionTable[Road conditions],MATCH(TR2OgCountry,RoadConditionTable[Country],0))) ->  | D107: =IF(OR(transport2ModeSelection2Default="Rail",transport2ModeSelection2Default="Ship",transport2ModeSelection2Default="Freight Flight",transport2ModeSelection2Default="Non-motorized",transport2ModeSelection2Default=0),"Not applicable",transport2ConditionsSelection1Default) ->  | E107: =IF(OR(transport2ModeSelection3Default="Rail",transport2ModeSelection3Default="Ship",transport2ModeSelection3Default="Freight Flight",transport2ModeSelection3Default="Non-motorized"),"Not applicable",INDEX(RoadConditionTable[Road conditions],MATCH(TR2DestCountry,RoadConditionTable[Country],0))) -> 
B109: Advanced Transportation 3 Details (Optional)
C111: Within origin country | D111: Between countries | E111: Within destination country
B112: Distance travelled by the merchandise in the selected country. (If the dedicated storage site is the same as production put 0. Leave blank to apply the national average.) | C112: ='TR-3'!C$19 ->  | D112: ='TR-3'!G$19 ->  | E112: ='TR-3'!K$19 -> 
B114: Option a) Emission factor
B115: Emissions factor type | C115: Trip emissions (kg CO2e/tonne.km) | D115: Trip emissions (kg CO2e/tonne.km) | E115: Trip emissions (kg CO2e/tonne.km)
B116: Emissions factor value | C116: ='TR-3'!E$56 ->  | D116: ='TR-3'!I$56 ->  | E116: ='TR-3'!M$56 -> 
B118: Option b) Information on transportation mode
B119: Transport mode | C119: ='TR-3'!C20 -> Truck | D119: ='TR-3'!G20 ->  | E119: ='TR-3'!K20 -> Truck
B120: Fuel type | C120: ='TR-3'!C21 -> Diesel | D120: ='TR-3'!G21 ->  | E120: ='TR-3'!K21 -> Diesel
B121: Category | C121: ='TR-3'!C22 ->  | D121: ='TR-3'!G22 ->  | E121: ='TR-3'!K22 -> 
B122: Temperature control | C122: ='TR-3'!C23 ->  | D122: ='TR-3'!G23 ->  | E122: ='TR-3'!K23 -> 
B123: Road conditions | C123: =IF(OR(transport3ModeSelection1Default="Rail",transport3ModeSelection1Default="Ship",transport3ModeSelection1Default="Freight Flight",transport3ModeSelection1Default="Non-motorized"),"Not applicable",INDEX(RoadConditionTable[Road conditions],MATCH(TR3OgCountry,RoadConditionTable[Country],0))) ->  | D123: =IF(OR(transport3ModeSelection2Default="Rail",transport3ModeSelection2Default="Ship",transport3ModeSelection2Default="Freight Flight",transport3ModeSelection2Default="Non-motorized",transport3ModeSelection2Default=0),"Not applicable",transport3ConditionsSelection1Default) ->  | E123: =IF(OR(transport3ModeSelection3Default="Rail",transport3ModeSelection3Default="Ship",transport3ModeSelection3Default="Freight Flight",transport3ModeSelection3Default="Non-motorized"),"Not applicable",INDEX(RoadConditionTable[Road conditions],MATCH(TR3DestCountry,RoadConditionTable[Country],0))) -> 
B125: Advanced Transportation 4 Details (Optional)
C127: Within origin country | D127: Between countries | E127: Within destination country
B128: Distance travelled by the merchandise in the selected country. (If the dedicated storage site is the same as production put 0. Leave blank to apply the national average.) | C128: ='TR-4'!C$19 ->  | D128: ='TR-4'!G$19 ->  | E128: ='TR-4'!K$19 -> 
B130: Option a) Emission factor
B131: Emissions factor type | C131: Trip emissions (kg CO2e/tonne.km) | D131: Trip emissions (kg CO2e/tonne.km) | E131: Trip emissions (kg CO2e/tonne.km)
B132: Emissions factor value | C132: ='TR-4'!E$56 ->  | D132: ='TR-4'!I$56 ->  | E132: ='TR-4'!M$56 -> 
B134: Option b) Information on transportation mode
B135: Transport mode | C135: ='TR-4'!C20 -> Truck | D135: ='TR-4'!G20 ->  | E135: ='TR-4'!K20 -> Truck
B136: Fuel type | C136: ='TR-4'!C21 -> Diesel | D136: ='TR-4'!G21 ->  | E136: ='TR-4'!K21 -> Diesel
B137: Category | C137: ='TR-4'!C22 ->  | D137: ='TR-4'!G22 ->  | E137: ='TR-4'!K22 -> 
B138: Temperature control | C138: ='TR-4'!C23 ->  | D138: ='TR-4'!G23 ->  | E138: ='TR-4'!K23 -> 
B139: Road conditions | C139: =IF(OR(transport4ModeSelection1Default="Rail",transport4ModeSelection1Default="Ship",transport4ModeSelection1Default="Freight Flight",transport4ModeSelection1Default="Non-motorized"),"Not applicable",INDEX(RoadConditionTable[Road conditions],MATCH(TR4OgCountry,RoadConditionTable[Country],0))) ->  | D139: =IF(OR(transport4ModeSelection2Default="Rail",transport4ModeSelection2Default="Ship",transport4ModeSelection2Default="Freight Flight",transport4ModeSelection2Default="Non-motorized",transport4ModeSelection2Default=0),"Not applicable",transport4ConditionsSelection1Default) ->  | E139: =IF(OR(transport4ModeSelection3Default="Rail",transport4ModeSelection3Default="Ship",transport4ModeSelection3Default="Freight Flight",transport4ModeSelection3Default="Non-motorized"),"Not applicable",INDEX(RoadConditionTable[Road conditions],MATCH(TR4DestCountry,RoadConditionTable[Country],0))) -> 

Sheet Default parameters (hidden)
B2: WARNING: Please select production type | E2: Total CO2e (tCO2e/t) | F2: Total CO2e from CH4(tCO2e/t) | G2: Total CO2e from N2O (tCO2e/t) | I2: Food Loss Rate not available | K2: Number of transport stages | L2: =NumberOfTransportStages -> 1 | R2: Other labels
B3: Emission Factor used | E3: =IF(commodityGroup="Animal Protein", E17, E8) ->  | F3: =IF(commodityGroup="Animal Protein", F17, F8) ->  | G3: =IF(commodityGroup="Animal Protein", G17, G8) ->  | I3: Flour | R3: Production (post-harvest) | S3: Implied UN sub-region | T3: =INDEX(UNcountrycodes[Sub-region Name],MATCH(countryOfProduction,UNcountrycodes[Country or Area],0)) -> 
D4: Type of tool calculation for Emission Factor | E4: =IF(commodityGroup="Animal Protein", E16, E7) ->  | I4: Eggs | K4: Supply chain stage | L4: Total (CO2e) | M4: CO2 (CO2e) | N4: CH4 (CO2e) | O4: N2O (CO2e) | R4: Production (post-harvest) | S4: Implied FAO region | T4: =INDEX(RegionClassification[FAO region],MATCH(impliedUNsubregionProduction,RegionClassification[UN region],0)) -> 
I5: Cotton | J5: 0.3309445123 | K5: Transport 1 | L5: =SUM(M5:O5) ->  | M5: ='TR-1'!C11 ->  | N5: ='TR-1'!C12 ->  | O5: ='TR-1'!C13 ->  | P5: equivalent t CO2e emissions per tonne | R5: Production (post-harvest) | S5: Implied commodity group | T5: =VLOOKUP(commodity,IFC_Commodity_CommodityGroup[],3,FALSE) -> 
B6: Crops | J6: 0.01002726363 | K6: Transport 2 | L6: =SUM(M6:O6) -> 0 | M6: =IF(NumberOfTransportStages<2,0,'TR-2'!C11) -> 0 | N6: =IF(NumberOfTransportStages<2,0,'TR-2'!C12) -> 0 | O6: =IF(NumberOfTransportStages<2,0,'TR-2'!C13) -> 0 | P6: equivalent t CO2e emissions per tonne | R6: Storage 1 (pre-processing) | S6: Implied UN sub-region | T6: =INDEX(UNcountrycodes[Sub-region Name],MATCH(countryOfStorage1,UNcountrycodes[Country or Area],0)) -> 
D7: Type of tool calculation for Emission Factor | E7: =IF(E9>0, "User defined Emission Factor", IF(E10>0, "Updated database Emission Factor", INDEX(GHG_Crops_Summary[Type of calculation],MATCH(CONCATENATE(countryOfProduction, IF(L15,INDEX(ProcessedCommoditiesExclmeatflour[Corresponding pre-processed crops],MATCH(commodity,ProcessedCommoditiesExclmeatflour[Processed commodities (other than meat and flour)],0)),commodity)),GHG_Crops_Summary[CONCAT],0)))) ->  | I7: Requires before loss data? | J7: 0.5198271906 | K7: Transport 3 | L7: =SUM(M7:O7) -> 0 | M7: =IF(NumberOfTransportStages<3,0,'TR-3'!C11) -> 0 | N7: =IF(NumberOfTransportStages<3,0,'TR-3'!C12) -> 0 | O7: =IF(NumberOfTransportStages<3,0,'TR-3'!C13) -> 0 | P7: equivalent t CO2e emissions per tonne | R7: Storage 1 (pre-processing) | S7: Implied FAO region | T7: =INDEX(RegionClassification[FAO region],MATCH(impliedUNsubregionStorage1,RegionClassification[UN region],0)) -> 
B8: Emission Factor used | E8: =IF(E9>0,E9, IF(E10>0, E10, E12)) ->  | F8: =IF(F9>0,F9, IF(F10>0, F10, F12)) ->  | G8: =IF(G9>0,G9, IF(G10>0, G10, G12)) ->  | I8: =COUNTIF(NoLR[Food Loss Rate not available], commodity)>0 -> FALSE | K8: Transport 4 | L8: =SUM(M8:O8) -> 0 | M8: =IF(NumberOfTransportStages<4,0,'TR-4'!C11) -> 0 | N8: =IF(NumberOfTransportStages<4,0,'TR-4'!C12) -> 0 | O8: =IF(NumberOfTransportStages<4,0,'TR-4'!C13) -> 0 | P8: equivalent t CO2e emissions per tonne | R8: Storage 1 (pre-processing) | S8: Implied commodity group | T8: =VLOOKUP(commodity,IFC_Commodity_CommodityGroup[],3,FALSE) -> 
B9: User Defined Emission Factor? | E9: =IF(userEF=originalCropCO2e,0,userEF) ->  | F9: =IF(userCH4percentage=F11,0,userEF*userCH4percentage) ->  | G9: =IF(userN2Opercentage=G11,0,userEF*userN2Opercentage) ->  | K9: Storage (stage 1) | L9: =Storage!C29 ->  | M9: equivalent tonnes CO2e emissions per tonne | R9: Processing | S9: Implied UN sub-region | T9: =INDEX(UNcountrycodes[Sub-region Name],MATCH(countryOfProcessing,UNcountrycodes[Country or Area],0)) -> 
B10: "GHG updated" worksheet Emission Factor? | E10: =IF(INDEX(GHG_Update_Crop[EF (tCO2e/t)],MATCH(CONCATENATE(countryOfProduction,IF(L15,INDEX(ProcessedCommoditiesExclmeatflour[Corresponding pre-processed crops],MATCH(commodity,ProcessedCommoditiesExclmeatflour[Processed commodities (other than meat and flour)],0)),commodity)),GHG_Update_Crop[CONCAT],0))>0, INDEX(GHG_Update_Crop[EF (tCO2e/t)],MATCH(CONCATENATE(countryOfProduction, IF(L15,INDEX(ProcessedCommoditiesExclmeatflour[Corresponding pre-processed crops],MATCH(commodity,ProcessedCommoditiesExclmeatflour[Processed commodities (other than meat and flour)],0)),commodity)),GHG_Update_Crop[CONCAT],0)), 0) ->  | F10: =IF(INDEX(GHG_Update_Crop[EF (tCO2e/t) (from CH4) (AR5)],MATCH(CONCATENATE(countryOfProduction, IF(L15,INDEX(ProcessedCommoditiesExclmeatflour[Corresponding pre-processed crops],MATCH(commodity,ProcessedCommoditiesExclmeatflour[Processed commodities (other than meat and flour)],0)),commodity)),GHG_Update_Crop[CONCAT],0))>0, INDEX(GHG_Update_Crop[EF (tCO2e/t) (from CH4) (AR5)],MATCH(CONCATENATE(countryOfProduction, IF(L15,INDEX(ProcessedCommoditiesExclmeatflour[Corresponding pre-processed crops],MATCH(commodity,ProcessedCommoditiesExclmeatflour[Processed commodities (other than meat and flour)],0)),commodity)),GHG_Update_Crop[CONCAT],0)), 0) ->  | G10: =IF(INDEX(GHG_Update_Crop[EF (tCO2e/t) (from N2O) (AR5)],MATCH(CONCATENATE(countryOfProduction, IF(L15,INDEX(ProcessedCommoditiesExclmeatflour[Corresponding pre-processed crops],MATCH(commodity,ProcessedCommoditiesExclmeatflour[Processed commodities (other than meat and flour)],0)),commodity)),GHG_Update_Crop[CONCAT],0))>0, INDEX(GHG_Update_Crop[EF (tCO2e/t) (from N2O) (AR5)],MATCH(CONCATENATE(countryOfProduction, IF(L15,INDEX(ProcessedCommoditiesExclmeatflour[Corresponding pre-processed crops],MATCH(commodity,ProcessedCommoditiesExclmeatflour[Processed commodities (other than meat and flour)],0)),commodity)),GHG_Update_Crop[CONCAT],0)), 0) ->  | K10: Storage (stage 2) | L10: =Storage!D29 ->  | M10: equivalent tonnes CO2e emissions per tonne | R10: Processing | S10: Implied FAO region | T10: =INDEX(RegionClassification[FAO region],MATCH(impliedUNsubregionProcessing,RegionClassification[UN region],0)) -> 
B11: Original Database % | F11: =INDEX(GHG_Crops_Summary[EF % from CH4],MATCH(CONCATENATE(countryOfProduction, IF(L15,INDEX(ProcessedCommoditiesExclmeatflour[Corresponding pre-processed crops],MATCH(commodity,ProcessedCommoditiesExclmeatflour[Processed commodities (other than meat and flour)],0)),commodity)),GHG_Crops_Summary[CONCAT],0)) ->  | G11: =INDEX(GHG_Crops_Summary[EF % from N2O],MATCH(CONCATENATE(countryOfProduction, IF(L15,INDEX(ProcessedCommoditiesExclmeatflour[Corresponding pre-processed crops],MATCH(commodity,ProcessedCommoditiesExclmeatflour[Processed commodities (other than meat and flour)],0)),commodity)),GHG_Crops_Summary[CONCAT],0)) ->  | K11: Processing | L11: =IF(processingUserEF<>"",processingUserEF,processingUserEFDefault) ->  | M11: equivalent tonnes CO2e emissions per tonne | R11: Processing | S11: Implied commodity group | T11: =VLOOKUP(commodity,IFC_Commodity_CommodityGroup[],3,FALSE) -> 
B12: Original Database Emission Factor | E12: =INDEX(GHG_Crops_Summary[EF total CO2e (tCO2e/t)], MATCH(CONCATENATE(countryOfProduction,IF(L15,INDEX(ProcessedCommoditiesExclmeatflour[Corresponding pre-processed crops],MATCH(commodity,ProcessedCommoditiesExclmeatflour[Processed commodities (other than meat and flour)],0)),commodity)),GHG_Crops_Summary[CONCAT],0)) ->  | F12: =INDEX(GHG_Crops_Summary[EF total CO2e from CH4 (tCO2e/t)],MATCH(CONCATENATE(countryOfProduction, IF(L15,INDEX(ProcessedCommoditiesExclmeatflour[Corresponding pre-processed crops],MATCH(commodity,ProcessedCommoditiesExclmeatflour[Processed commodities (other than meat and flour)],0)),commodity)),GHG_Crops_Summary[CONCAT],0)) ->  | G12: =INDEX(GHG_Crops_Summary[EF total CO2e from N2O (tCO2e/t)],MATCH(CONCATENATE(countryOfProduction, IF(L15,INDEX(ProcessedCommoditiesExclmeatflour[Corresponding pre-processed crops],MATCH(commodity,ProcessedCommoditiesExclmeatflour[Processed commodities (other than meat and flour)],0)),commodity)),GHG_Crops_Summary[CONCAT],0)) ->  | K12: Retail | L12: =IF(retailUserDefinedEF<>"",retailUserDefinedEF,retailUserDefinedEFDefault) ->  | M12: equivalent tonnes CO2e emissions per tonne | R12: Storage 2 (pre-retail) | S12: Implied UN sub-region | T12: =INDEX(UNcountrycodes[Sub-region Name],MATCH(countryOfStorage2,UNcountrycodes[Country or Area],0)) -> 
R13: Storage 2 (pre-retail) | S13: Implied FAO region | T13: =INDEX(RegionClassification[FAO region],MATCH(impliedUNsubregionStorage2,RegionClassification[UN region],0)) -> 
K14: If meat / flour / Cheese / butter / yoghurt / oil commodities / aqua commodities, don't report pre-processing | L14: =IF(OR(AND(commodityGroup="Animal Protein",commodity<>"Milk (cattle)",commodity<>"Eggs"),commodity="Flour",commodity="Palm oil",commodity="Olive oil",commodity="Cotton seed oil",commodity="Sunflower oil"),TRUE,FALSE) -> FALSE | R14: Storage 2 (pre-retail) | S14: Implied commodity group | T14: =VLOOKUP(commodity,IFC_Commodity_CommodityGroup[],3,FALSE) -> 
B15: Animal Protein | I15: Processed commodities (other than meat and flour) | J15: Corresponding pre-processed crops | K15: If processed commodities (other than meat and flour), upscale pre-processing avoided losses | L15: =IF(COUNTIF(ProcessedCommoditiesExclmeatflour[Processed commodities (other than meat and flour)],commodity),TRUE,FALSE) -> FALSE | R15: Retail | S15: Implied UN sub-region | T15: =INDEX(UNcountrycodes[Sub-region Name],MATCH(countryOfRetail,UNcountrycodes[Country or Area],0)) -> 
D16: Type of tool calculation for Emission Factor | E16: =IF(IFERROR(E9,0)>0, "User defined Emission Factor", IF(IFERROR(E10,0)>0, "Updated database Emission Factor", INDEX(AnimalEF[Type of calculation],MATCH(CONCATENATE(countryOfProduction,commodity,INDEX(Lists!$D$37:$D$82,MATCH(commodity&farmingType,Lists!$B$37:$B$82&Lists!$C$37:$C$82,0))),AnimalEF[CONCAT],0)))) ->  | I16: Cotton seed oil | J16: Cotton | R16: Retail | S16: Implied FAO region | T16: =INDEX(RegionClassification[FAO region],MATCH(impliedUNsubregionRetail,RegionClassification[UN region],0)) -> 
B17: Emission Factor used | E17: =IF(IFERROR(E18,0)>0,E18, IF(IFERROR(E19,0)>0, E19, E21)) ->  | F17: =IF(IFERROR(F18,0)>0,F18, IF(IFERROR(F19,0)>0, F19, F21)) ->  | G17: =IF(IFERROR(G18,0)>0,G18, IF(IFERROR(G19,0)>0, G19, G21)) ->  | I17: Sunflower oil | J17: Sunflower seeds | R17: Retail | S17: Implied commodity group | T17: =VLOOKUP(commodity,IFC_Commodity_CommodityGroup[],3,FALSE) -> 
B18: User Defined Emission Factor? | E18: =IF(userEF=originalAnimalCO2e,0,userEF) ->  | F18: =IF(userCH4percentage=F20,0,userEF*userCH4percentage) ->  | G18: =IF(userN2Opercentage=G20,0,userEF*userN2Opercentage) ->  | I18: Olive oil | J18: Olives
B19: "GHG updated" worksheet Emission Factor? | E19: =IF( INDEX(GHG_Update_Livestock[EF (tonneCO2e/tonne)], MATCH(CONCATENATE(countryOfProduction,commodity,LEFT(farmingType,FIND(" ",farmingType)-1)),GHG_Update_Livestock[],0)) >0, INDEX(GHG_Update_Livestock[EF (tonneCO2e/tonne)], MATCH(CONCATENATE(countryOfProduction,commodity,LEFT(farmingType,FIND(" ",farmingType)-1)),GHG_Update_Livestock[CONCAT],0)),0) ->  | I19: Palm oil | J19: Palm fruit
B20: Original Database % | F20: =INDEX(AnimalEF[EF % from CH4], MATCH(CONCATENATE(countryOfProduction,commodity,INDEX(Lists!$D$37:$D$82,MATCH(commodity&farmingType,Lists!$B$37:$B$82&Lists!$C$37:$C$82,0))), AnimalEF[CONCAT],0)) ->  | G20: =INDEX(AnimalEF[EF % from N2O], MATCH(CONCATENATE(countryOfProduction,commodity,INDEX(Lists!$D$37:$D$82,MATCH(commodity&farmingType,Lists!$B$37:$B$82&Lists!$C$37:$C$82,0))), AnimalEF[CONCAT],0)) ->  | I20: Yoghurt
B21: Original Database Emission Factor | E21: =INDEX(AnimalEF[EF (tonneCO2e/tonne)], MATCH(CONCATENATE(countryOfProduction,commodity,INDEX(Lists!$D$37:$D$82,MATCH(commodity&farmingType,Lists!$B$37:$B$82&Lists!$C$37:$C$82,0))), AnimalEF[CONCAT],0)) ->  | F21: =INDEX(AnimalEF[CH4 EF (tonneCO2e/tonne)], MATCH(CONCATENATE(countryOfProduction,commodity,INDEX(Lists!$D$37:$D$82,MATCH(commodity&farmingType,Lists!$B$37:$B$82&Lists!$C$37:$C$82,0))), AnimalEF[CONCAT],0)) ->  | G21: =INDEX(AnimalEF[N2O EF (tonneCO2e/tonne)], MATCH(CONCATENATE(countryOfProduction,commodity,INDEX(Lists!$D$37:$D$82,MATCH(commodity&farmingType,Lists!$B$37:$B$82&Lists!$C$37:$C$82,0))), AnimalEF[CONCAT],0)) ->  | I21: Cheese
F22: No adjustment for manual livestock CH4 or N2O currently available | I22: Butter

Sheet Country-selector (hidden)
B2: Defining countries associated with value chain stages
B4: Do the supply chain stages happen in more than one country? | C4: =IF(multipleCountrySelector="","", IF(multipleCountrySelector="Yes",TRUE,FALSE)) -> TRUE
B6: Upstream value chain countries | C6: Country (user selection)
B7: Production (post-harvest) | C7: =IF(C4=FALSE,singleCountrySelector, IF(userInputCountryofProduction=0,"",userInputCountryofProduction)) -> 
B8: Storage 1 (pre-processing) | C8: =IF(C4=FALSE,singleCountrySelector, IF(userInputCountryofStorage1=0,"",userInputCountryofStorage1)) -> 
B9: Processing | C9: =IF(C4=FALSE,singleCountrySelector, IF(userInputCountryofProcessing=0,"",userInputCountryofProcessing)) -> 
B10: Storage 2 (pre-retail) | C10: =IF(C4=FALSE,singleCountrySelector, IF(userInputCountryofStorage2=0,"",userInputCountryofStorage2)) -> 
B11: Retail | C11: =IF(C4=FALSE,singleCountrySelector, IF(userInputCountryofRetail=0,"",userInputCountryofRetail)) -> 
B13: First country | C13: =IF(C7="",INDEX(C7:C11,MATCH(1,IF(C7:C11<>0,IF(C7:C11<>"",1)),0)),C7) -> 
B14: Last country as indicated by user | C14: =INDEX($C$7:$C$11,MATCH(2,1/($C$7:$C$11<>""), 1)) -> 
B15: Last intervention country | C15: =IF(ISNUMBER(FIND("Transport",$C$16)),INDEX($D$21:$D$29,MATCH(lastInterventionStage,$B$21:$B$29,0)), INDEX($C$21:$C$29,MATCH(lastInterventionStage,$B$21:$B$29,0))) ->  | D15: the user could be indicate countries beyond the last intervention stage
B16: Last intervention stage | C16: =_xlfn.IFNA(INDEX(Interface!B21:B29,MATCH(TRUE,Interface!K21:K29,0)),INDEX(B7:B11,MATCH(C14,C7:C11,0))) -> 
B17: Corresponding stage step | C17: =INDEX(A21:A29,MATCH(C16,B21:B29,0)) -> 
B18: Last stage if last intervention is transport | C18: =IF($C$16="Transport 1",B23, IF($C$16="Transport 2",B25, IF($C$16="Transport 3",B27, IF($C$16="Transport 4",B29, "")))) -> 
E19: The table below calculates which are the transport stages and between which countries and supply chain stages:
C20: Origin Country | D20: Destination Country | E20: Unique user Transport Stage # | F20: Transport Stage Origin Country | G20: Origin Supply Chain Stage | H20: Transport Stage Destination Country | I20: Destination Supply Chain Stage
A21: 1 | B21: Production (post-harvest) | C21: =C13 -> 
A22: 2 | B22: Transport 1 | D22: =IF(C8="",C21, IF(lastInterventionStage=$B$21,C21, C8)) ->  | E22: Transport 1 | F22: =IF(E22="","",C21) ->  | G22: =IF(E22="","","Production (post-harvest)") -> Production (post-harvest) | H22: =IF(E22="","",D22) ->  | I22: =IF(E22="","", IF(lastInterventionStage=$B$21,$B$21,$B$23)) -> 
A23: 3 | B23: Storage 1 (pre-processing) | C23: =IF(A23>$C$17,"",D22) -> 
A24: 4 | B24: Transport 2 | D24: =IF(C17<A24,"", IF(C9="",C25,C9)) ->  | E24: =IF(D24="","", "Transport 2") ->  | F24: =IF(E24="","",C23) ->  | G24: =IF(E24="","",I22) ->  | H24: =IF(E24="","",D24) ->  | I24: =IF(E24="","", B25) -> 
A25: 5 | B25: Processing | C25: =IF(C17<A25,"", IF(C9<>"",C9,IF(C10<>"",C10,IF(C11<>"",C11,IF(A25<=C17,C14,""))))) -> 
A26: 6 | B26: Transport 3 | D26: =IF(C17<A26,"", IF(C10="",C27,C10)) ->  | E26: =IF(D26="","", "Transport 3") ->  | F26: =IF(E26="","",C25) ->  | G26: =IF(E26="","",I24) ->  | H26: =IF(E26="","",D26) ->  | I26: =IF(E26="","", B27) -> 
A27: 7 | B27: Storage 2 (pre-retail) | C27: =IF(C17<A27,"", IF(C10<>"",C10, IF(C11<>"",C11, C14))) -> 
A28: 8 | B28: Transport 4 | D28: =IF(C17<A28,"", IF(C11="",C29,C11)) ->  | E28: =IF(D28="","", "Transport 4") ->  | F28: =IF(E28="","",C27) ->  | G28: =IF(E28="","",I26) ->  | H28: =IF(E28="","",D28) ->  | I28: =IF(E28="","", B29) -> 
A29: 9 | B29: Retail | C29: =IF(A29<=C17,C14,"") -> 
B32: Number of transport stages: | C32: =COUNTA(_xlfn.UNIQUE(_xlfn._xlws.FILTER(E21:E28,E21:E28<>""))) -> 1
B35: List of unique countries: | C35: Number of transport stages involving this country:
B36: =_xlfn.UNIQUE(_xlfn.VSTACK(countryOfProduction,D22,countryOfStorage1,D24,countryOfProcessing,D26,countryOfStorage2,D28,countryOfRetail)) ->  | C36: =IF(B36="",0, IF(AND(B36=$F$22=$H$22),1,IF(B36=$F$22,1,IF(B36=$H$22,1,0))) +IF(AND(B36=$F$24=$H$24),1,IF(B36=$F$24,1,IF(B36=$H$24,1,0))) +IF(AND(B36=$F$26=$H$26),1,IF(B36=$F$26,1,IF(B36=$H$26,1,0))) +IF(AND(B36=$F$28=$H$28),1,IF(B36=$F$28,1,IF(B36=$H$28,1,0)))) -> 
C37: =IF(B37="",0, IF(AND(B37=$F$22=$H$22),1,IF(B37=$F$22,1,IF(B37=$H$22,1,0))) +IF(AND(B37=$F$24=$H$24),1,IF(B37=$F$24,1,IF(B37=$H$24,1,0))) +IF(AND(B37=$F$26=$H$26),1,IF(B37=$F$26,1,IF(B37=$H$26,1,0))) +IF(AND(B37=$F$28=$H$28),1,IF(B37=$F$28,1,IF(B37=$H$28,1,0)))) -> 0
C38: 0
C39: 0
C40: 0
B43: These are automatic calcs, if user doesn't enter manual selections for Distance and everything else to the right (Mode to Road conditions)
B44: If no production country selected, assume is the first downstream that is selected.
B45: If Production country is selected and Retail country is selected but nothing indicated in between, then tool assumes split in countries at level of Processing. Production to Storage 2 = Production country, and Processing to Retail = Retail country.

Sheet Crops & Countries (hidden)
E1: Parameters for estimating biogenic CH4 emissions in landfill
B3: Country | C3: Region | D3: Climate Zone | E3: Landfill CH4 Collection Efficiency | F3: Notes | H3: IFC name | I3: FAO name | J3: Category | L3: Country | M3: Region | N3: UN Country code | S3: Regions | T3: CountryChoiceList | U3: Sub-Saharan Africa | V3: Latin America and Caribbean | W3: South Asia | X3: Europe and Central Asia | Y3: East Asia and Pacific | Z3: Middle East and North Africa | AA3: North America
B4: Algeria | C4: Middle East and North Africa | D4: Tropical, dry | E4: =VLOOKUP(Countries[[#This Row],[Climate Zone]],methaneDefaults,2,FALSE) -> 0.5 | H4: Almonds | I4: Nuts/Seeds | J4: Oilseeds and pulses | L4: Angola | M4: Africa | N4: 24 | S4: Middle East and North Africa | T4: =IF(IFERROR(HLOOKUP(region,'Crops & Countries'!$U$3:$AA$51,ROW(S2),FALSE),"")=0,"",IFERROR(HLOOKUP(region,'Crops & Countries'!$U$3:$AA$51,ROW(S2),FALSE),"")) ->  | U4: Angola | V4: Antigua and Barbuda | W4: Bangladesh | X4: Austria | Y4: Australia | Z4: Egypt | AA4: United States of America
B5: Angola | C5: Africa | D5: Tropical, dry | E5: =VLOOKUP(Countries[[#This Row],[Climate Zone]],methaneDefaults,2,FALSE) -> 0.5 | H5: Apples | I5: Fruits | J5: Fruits and vegetables | L5: Benin | M5: Africa | N5: 204 | S5: Sub-Saharan Africa | T5: =IF(IFERROR(HLOOKUP(region,'Crops & Countries'!$U$3:$AA$51,ROW(S3),FALSE),"")=0,"",IFERROR(HLOOKUP(region,'Crops & Countries'!$U$3:$AA$51,ROW(S3),FALSE),"")) ->  | U5: Benin | V5: Argentina | W5: Bhutan | X5: Belgium | Y5: Cambodia | Z5: Lebanon | AA5: Canada
B6: Antigua and Barbuda | C6: Latin America and Caribbean | D6: Tropical, wet | E6: =VLOOKUP(Countries[[#This Row],[Climate Zone]],methaneDefaults,2,FALSE) -> 0.5 | H6: Avocados | I6: Fruits | J6: Fruits and vegetables | L6: Botswana | M6: Africa | N6: 72 | S6: North America | T6: =IF(IFERROR(HLOOKUP(region,'Crops & Countries'!$U$3:$AA$51,ROW(S4),FALSE),"")=0,"",IFERROR(HLOOKUP(region,'Crops & Countries'!$U$3:$AA$51,ROW(S4),FALSE),"")) ->  | U6: Botswana | V6: Bahamas | W6: India | X6: Bosnia and Herzegovina | Y6: China | Z6: Morocco
B7: Argentina | C7: Latin America and Caribbean | D7: Temperate, dry | E7: =VLOOKUP(Countries[[#This Row],[Climate Zone]],methaneDefaults,2,FALSE) -> 0.7 | H7: Bananas | I7: Fruits | J7: Fruits and vegetables | L7: Burkina Faso | M7: Africa | N7: 854 | S7: Latin America and Caribbean | T7: =IF(IFERROR(HLOOKUP(region,'Crops & Countries'!$U$3:$AA$51,ROW(S5),FALSE),"")=0,"",IFERROR(HLOOKUP(region,'Crops & Countries'!$U$3:$AA$51,ROW(S5),FALSE),"")) ->  | U7: Burkina Faso | V7: Barbados | W7: Maldives | X7: Bulgaria | Y7: Fiji | Z7: Yemen
B8: Armenia | C8: Europe and Central Asia | D8: Temperate, dry | E8: =VLOOKUP(Countries[[#This Row],[Climate Zone]],methaneDefaults,2,FALSE) -> 0.7 | H8: Barley | I8: Pulses & Grains | J8: Cereals | L8: Burundi | M8: Africa | N8: 108 | S8: Europe and Central Asia | T8: =IF(IFERROR(HLOOKUP(region,'Crops & Countries'!$U$3:$AA$51,ROW(S6),FALSE),"")=0,"",IFERROR(HLOOKUP(region,'Crops & Countries'!$U$3:$AA$51,ROW(S6),FALSE),"")) ->  | U8: Burundi | V8: Belize | W8: Myanmar | X8: Croatia | Y8: Indonesia
B9: Azerbaijan | C9: Europe and Central Asia | D9: Temperate, dry | E9: =VLOOKUP(Countries[[#This Row],[Climate Zone]],methaneDefaults,2,FALSE) -> 0.7 | H9: Beans (dry) | I9: Pulses & Grains | J9: Oilseeds and pulses | L9: Cabo Verde | M9: Africa | N9: 132 | S9: South Asia | T9: =IF(IFERROR(HLOOKUP(region,'Crops & Countries'!$U$3:$AA$51,ROW(S7),FALSE),"")=0,"",IFERROR(HLOOKUP(region,'Crops & Countries'!$U$3:$AA$51,ROW(S7),FALSE),"")) ->  | U9: Cabo Verde | V9: Bolivia (Plurinational State of) | W9: Nepal | X9: Cyprus | Y9: Japan
B10: Bahamas | C10: Latin America and Caribbean | D10: Tropical, wet | E10: =VLOOKUP(Countries[[#This Row],[Climate Zone]],methaneDefaults,2,FALSE) -> 0.5 | H10: Buckwheat | I10: Pulses & Grains | J10: Oilseeds and pulses | L10: Cameroon | M10: Africa | N10: 120 | S10: East Asia and Pacific | T10: =IF(IFERROR(HLOOKUP(region,'Crops & Countries'!$U$3:$AA$51,ROW(S8),FALSE),"")=0,"",IFERROR(HLOOKUP(region,'Crops & Countries'!$U$3:$AA$51,ROW(S8),FALSE),"")) ->  | U10: Cameroon | V10: Brazil | W10: Sri Lanka | X10: Czech Republic | Y10: Kiribati
B11: Bangladesh | C11: South Asia | D11: Tropical, wet | E11: =VLOOKUP(Countries[[#This Row],[Climate Zone]],methaneDefaults,2,FALSE) -> 0.5 | H11: Carrots | I11: Tubers/Root Crops | J11: Roots and tubers | L11: Central African Republic | M11: Africa | N11: 140 | T11: =IF(IFERROR(HLOOKUP(region,'Crops & Countries'!$U$3:$AA$51,ROW(S9),FALSE),"")=0,"",IFERROR(HLOOKUP(region,'Crops & Countries'!$U$3:$AA$51,ROW(S9),FALSE),"")) ->  | U11: Central African Republic | V11: Chile | W11: Pakistan | X11: Denmark | Y11: Lao People's Democratic Republic
B12: Barbados | C12: Latin America and Caribbean | D12: Tropical, wet | E12: =VLOOKUP(Countries[[#This Row],[Climate Zone]],methaneDefaults,2,FALSE) -> 0.5 | H12: Cashew nuts | I12: Nuts/Seeds | J12: Oilseeds and pulses | L12: Chad | M12: Africa | N12: 148 | T12: =IF(IFERROR(HLOOKUP(region,'Crops & Countries'!$U$3:$AA$51,ROW(S10),FALSE),"")=0,"",IFERROR(HLOOKUP(region,'Crops & Countries'!$U$3:$AA$51,ROW(S10),FALSE),"")) ->  | U12: Chad | V12: Colombia | X12: Estonia | Y12: Malaysia
B13: Belize | C13: Latin America and Caribbean | D13: Tropical, wet | E13: =VLOOKUP(Countries[[#This Row],[Climate Zone]],methaneDefaults,2,FALSE) -> 0.5 | H13: Cassava (fresh) | I13: Tubers/Root Crops | J13: Roots and tubers | L13: Comoros | M13: Africa | N13: 174 | T13: =IF(IFERROR(HLOOKUP(region,'Crops & Countries'!$U$3:$AA$51,ROW(S11),FALSE),"")=0,"",IFERROR(HLOOKUP(region,'Crops & Countries'!$U$3:$AA$51,ROW(S11),FALSE),"")) ->  | U13: Comoros | V13: Costa Rica | X13: Finland | Y13: Marshall Islands
B14: Benin | C14: Africa | D14: Tropical, dry | E14: =VLOOKUP(Countries[[#This Row],[Climate Zone]],methaneDefaults,2,FALSE) -> 0.5 | H14: Chickpeas (dry) | I14: Pulses & Grains | J14: Oilseeds and pulses | L14: Congo | M14: Africa | N14: 178 | T14: =IF(IFERROR(HLOOKUP(region,'Crops & Countries'!$U$3:$AA$51,ROW(S12),FALSE),"")=0,"",IFERROR(HLOOKUP(region,'Crops & Countries'!$U$3:$AA$51,ROW(S12),FALSE),"")) ->  | U14: Congo | V14: Dominica | X14: France | Y14: Micronesia (Federated States of)
B15: Bhutan | C15: South Asia | D15: Tropical, dry | E15: =VLOOKUP(Countries[[#This Row],[Climate Zone]],methaneDefaults,2,FALSE) -> 0.5 | H15: Cocoa | I15: Nuts/Seeds | J15: Oilseeds and pulses | L15: Cote d'Ivoire | M15: Africa | N15: 384 | T15: =IF(IFERROR(HLOOKUP(region,'Crops & Countries'!$U$3:$AA$51,ROW(S13),FALSE),"")=0,"",IFERROR(HLOOKUP(region,'Crops & Countries'!$U$3:$AA$51,ROW(S13),FALSE),"")) ->  | U15: Cote d'Ivoire | V15: Dominican Republic | X15: Germany | Y15: Mongolia
B16: Bolivia (Plurinational State of) | C16: Latin America and Caribbean | D16: Tropical, wet | E16: =VLOOKUP(Countries[[#This Row],[Climate Zone]],methaneDefaults,2,FALSE) -> 0.5 | H16: Coffee | I16: Nuts/Seeds | J16: Oilseeds and pulses | L16: Democratic Republic of the Congo | M16: Africa | N16: 180 | T16: =IF(IFERROR(HLOOKUP(region,'Crops & Countries'!$U$3:$AA$51,ROW(S14),FALSE),"")=0,"",IFERROR(HLOOKUP(region,'Crops & Countries'!$U$3:$AA$51,ROW(S14),FALSE),"")) ->  | U16: Democratic Republic of the Congo | V16: Ecuador | X16: Greece | Y16: New Zealand
B17: Bosnia and Herzegovina | C17: Europe and Central Asia | D17: Temperate, dry | E17: =VLOOKUP(Countries[[#This Row],[Climate Zone]],methaneDefaults,2,FALSE) -> 0.7 | H17: Cotton | I17: Cotton | J17: Oilseeds and pulses | L17: Equatorial Guinea | M17: Africa | N17: 226 | T17: =IF(IFERROR(HLOOKUP(region,'Crops & Countries'!$U$3:$AA$51,ROW(S15),FALSE),"")=0,"",IFERROR(HLOOKUP(region,'Crops & Countries'!$U$3:$AA$51,ROW(S15),FALSE),"")) ->  | U17: Equatorial Guinea | V17: El Salvador | X17: Hungary | Y17: Papua New Guinea
B18: Botswana | C18: Africa | D18: Tropical, dry | E18: =VLOOKUP(Countries[[#This Row],[Climate Zone]],methaneDefaults,2,FALSE) -> 0.5 | H18: Eggs | I18: Animal Protein | J18: Eggs | L18: Eritrea | M18: Africa | N18: 232 | T18: =IF(IFERROR(HLOOKUP(region,'Crops & Countries'!$U$3:$AA$51,ROW(S16),FALSE),"")=0,"",IFERROR(HLOOKUP(region,'Crops & Countries'!$U$3:$AA$51,ROW(S16),FALSE),"")) ->  | U18: Eritrea | V18: Grenada | X18: Iceland | Y18: Philippines
B19: Brazil | C19: Latin America and Caribbean | D19: Tropical, dry | E19: =VLOOKUP(Countries[[#This Row],[Climate Zone]],methaneDefaults,2,FALSE) -> 0.5 | H19: Flour | I19: Flour | J19: Cereals | L19: Eswatini | M19: Africa | N19: 748 | T19: =IF(IFERROR(HLOOKUP(region,'Crops & Countries'!$U$3:$AA$51,ROW(S17),FALSE),"")=0,"",IFERROR(HLOOKUP(region,'Crops & Countries'!$U$3:$AA$51,ROW(S17),FALSE),"")) ->  | U19: Eswatini | V19: Guatemala | X19: Ireland | Y19: Samoa
B20: Burkina Faso | C20: Africa | D20: Tropical, dry | E20: =VLOOKUP(Countries[[#This Row],[Climate Zone]],methaneDefaults,2,FALSE) -> 0.5 | H20: Garlic (green) | I20: Tubers/Root Crops | J20: Roots and tubers | L20: Ethiopia | M20: Africa | N20: 231 | T20: =IF(IFERROR(HLOOKUP(region,'Crops & Countries'!$U$3:$AA$51,ROW(S18),FALSE),"")=0,"",IFERROR(HLOOKUP(region,'Crops & Countries'!$U$3:$AA$51,ROW(S18),FALSE),"")) ->  | U20: Ethiopia | V20: Guyana | X20: Italy | Y20: Solomon Islands
B21: Burundi | C21: Africa | D21: Tropical, dry | E21: =VLOOKUP(Countries[[#This Row],[Climate Zone]],methaneDefaults,2,FALSE) -> 0.5 | H21: Ginger | I21: Tubers/Root Crops | J21: Roots and tubers | L21: Gabon | M21: Africa | N21: 266 | T21: =IF(IFERROR(HLOOKUP(region,'Crops & Countries'!$U$3:$AA$51,ROW(S19),FALSE),"")=0,"",IFERROR(HLOOKUP(region,'Crops & Countries'!$U$3:$AA$51,ROW(S19),FALSE),"")) ->  | U21: Gabon | V21: Haiti | X21: Kazakhstan | Y21: Thailand
B22: Cabo Verde | C22: Africa | D22: Tropical, wet | E22: =VLOOKUP(Countries[[#This Row],[Climate Zone]],methaneDefaults,2,FALSE) -> 0.5 | H22: Grapes | I22: Fruits | J22: Fruits and vegetables | L22: Gambia | M22: Africa | N22: 270 | T22: =IF(IFERROR(HLOOKUP(region,'Crops & Countries'!$U$3:$AA$51,ROW(S20),FALSE),"")=0,"",IFERROR(HLOOKUP(region,'Crops & Countries'!$U$3:$AA$51,ROW(S20),FALSE),"")) ->  | U22: Gambia | V22: Honduras | X22: Kyrgyzstan | Y22: Timor-Leste
B23: Cambodia | C23: East Asia and Pacific | D23: Tropical, wet | E23: =VLOOKUP(Countries[[#This Row],[Climate Zone]],methaneDefaults,2,FALSE) -> 0.5 | H23: Lemons | I23: Fruits | J23: Fruits and vegetables | L23: Ghana | M23: Africa | N23: 288 | T23: =IF(IFERROR(HLOOKUP(region,'Crops & Countries'!$U$3:$AA$51,ROW(S21),FALSE),"")=0,"",IFERROR(HLOOKUP(region,'Crops & Countries'!$U$3:$AA$51,ROW(S21),FALSE),"")) ->  | U23: Ghana | V23: Jamaica | X23: Latvia | Y23: Tonga
B24: Cameroon | C24: Africa | D24: Tropical, dry | E24: =VLOOKUP(Countries[[#This Row],[Climate Zone]],methaneDefaults,2,FALSE) -> 0.5 | H24: Lentils | I24: Pulses & Grains | J24: Oilseeds and pulses | L24: Kenya | M24: Africa | N24: 404 | T24: =IF(IFERROR(HLOOKUP(region,'Crops & Countries'!$U$3:$AA$51,ROW(S22),FALSE),"")=0,"",IFERROR(HLOOKUP(region,'Crops & Countries'!$U$3:$AA$51,ROW(S22),FALSE),"")) ->  | U24: Guinea | V24: Mexico | X24: Lithuania | Y24: Tuvalu
B25: Central African Republic | C25: Africa | D25: Tropical, dry | E25: =VLOOKUP(Countries[[#This Row],[Climate Zone]],methaneDefaults,2,FALSE) -> 0.5 | H25: Lettuce | I25: Vegetables | J25: Fruits and vegetables | L25: Lesotho | M25: Africa | N25: 426 | T25: =IF(IFERROR(HLOOKUP(region,'Crops & Countries'!$U$3:$AA$51,ROW(S23),FALSE),"")=0,"",IFERROR(HLOOKUP(region,'Crops & Countries'!$U$3:$AA$51,ROW(S23),FALSE),"")) ->  | U25: Guinea-Bissau | V25: Nicaragua | X25: Luxembourg | Y25: Vanuatu
B26: Chad | C26: Africa | D26: Tropical, dry | E26: =VLOOKUP(Countries[[#This Row],[Climate Zone]],methaneDefaults,2,FALSE) -> 0.5 | H26: Maize | I26: Pulses & Grains | J26: Cereals | L26: Liberia | M26: Africa | N26: 430 | T26: =IF(IFERROR(HLOOKUP(region,'Crops & Countries'!$U$3:$AA$51,ROW(S24),FALSE),"")=0,"",IFERROR(HLOOKUP(region,'Crops & Countries'!$U$3:$AA$51,ROW(S24),FALSE),"")) ->  | U26: Kenya | V26: Panama | X26: Malta | Y26: Viet Nam
B27: Chile | C27: Latin America and Caribbean | D27: Tropical, dry | E27: =VLOOKUP(Countries[[#This Row],[Climate Zone]],methaneDefaults,2,FALSE) -> 0.5 | H27: Mangoes | I27: Fruits | J27: Fruits and vegetables | L27: Madagascar | M27: Africa | N27: 450 | T27: =IF(IFERROR(HLOOKUP(region,'Crops & Countries'!$U$3:$AA$51,ROW(S25),FALSE),"")=0,"",IFERROR(HLOOKUP(region,'Crops & Countries'!$U$3:$AA$51,ROW(S25),FALSE),"")) ->  | U27: Lesotho | V27: Paraguay | X27: Netherlands
B28: China | C28: East Asia and Pacific | D28: Temperate, dry | E28: =VLOOKUP(Countries[[#This Row],[Climate Zone]],methaneDefaults,2,FALSE) -> 0.7 | H28: Meat (cattle) | I28: Animal Protein | J28: Meat | L28: Malawi | M28: Africa | N28: 454 | T28: =IF(IFERROR(HLOOKUP(region,'Crops & Countries'!$U$3:$AA$51,ROW(S26),FALSE),"")=0,"",IFERROR(HLOOKUP(region,'Crops & Countries'!$U$3:$AA$51,ROW(S26),FALSE),"")) ->  | U28: Liberia | V28: Peru | X28: Norway
B29: Colombia | C29: Latin America and Caribbean | D29: Tropical, wet | E29: =VLOOKUP(Countries[[#This Row],[Climate Zone]],methaneDefaults,2,FALSE) -> 0.5 | H29: Meat (chicken) | I29: Animal Protein | J29: Meat | L29: Mali | M29: Africa | N29: 466 | T29: =IF(IFERROR(HLOOKUP(region,'Crops & Countries'!$U$3:$AA$51,ROW(S27),FALSE),"")=0,"",IFERROR(HLOOKUP(region,'Crops & Countries'!$U$3:$AA$51,ROW(S27),FALSE),"")) ->  | U29: Madagascar | V29: Saint Kitts and Nevis | X29: Poland
B30: Comoros | C30: Africa | D30: Tropical, wet | E30: =VLOOKUP(Countries[[#This Row],[Climate Zone]],methaneDefaults,2,FALSE) -> 0.5 | H30: Meat (pig) | I30: Animal Protein | J30: Meat | L30: Mauritania | M30: Africa | N30: 478 | T30: =IF(IFERROR(HLOOKUP(region,'Crops & Countries'!$U$3:$AA$51,ROW(S28),FALSE),"")=0,"",IFERROR(HLOOKUP(region,'Crops & Countries'!$U$3:$AA$51,ROW(S28),FALSE),"")) ->  | U30: Malawi | V30: Saint Lucia | X30: Portugal
B31: Congo | C31: Africa | D31: Tropical, dry | E31: =VLOOKUP(Countries[[#This Row],[Climate Zone]],methaneDefaults,2,FALSE) -> 0.5 | H31: Milk (cattle) | I31: Animal Protein | J31: Milk | L31: Mauritius | M31: Africa | N31: 480 | T31: =IF(IFERROR(HLOOKUP(region,'Crops & Countries'!$U$3:$AA$51,ROW(S29),FALSE),"")=0,"",IFERROR(HLOOKUP(region,'Crops & Countries'!$U$3:$AA$51,ROW(S29),FALSE),"")) ->  | U31: Mali | V31: Trinidad and Tobago | X31: Romania
B32: Costa Rica | C32: Latin America and Caribbean | D32: Tropical, wet | E32: =VLOOKUP(Countries[[#This Row],[Climate Zone]],methaneDefaults,2,FALSE) -> 0.5 | H32: Millet | I32: Pulses & Grains | J32: Oilseeds and pulses | L32: Mozambique | M32: Africa | N32: 508 | T32: =IF(IFERROR(HLOOKUP(region,'Crops & Countries'!$U$3:$AA$51,ROW(S30),FALSE),"")=0,"",IFERROR(HLOOKUP(region,'Crops & Countries'!$U$3:$AA$51,ROW(S30),FALSE),"")) ->  | U32: Mauritania | V32: Uruguay | X32: Slovakia
B33: Cote d'Ivoire | C33: Africa | D33: Tropical, dry | E33: =VLOOKUP(Countries[[#This Row],[Climate Zone]],methaneDefaults,2,FALSE) -> 0.5 | H33: Mushrooms | I33: Mycoprotein | J33: Mycoprotein | L33: Namibia | M33: Africa | N33: 516 | T33: =IF(IFERROR(HLOOKUP(region,'Crops & Countries'!$U$3:$AA$51,ROW(S31),FALSE),"")=0,"",IFERROR(HLOOKUP(region,'Crops & Countries'!$U$3:$AA$51,ROW(S31),FALSE),"")) ->  | U33: Mauritius | V33: Venezuela (Bolivarian Republic of) | X33: Slovenia
B34: Democratic Republic of the Congo | C34: Africa | D34: Tropical, dry | E34: =VLOOKUP(Countries[[#This Row],[Climate Zone]],methaneDefaults,2,FALSE) -> 0.5 | H34: Oats | I34: Pulses & Grains | J34: Oilseeds and pulses | L34: Niger | M34: Africa | N34: 562 | T34: =IF(IFERROR(HLOOKUP(region,'Crops & Countries'!$U$3:$AA$51,ROW(S32),FALSE),"")=0,"",IFERROR(HLOOKUP(region,'Crops & Countries'!$U$3:$AA$51,ROW(S32),FALSE),"")) ->  | U34: Mozambique | X34: Spain
B35: Dominica | C35: Latin America and Caribbean | D35: Tropical, wet | E35: =VLOOKUP(Countries[[#This Row],[Climate Zone]],methaneDefaults,2,FALSE) -> 0.5 | H35: Onions, dry | I35: Tubers/Root Crops | J35: Roots and tubers | L35: Nigeria | M35: Africa | N35: 566 | T35: =IF(IFERROR(HLOOKUP(region,'Crops & Countries'!$U$3:$AA$51,ROW(S33),FALSE),"")=0,"",IFERROR(HLOOKUP(region,'Crops & Countries'!$U$3:$AA$51,ROW(S33),FALSE),"")) ->  | U35: Namibia | X35: Sweden
B36: Dominican Republic | C36: Latin America and Caribbean | D36: Tropical, wet | E36: =VLOOKUP(Countries[[#This Row],[Climate Zone]],methaneDefaults,2,FALSE) -> 0.5 | H36: Oranges | I36: Fruits | J36: Fruits and vegetables | L36: Rwanda | M36: Africa | N36: 646 | T36: =IF(IFERROR(HLOOKUP(region,'Crops & Countries'!$U$3:$AA$51,ROW(S34),FALSE),"")=0,"",IFERROR(HLOOKUP(region,'Crops & Countries'!$U$3:$AA$51,ROW(S34),FALSE),"")) ->  | U36: Niger | X36: Switzerland
B37: Ecuador | C37: Latin America and Caribbean | D37: Tropical, wet | E37: =VLOOKUP(Countries[[#This Row],[Climate Zone]],methaneDefaults,2,FALSE) -> 0.5 | H37: Peanuts | I37: Pulses & Grains | J37: Oilseeds and pulses | L37: Sao Tome and Principe | M37: Africa | N37: 678 | T37: =IF(IFERROR(HLOOKUP(region,'Crops & Countries'!$U$3:$AA$51,ROW(S35),FALSE),"")=0,"",IFERROR(HLOOKUP(region,'Crops & Countries'!$U$3:$AA$51,ROW(S35),FALSE),"")) ->  | U37: Nigeria | X37: Tajikistan
B38: Egypt | C38: Middle East and North Africa | D38: Tropical, dry | E38: =VLOOKUP(Countries[[#This Row],[Climate Zone]],methaneDefaults,2,FALSE) -> 0.5 | H38: Peas (dry) | I38: Pulses & Grains | J38: Oilseeds and pulses | L38: Senegal | M38: Africa | N38: 686 | T38: =IF(IFERROR(HLOOKUP(region,'Crops & Countries'!$U$3:$AA$51,ROW(S36),FALSE),"")=0,"",IFERROR(HLOOKUP(region,'Crops & Countries'!$U$3:$AA$51,ROW(S36),FALSE),"")) ->  | U38: Rwanda | X38: Turkey
B39: El Salvador | C39: Latin America and Caribbean | D39: Tropical, wet | E39: =VLOOKUP(Countries[[#This Row],[Climate Zone]],methaneDefaults,2,FALSE) -> 0.5 | H39: Peppers | I39: Vegetables | J39: Fruits and vegetables | L39: Seychelles | M39: Africa | N39: 690 | T39: =IF(IFERROR(HLOOKUP(region,'Crops & Countries'!$U$3:$AA$51,ROW(S37),FALSE),"")=0,"",IFERROR(HLOOKUP(region,'Crops & Countries'!$U$3:$AA$51,ROW(S37),FALSE),"")) ->  | U39: Sao Tome and Principe | X39: Ukraine
B40: Equatorial Guinea | C40: Africa | D40: Tropical, wet | E40: =VLOOKUP(Countries[[#This Row],[Climate Zone]],methaneDefaults,2,FALSE) -> 0.5 | H40: Pineapples | I40: Fruits | J40: Fruits and vegetables | L40: Sierra Leone | M40: Africa | N40: 694 | T40: =IF(IFERROR(HLOOKUP(region,'Crops & Countries'!$U$3:$AA$51,ROW(S38),FALSE),"")=0,"",IFERROR(HLOOKUP(region,'Crops & Countries'!$U$3:$AA$51,ROW(S38),FALSE),"")) ->  | U40: Senegal | X40: United Kingdom
B41: Eritrea | C41: Africa | D41: Tropical, dry | E41: =VLOOKUP(Countries[[#This Row],[Climate Zone]],methaneDefaults,2,FALSE) -> 0.5 | H41: Potatoes | I41: Tubers/Root Crops | J41: Roots and tubers | L41: Somalia | M41: Africa | N41: 706 | T41: =IF(IFERROR(HLOOKUP(region,'Crops & Countries'!$U$3:$AA$51,ROW(S39),FALSE),"")=0,"",IFERROR(HLOOKUP(region,'Crops & Countries'!$U$3:$AA$51,ROW(S39),FALSE),"")) ->  | U41: Seychelles | X41: Uzbekistan
B42: Eswatini | C42: Africa | D42: Temperate, dry | E42: =VLOOKUP(Countries[[#This Row],[Climate Zone]],methaneDefaults,2,FALSE) -> 0.7 | F42: formerly Swaziland | H42: Quinoa | I42: Pulses & Grains | J42: Oilseeds and pulses | L42: South Africa | M42: Africa | N42: 710 | T42: =IF(IFERROR(HLOOKUP(region,'Crops & Countries'!$U$3:$AA$51,ROW(S40),FALSE),"")=0,"",IFERROR(HLOOKUP(region,'Crops & Countries'!$U$3:$AA$51,ROW(S40),FALSE),"")) ->  | U42: Sierra Leone
B43: Ethiopia | C43: Africa | D43: Tropical, dry | E43: =VLOOKUP(Countries[[#This Row],[Climate Zone]],methaneDefaults,2,FALSE) -> 0.5 | H43: Rapeseeds | I43: Nuts/Seeds | J43: Oilseeds and pulses | L43: South Sudan | M43: Africa | N43: 728 | T43: =IF(IFERROR(HLOOKUP(region,'Crops & Countries'!$U$3:$AA$51,ROW(S41),FALSE),"")=0,"",IFERROR(HLOOKUP(region,'Crops & Countries'!$U$3:$AA$51,ROW(S41),FALSE),"")) ->  | U43: Somalia
B44: Fiji | C44: East Asia and Pacific | D44: Tropical, dry | E44: =VLOOKUP(Countries[[#This Row],[Climate Zone]],methaneDefaults,2,FALSE) -> 0.5 | H44: Rice | I44: Pulses & Grains | J44: Cereals | L44: Sudan | M44: Africa | N44: 729 | T44: =IF(IFERROR(HLOOKUP(region,'Crops & Countries'!$U$3:$AA$51,ROW(S42),FALSE),"")=0,"",IFERROR(HLOOKUP(region,'Crops & Countries'!$U$3:$AA$51,ROW(S42),FALSE),"")) ->  | U44: South Africa
B45: Gabon | C45: Africa | D45: Tropical, dry | E45: =VLOOKUP(Countries[[#This Row],[Climate Zone]],methaneDefaults,2,FALSE) -> 0.5 | H45: Rye | I45: Pulses & Grains | J45: Oilseeds and pulses | L45: Togo | M45: Africa | N45: 768 | T45: =IF(IFERROR(HLOOKUP(region,'Crops & Countries'!$U$3:$AA$51,ROW(S43),FALSE),"")=0,"",IFERROR(HLOOKUP(region,'Crops & Countries'!$U$3:$AA$51,ROW(S43),FALSE),"")) ->  | U45: South Sudan
B46: Gambia | C46: Africa | D46: Tropical, wet | E46: =VLOOKUP(Countries[[#This Row],[Climate Zone]],methaneDefaults,2,FALSE) -> 0.5 | H46: Sesame seed | I46: Nuts/Seeds | J46: Oilseeds and pulses | L46: Uganda | M46: Africa | N46: 800 | T46: =IF(IFERROR(HLOOKUP(region,'Crops & Countries'!$U$3:$AA$51,ROW(S44),FALSE),"")=0,"",IFERROR(HLOOKUP(region,'Crops & Countries'!$U$3:$AA$51,ROW(S44),FALSE),"")) ->  | U46: Sudan
B47: Georgia | C47: Europe and Central Asia | D47: Temperate, dry | E47: =VLOOKUP(Countries[[#This Row],[Climate Zone]],methaneDefaults,2,FALSE) -> 0.7 | H47: Sorghum | I47: Pulses & Grains | J47: Cereals | L47: United Republic of Tanzania | M47: Africa | N47: 834 | T47: =IF(IFERROR(HLOOKUP(region,'Crops & Countries'!$U$3:$AA$51,ROW(S45),FALSE),"")=0,"",IFERROR(HLOOKUP(region,'Crops & Countries'!$U$3:$AA$51,ROW(S45),FALSE),"")) ->  | U47: Togo
B48: Ghana | C48: Africa | D48: Tropical, dry | E48: =VLOOKUP(Countries[[#This Row],[Climate Zone]],methaneDefaults,2,FALSE) -> 0.5 | H48: Soybeans | I48: Pulses & Grains | J48: Oilseeds and pulses | L48: Zambia | M48: Africa | N48: 894 | T48: =IF(IFERROR(HLOOKUP(region,'Crops & Countries'!$U$3:$AA$51,ROW(S46),FALSE),"")=0,"",IFERROR(HLOOKUP(region,'Crops & Countries'!$U$3:$AA$51,ROW(S46),FALSE),"")) ->  | U48: Uganda
B49: Grenada | C49: Latin America and Caribbean | D49: Tropical, wet | E49: =VLOOKUP(Countries[[#This Row],[Climate Zone]],methaneDefaults,2,FALSE) -> 0.5 | H49: Sugar cane | I49: Tubers/Root Crops | J49: Roots and tubers | L49: Zimbabwe | M49: Africa | N49: 716 | T49: =IF(IFERROR(HLOOKUP(region,'Crops & Countries'!$U$3:$AA$51,ROW(S47),FALSE),"")=0,"",IFERROR(HLOOKUP(region,'Crops & Countries'!$U$3:$AA$51,ROW(S47),FALSE),"")) ->  | U49: United Republic of Tanzania
B50: Guatemala | C50: Latin America and Caribbean | D50: Tropical, wet | E50: =VLOOKUP(Countries[[#This Row],[Climate Zone]],methaneDefaults,2,FALSE) -> 0.5 | H50: Sunflower seeds | I50: Nuts/Seeds | J50: Oilseeds and pulses | L50: Australia | M50: East Asia and Pacific | N50: 36 | T50: =IF(IFERROR(HLOOKUP(region,'Crops & Countries'!$U$3:$AA$51,ROW(S48),FALSE),"")=0,"",IFERROR(HLOOKUP(region,'Crops & Countries'!$U$3:$AA$51,ROW(S48),FALSE),"")) ->  | U50: Zambia
B51: Guinea | C51: Latin America and Caribbean | D51: Tropical, wet | E51: =VLOOKUP(Countries[[#This Row],[Climate Zone]],methaneDefaults,2,FALSE) -> 0.5 | H51: Sweet potatoes | I51: Tubers/Root Crops | J51: Roots and tubers | L51: Cambodia | M51: East Asia and Pacific | N51: 116 | T51: =IF(IFERROR(HLOOKUP(region,'Crops & Countries'!$U$3:$AA$51,ROW(S49),FALSE),"")=0,"",IFERROR(HLOOKUP(region,'Crops & Countries'!$U$3:$AA$51,ROW(S49),FALSE),"")) ->  | U51: Zimbabwe
B52: Guinea-Bissau | C52: Latin America and Caribbean | D52: Tropical, wet | E52: =VLOOKUP(Countries[[#This Row],[Climate Zone]],methaneDefaults,2,FALSE) -> 0.5 | H52: Tomatoes | I52: Fruits | J52: Fruits and vegetables | L52: China | M52: East Asia and Pacific | N52: 156 | T52: =IF(IFERROR(HLOOKUP(region,'Crops & Countries'!$U$3:$Z$49,ROW(S34),FALSE),"")=0,"",IFERROR(HLOOKUP(region,'Crops & Countries'!$U$3:$Z$49,ROW(S34),FALSE),"")) -> 
B53: Guyana | C53: Latin America and Caribbean | D53: Tropical, wet | E53: =VLOOKUP(Countries[[#This Row],[Climate Zone]],methaneDefaults,2,FALSE) -> 0.5 | H53: Wheat | I53: Pulses & Grains | J53: Cereals | L53: Fiji | M53: East Asia and Pacific | N53: 242 | T53: =IF(IFERROR(HLOOKUP(region,'Crops & Countries'!$U$3:$Z$49,ROW(S35),FALSE),"")=0,"",IFERROR(HLOOKUP(region,'Crops & Countries'!$U$3:$Z$49,ROW(S35),FALSE),"")) -> 
B54: Haiti | C54: Latin America and Caribbean | D54: Tropical, wet | E54: =VLOOKUP(Countries[[#This Row],[Climate Zone]],methaneDefaults,2,FALSE) -> 0.5 | H54: Tuna | I54: Animal Protein | J54: Fish and seafood | L54: Indonesia | M54: East Asia and Pacific | N54: 360 | T54: =IF(IFERROR(HLOOKUP(region,'Crops & Countries'!$U$3:$Z$49,ROW(S36),FALSE),"")=0,"",IFERROR(HLOOKUP(region,'Crops & Countries'!$U$3:$Z$49,ROW(S36),FALSE),"")) -> 
B55: Honduras | C55: Latin America and Caribbean | D55: Tropical, wet | E55: =VLOOKUP(Countries[[#This Row],[Climate Zone]],methaneDefaults,2,FALSE) -> 0.5 | H55: Salmon | I55: Animal Protein | J55: Fish and seafood | L55: Japan | M55: East Asia and Pacific | N55: 392 | T55: =IF(IFERROR(HLOOKUP(region,'Crops & Countries'!$U$3:$Z$49,ROW(S37),FALSE),"")=0,"",IFERROR(HLOOKUP(region,'Crops & Countries'!$U$3:$Z$49,ROW(S37),FALSE),"")) -> 
B56: India | C56: South Asia | D56: Tropical, dry | E56: =VLOOKUP(Countries[[#This Row],[Climate Zone]],methaneDefaults,2,FALSE) -> 0.5 | H56: Shrimp | I56: Animal Protein | J56: Fish and seafood | L56: Kiribati | M56: East Asia and Pacific | N56: 296 | T56: =IF(IFERROR(HLOOKUP(region,'Crops & Countries'!$U$3:$Z$49,ROW(S38),FALSE),"")=0,"",IFERROR(HLOOKUP(region,'Crops & Countries'!$U$3:$Z$49,ROW(S38),FALSE),"")) -> 
B57: Indonesia | C57: East Asia and Pacific | D57: Tropical, wet | E57: =VLOOKUP(Countries[[#This Row],[Climate Zone]],methaneDefaults,2,FALSE) -> 0.5 | H57: Tilapia | I57: Animal Protein | J57: Fish and seafood | L57: Lao People's Democratic Republic | M57: East Asia and Pacific | N57: 418 | T57: =IF(IFERROR(HLOOKUP(region,'Crops & Countries'!$U$3:$Z$49,ROW(S39),FALSE),"")=0,"",IFERROR(HLOOKUP(region,'Crops & Countries'!$U$3:$Z$49,ROW(S39),FALSE),"")) -> 
B58: Jamaica | C58: Latin America and Caribbean | D58: Tropical, wet | E58: =VLOOKUP(Countries[[#This Row],[Climate Zone]],methaneDefaults,2,FALSE) -> 0.5 | H58: Catfish | I58: Animal Protein | J58: Fish and seafood | L58: Malaysia | M58: East Asia and Pacific | N58: 458 | T58: =IF(IFERROR(HLOOKUP(region,'Crops & Countries'!$U$3:$Z$49,ROW(S40),FALSE),"")=0,"",IFERROR(HLOOKUP(region,'Crops & Countries'!$U$3:$Z$49,ROW(S40),FALSE),"")) -> 
B59: Kazakhstan | C59: Europe and Central Asia | D59: Temperate, dry | E59: =VLOOKUP(Countries[[#This Row],[Climate Zone]],methaneDefaults,2,FALSE) -> 0.7 | H59: Cotton seed oil | I59: Nuts/Seeds | J59: Oilseeds and pulses | L59: Marshall Islands | M59: East Asia and Pacific | N59: 584 | T59: =IF(IFERROR(HLOOKUP(region,'Crops & Countries'!$U$3:$Z$49,ROW(S41),FALSE),"")=0,"",IFERROR(HLOOKUP(region,'Crops & Countries'!$U$3:$Z$49,ROW(S41),FALSE),"")) -> 
B60: Kenya | C60: Africa | D60: Tropical, dry | E60: =VLOOKUP(Countries[[#This Row],[Climate Zone]],methaneDefaults,2,FALSE) -> 0.5 | H60: Sunflower oil | I60: Nuts/Seeds | J60: Oilseeds and pulses | L60: Micronesia (Federated States of) | M60: East Asia and Pacific | N60: 583 | T60: =IF(IFERROR(HLOOKUP(region,'Crops & Countries'!$U$3:$Z$49,ROW(S42),FALSE),"")=0,"",IFERROR(HLOOKUP(region,'Crops & Countries'!$U$3:$Z$49,ROW(S42),FALSE),"")) -> 
B61: Kiribati | C61: East Asia and Pacific | D61: Tropical, wet | E61: =VLOOKUP(Countries[[#This Row],[Climate Zone]],methaneDefaults,2,FALSE) -> 0.5 | H61: Olive oil | I61: Nuts/Seeds | J61: Oilseeds and pulses | L61: Mongolia | M61: East Asia and Pacific | N61: 496 | T61: =IF(IFERROR(HLOOKUP(region,'Crops & Countries'!$U$3:$Z$49,ROW(S43),FALSE),"")=0,"",IFERROR(HLOOKUP(region,'Crops & Countries'!$U$3:$Z$49,ROW(S43),FALSE),"")) -> 
B62: Kyrgyzstan | C62: Europe and Central Asia | D62: Temperate, dry | E62: =VLOOKUP(Countries[[#This Row],[Climate Zone]],methaneDefaults,2,FALSE) -> 0.7 | F62: Kyrgyz Republic | H62: Palm oil | I62: Nuts/Seeds | J62: Oilseeds and pulses | L62: New Zealand | M62: East Asia and Pacific | N62: 554 | T62: =IF(IFERROR(HLOOKUP(region,'Crops & Countries'!$U$3:$Z$49,ROW(S44),FALSE),"")=0,"",IFERROR(HLOOKUP(region,'Crops & Countries'!$U$3:$Z$49,ROW(S44),FALSE),"")) -> 
B63: Lao People's Democratic Republic | C63: East Asia and Pacific | D63: Tropical, wet | E63: =VLOOKUP(Countries[[#This Row],[Climate Zone]],methaneDefaults,2,FALSE) -> 0.5 | H63: Blueberries | I63: Fruits | J63: Fruits and vegetables | L63: Papua New Guinea | M63: East Asia and Pacific | N63: 598 | T63: =IF(IFERROR(HLOOKUP(region,'Crops & Countries'!$U$3:$Z$49,ROW(S45),FALSE),"")=0,"",IFERROR(HLOOKUP(region,'Crops & Countries'!$U$3:$Z$49,ROW(S45),FALSE),"")) -> 
B64: Lebanon | C64: Middle East and North Africa | D64: Temperate, dry | E64: =VLOOKUP(Countries[[#This Row],[Climate Zone]],methaneDefaults,2,FALSE) -> 0.7 | H64: Raspberries | I64: Fruits | J64: Fruits and vegetables | L64: Philippines | M64: East Asia and Pacific | N64: 608 | T64: =IF(IFERROR(HLOOKUP(region,'Crops & Countries'!$U$3:$Z$49,ROW(S46),FALSE),"")=0,"",IFERROR(HLOOKUP(region,'Crops & Countries'!$U$3:$Z$49,ROW(S46),FALSE),"")) -> 
B65: Lesotho | C65: Africa | D65: Tropical, dry | E65: =VLOOKUP(Countries[[#This Row],[Climate Zone]],methaneDefaults,2,FALSE) -> 0.5 | H65: Strawberries | I65: Fruits | J65: Fruits and vegetables | L65: Samoa | M65: East Asia and Pacific | N65: 882 | T65: =IF(IFERROR(HLOOKUP(region,'Crops & Countries'!$U$3:$Z$49,ROW(S47),FALSE),"")=0,"",IFERROR(HLOOKUP(region,'Crops & Countries'!$U$3:$Z$49,ROW(S47),FALSE),"")) -> 
B66: Liberia | C66: Africa | D66: Tropical, dry | E66: =VLOOKUP(Countries[[#This Row],[Climate Zone]],methaneDefaults,2,FALSE) -> 0.5 | H66: Watermelons | I66: Fruits | J66: Fruits and vegetables | L66: Solomon Islands | M66: East Asia and Pacific | N66: 90
B67: Madagascar | C67: Africa | D67: Tropical, dry | E67: =VLOOKUP(Countries[[#This Row],[Climate Zone]],methaneDefaults,2,FALSE) -> 0.5 | H67: Litchi | I67: Fruits | J67: Fruits and vegetables | L67: Thailand | M67: East Asia and Pacific | N67: 764
B68: Malawi | C68: Africa | D68: Tropical, dry | E68: =VLOOKUP(Countries[[#This Row],[Climate Zone]],methaneDefaults,2,FALSE) -> 0.5 | H68: Pears | I68: Fruits | J68: Fruits and vegetables | L68: Timor-Leste | M68: East Asia and Pacific | N68: 626
B69: Malaysia | C69: East Asia and Pacific | D69: Tropical, wet | E69: =VLOOKUP(Countries[[#This Row],[Climate Zone]],methaneDefaults,2,FALSE) -> 0.5 | H69: Cherries | I69: Fruits | J69: Fruits and vegetables | L69: Tonga | M69: East Asia and Pacific | N69: 776
B70: Maldives | C70: South Asia | D70: Tropical, wet | E70: =VLOOKUP(Countries[[#This Row],[Climate Zone]],methaneDefaults,2,FALSE) -> 0.5 | H70: Mandarins | I70: Fruits | J70: Fruits and vegetables | L70: Tuvalu | M70: East Asia and Pacific | N70: 798
B71: Mali | C71: Africa | D71: Tropical, dry | E71: =VLOOKUP(Countries[[#This Row],[Climate Zone]],methaneDefaults,2,FALSE) -> 0.5 | H71: Cucumbers | I71: Vegetables | J71: Fruits and vegetables | L71: Vanuatu | M71: East Asia and Pacific | N71: 548
B72: Marshall Islands | C72: East Asia and Pacific | D72: Tropical, dry | E72: =VLOOKUP(Countries[[#This Row],[Climate Zone]],methaneDefaults,2,FALSE) -> 0.5 | H72: Sweet peppers | I72: Vegetables | J72: Fruits and vegetables | L72: Viet Nam | M72: East Asia and Pacific | N72: 704
B73: Mauritania | C73: Africa | D73: Tropical, dry | E73: =VLOOKUP(Countries[[#This Row],[Climate Zone]],methaneDefaults,2,FALSE) -> 0.5 | H73: Onions (fresh) | I73: Vegetables | J73: Fruits and vegetables | L73: Armenia | M73: Europe and Central Asia | N73: 51
B74: Mauritius | C74: Africa | D74: Tropical, wet | E74: =VLOOKUP(Countries[[#This Row],[Climate Zone]],methaneDefaults,2,FALSE) -> 0.5 | H74: Asparagus | I74: Vegetables | J74: Fruits and vegetables | L74: Austria | M74: Europe and Central Asia | N74: 40
B75: Mexico | C75: Latin America and Caribbean | D75: Tropical, dry | E75: =VLOOKUP(Countries[[#This Row],[Climate Zone]],methaneDefaults,2,FALSE) -> 0.5 | H75: Broccoli | I75: Vegetables | J75: Fruits and vegetables | L75: Azerbaijan | M75: Europe and Central Asia | N75: 31
B76: Micronesia (Federated States of) | C76: East Asia and Pacific | D76: Tropical, wet | E76: =VLOOKUP(Countries[[#This Row],[Climate Zone]],methaneDefaults,2,FALSE) -> 0.5 | H76: Spinach | I76: Vegetables | J76: Fruits and vegetables | L76: Belgium | M76: Europe and Central Asia | N76: 56
B77: Moldova | C77: Europe and Central Asia | D77: Temperate, dry | E77: =VLOOKUP(Countries[[#This Row],[Climate Zone]],methaneDefaults,2,FALSE) -> 0.7 | H77: Pistachios | I77: Nuts/Seeds | J77: Oilseeds and pulses | L77: Bosnia and Herzegovina | M77: Europe and Central Asia | N77: 70
B78: Mongolia | C78: East Asia and Pacific | D78: Temperate, dry | E78: =VLOOKUP(Countries[[#This Row],[Climate Zone]],methaneDefaults,2,FALSE) -> 0.7 | H78: Coconuts | I78: Nuts/Seeds | J78: Oilseeds and pulses | L78: Bulgaria | M78: Europe and Central Asia | N78: 100
B79: Morocco | C79: Middle East and North Africa | D79: Tropical, dry | E79: =VLOOKUP(Countries[[#This Row],[Climate Zone]],methaneDefaults,2,FALSE) -> 0.5 | H79: Walnuts | I79: Nuts/Seeds | J79: Oilseeds and pulses | L79: Croatia | M79: Europe and Central Asia | N79: 191
B80: Mozambique | C80: Africa | D80: Tropical, wet | E80: =VLOOKUP(Countries[[#This Row],[Climate Zone]],methaneDefaults,2,FALSE) -> 0.5 | H80: Hazelnuts | I80: Nuts/Seeds | J80: Oilseeds and pulses | L80: Cyprus | M80: Europe and Central Asia | N80: 196
B81: Myanmar | C81: South Asia | D81: Tropical, wet | E81: =VLOOKUP(Countries[[#This Row],[Climate Zone]],methaneDefaults,2,FALSE) -> 0.5 | H81: Yoghurt | I81: Animal Protein | J81: Milk | L81: Czech Republic | M81: Europe and Central Asia | N81: 203
B82: Namibia | C82: Africa | D82: Tropical, dry | E82: =VLOOKUP(Countries[[#This Row],[Climate Zone]],methaneDefaults,2,FALSE) -> 0.5 | H82: Cheese | I82: Animal Protein | J82: Milk | L82: Denmark | M82: Europe and Central Asia | N82: 208
B83: Nepal | C83: South Asia | D83: Temperate, dry | E83: =VLOOKUP(Countries[[#This Row],[Climate Zone]],methaneDefaults,2,FALSE) -> 0.7 | H83: Butter | I83: Animal Protein | J83: Milk | L83: Estonia | M83: Europe and Central Asia | N83: 233
B84: Nicaragua | C84: Latin America and Caribbean | D84: Tropical, wet | E84: =VLOOKUP(Countries[[#This Row],[Climate Zone]],methaneDefaults,2,FALSE) -> 0.5 | L84: Finland | M84: Europe and Central Asia | N84: 246
B85: Niger | C85: Africa | D85: Tropical, dry | E85: =VLOOKUP(Countries[[#This Row],[Climate Zone]],methaneDefaults,2,FALSE) -> 0.5 | L85: France | M85: Europe and Central Asia | N85: 250
B86: Nigeria | C86: Africa | D86: Tropical, dry | E86: =VLOOKUP(Countries[[#This Row],[Climate Zone]],methaneDefaults,2,FALSE) -> 0.5 | L86: Georgia | M86: Europe and Central Asia | N86: 268
B87: Pakistan | C87: Middle East and North Africa | D87: Tropical, dry | E87: =VLOOKUP(Countries[[#This Row],[Climate Zone]],methaneDefaults,2,FALSE) -> 0.5 | L87: Germany | M87: Europe and Central Asia | N87: 276
B88: Panama | C88: Latin America and Caribbean | D88: Tropical, wet | E88: =VLOOKUP(Countries[[#This Row],[Climate Zone]],methaneDefaults,2,FALSE) -> 0.5 | L88: Greece | M88: Europe and Central Asia | N88: 300
B89: Papua New Guinea | C89: East Asia and Pacific | D89: Tropical, wet | E89: =VLOOKUP(Countries[[#This Row],[Climate Zone]],methaneDefaults,2,FALSE) -> 0.5 | L89: Hungary | M89: Europe and Central Asia | N89: 348
B90: Paraguay | C90: Latin America and Caribbean | D90: Tropical, wet | E90: =VLOOKUP(Countries[[#This Row],[Climate Zone]],methaneDefaults,2,FALSE) -> 0.5 | L90: Iceland | M90: Europe and Central Asia | N90: 352
B91: Peru | C91: Latin America and Caribbean | D91: Temperate, dry | E91: =VLOOKUP(Countries[[#This Row],[Climate Zone]],methaneDefaults,2,FALSE) -> 0.7 | L91: Ireland | M91: Europe and Central Asia | N91: 372
B92: Philippines | C92: East Asia and Pacific | D92: Tropical, wet | E92: =VLOOKUP(Countries[[#This Row],[Climate Zone]],methaneDefaults,2,FALSE) -> 0.5 | L92: Italy | M92: Europe and Central Asia | N92: 380
B93: Rwanda | C93: Africa | D93: Tropical, wet | E93: =VLOOKUP(Countries[[#This Row],[Climate Zone]],methaneDefaults,2,FALSE) -> 0.5 | L93: Kazakhstan | M93: Europe and Central Asia | N93: 398
B94: Saint Kitts and Nevis | C94: Latin America and Caribbean | D94: Tropical, wet | E94: =VLOOKUP(Countries[[#This Row],[Climate Zone]],methaneDefaults,2,FALSE) -> 0.5 | L94: Kyrgyzstan | M94: Europe and Central Asia | N94: 417
B95: Saint Lucia | C95: Latin America and Caribbean | D95: Tropical, wet | E95: =VLOOKUP(Countries[[#This Row],[Climate Zone]],methaneDefaults,2,FALSE) -> 0.5 | L95: Latvia | M95: Europe and Central Asia | N95: 428
B96: Samoa | C96: East Asia and Pacific | D96: Tropical, wet | E96: =VLOOKUP(Countries[[#This Row],[Climate Zone]],methaneDefaults,2,FALSE) -> 0.5 | L96: Lithuania | M96: Europe and Central Asia | N96: 440
B97: Sao Tome and Principe | C97: Africa | D97: Tropical, wet | E97: =VLOOKUP(Countries[[#This Row],[Climate Zone]],methaneDefaults,2,FALSE) -> 0.5 | L97: Luxembourg | M97: Europe and Central Asia | N97: 442
B98: Senegal | C98: Africa | D98: Tropical, dry | E98: =VLOOKUP(Countries[[#This Row],[Climate Zone]],methaneDefaults,2,FALSE) -> 0.5 | L98: Malta | M98: Europe and Central Asia | N98: 470
B99: Seychelles | C99: Africa | D99: Tropical, wet | E99: =VLOOKUP(Countries[[#This Row],[Climate Zone]],methaneDefaults,2,FALSE) -> 0.5 | L99: Moldova | M99: Europe and Central Asia | N99: 498
B100: Sierra Leone | C100: Africa | D100: Tropical, dry | E100: =VLOOKUP(Countries[[#This Row],[Climate Zone]],methaneDefaults,2,FALSE) -> 0.5 | L100: Netherlands | M100: Europe and Central Asia | N100: 528
B101: Solomon Islands | C101: East Asia and Pacific | D101: Tropical, wet | E101: =VLOOKUP(Countries[[#This Row],[Climate Zone]],methaneDefaults,2,FALSE) -> 0.5 | L101: Norway | M101: Europe and Central Asia | N101: 578
B102: Somalia | C102: Africa | D102: Tropical, dry | E102: =VLOOKUP(Countries[[#This Row],[Climate Zone]],methaneDefaults,2,FALSE) -> 0.5 | L102: Poland | M102: Europe and Central Asia | N102: 616
B103: South Africa | C103: Africa | D103: Temperate, dry | E103: =VLOOKUP(Countries[[#This Row],[Climate Zone]],methaneDefaults,2,FALSE) -> 0.7 | L103: Portugal | M103: Europe and Central Asia | N103: 620
B104: South Sudan | C104: Africa | D104: Tropical, dry | E104: =VLOOKUP(Countries[[#This Row],[Climate Zone]],methaneDefaults,2,FALSE) -> 0.5 | L104: Romania | M104: Europe and Central Asia | N104: 642
B105: Sri Lanka | C105: South Asia | D105: Tropical, wet | E105: =VLOOKUP(Countries[[#This Row],[Climate Zone]],methaneDefaults,2,FALSE) -> 0.5 | L105: Slovakia | M105: Europe and Central Asia | N105: 703
B106: Sudan | C106: Africa | D106: Tropical, dry | E106: =VLOOKUP(Countries[[#This Row],[Climate Zone]],methaneDefaults,2,FALSE) -> 0.5 | L106: Slovenia | M106: Europe and Central Asia | N106: 705
B107: Tajikistan | C107: Europe and Central Asia | D107: Temperate, dry | E107: =VLOOKUP(Countries[[#This Row],[Climate Zone]],methaneDefaults,2,FALSE) -> 0.7 | L107: Spain | M107: Europe and Central Asia | N107: 724
B108: Thailand | C108: East Asia and Pacific | D108: Tropical, wet | E108: =VLOOKUP(Countries[[#This Row],[Climate Zone]],methaneDefaults,2,FALSE) -> 0.5 | L108: Sweden | M108: Europe and Central Asia | N108: 752
B109: Timor-Leste | C109: East Asia and Pacific | D109: Tropical, wet | E109: =VLOOKUP(Countries[[#This Row],[Climate Zone]],methaneDefaults,2,FALSE) -> 0.5 | L109: Switzerland | M109: Europe and Central Asia | N109: 756
B110: Togo | C110: Africa | D110: Tropical, dry | E110: =VLOOKUP(Countries[[#This Row],[Climate Zone]],methaneDefaults,2,FALSE) -> 0.5 | L110: Tajikistan | M110: Europe and Central Asia | N110: 762
B111: Tonga | C111: East Asia and Pacific | D111: Tropical, wet | E111: =VLOOKUP(Countries[[#This Row],[Climate Zone]],methaneDefaults,2,FALSE) -> 0.5 | L111: Turkey | M111: Europe and Central Asia | N111: 792
B112: Trinidad and Tobago | C112: Latin America and Caribbean | D112: Tropical, wet | E112: =VLOOKUP(Countries[[#This Row],[Climate Zone]],methaneDefaults,2,FALSE) -> 0.5 | L112: Turkmenistan | M112: Europe and Central Asia | N112: 795
B113: Tunisia | C113: Middle East and North Africa | D113: Tropical, dry | E113: =VLOOKUP(Countries[[#This Row],[Climate Zone]],methaneDefaults,2,FALSE) -> 0.5 | L113: Ukraine | M113: Europe and Central Asia | N113: 804
B114: Turkey | C114: Europe and Central Asia | D114: Temperate, dry | E114: =VLOOKUP(Countries[[#This Row],[Climate Zone]],methaneDefaults,2,FALSE) -> 0.7 | L114: United Kingdom | M114: Europe and Central Asia | N114: 826
B115: Turkmenistan | C115: Europe and Central Asia | D115: Temperate, dry | E115: =VLOOKUP(Countries[[#This Row],[Climate Zone]],methaneDefaults,2,FALSE) -> 0.7 | L115: Uzbekistan | M115: Europe and Central Asia | N115: 860
B116: Tuvalu | C116: East Asia and Pacific | D116: Tropical, wet | E116: =VLOOKUP(Countries[[#This Row],[Climate Zone]],methaneDefaults,2,FALSE) -> 0.5 | L116: Antigua and Barbuda | M116: Latin America and Caribbean | N116: 28
B117: Uganda | C117: Africa | D117: Tropical, dry | E117: =VLOOKUP(Countries[[#This Row],[Climate Zone]],methaneDefaults,2,FALSE) -> 0.5 | L117: Argentina | M117: Latin America and Caribbean | N117: 32
B118: Ukraine | C118: Europe and Central Asia | D118: Temperate, dry | E118: =VLOOKUP(Countries[[#This Row],[Climate Zone]],methaneDefaults,2,FALSE) -> 0.7 | L118: Bahamas | M118: Latin America and Caribbean | N118: 44
B119: United Republic of Tanzania | C119: Africa | D119: Tropical, dry | E119: =VLOOKUP(Countries[[#This Row],[Climate Zone]],methaneDefaults,2,FALSE) -> 0.5 | L119: Barbados | M119: Latin America and Caribbean | N119: 52
B120: Uruguay | C120: Latin America and Caribbean | D120: Temperate, dry | E120: =VLOOKUP(Countries[[#This Row],[Climate Zone]],methaneDefaults,2,FALSE) -> 0.7 | L120: Belize | M120: Latin America and Caribbean | N120: 84
B121: Uzbekistan | C121: Europe and Central Asia | D121: Temperate, dry | E121: =VLOOKUP(Countries[[#This Row],[Climate Zone]],methaneDefaults,2,FALSE) -> 0.7 | L121: Bolivia (Plurinational State of) | M121: Latin America and Caribbean | N121: 68
B122: Vanuatu | C122: East Asia and Pacific | D122: Tropical, wet | E122: =VLOOKUP(Countries[[#This Row],[Climate Zone]],methaneDefaults,2,FALSE) -> 0.5 | L122: Brazil | M122: Latin America and Caribbean | N122: 76
B123: Venezuela (Bolivarian Republic of) | C123: Latin America and Caribbean | D123: Tropical, wet | E123: =VLOOKUP(Countries[[#This Row],[Climate Zone]],methaneDefaults,2,FALSE) -> 0.5 | L123: Chile | M123: Latin America and Caribbean | N123: 152
B124: Viet Nam | C124: East Asia and Pacific | D124: Tropical, wet | E124: =VLOOKUP(Countries[[#This Row],[Climate Zone]],methaneDefaults,2,FALSE) -> 0.5 | L124: Colombia | M124: Latin America and Caribbean | N124: 170
B125: Yemen | C125: Middle East and North Africa | D125: Tropical, dry | E125: =VLOOKUP(Countries[[#This Row],[Climate Zone]],methaneDefaults,2,FALSE) -> 0.5 | L125: Costa Rica | M125: Latin America and Caribbean | N125: 188
B126: Zambia | C126: Africa | D126: Tropical, dry | E126: =VLOOKUP(Countries[[#This Row],[Climate Zone]],methaneDefaults,2,FALSE) -> 0.5 | L126: Dominica | M126: Latin America and Caribbean | N126: 212
B127: Zimbabwe | C127: Africa | D127: Tropical, dry | E127: =VLOOKUP(Countries[[#This Row],[Climate Zone]],methaneDefaults,2,FALSE) -> 0.5 | L127: Dominican Republic | M127: Latin America and Caribbean | N127: 214
B128: Austria | C128: Europe and Central Asia | D128: Temperate, dry | E128: =VLOOKUP(Countries[[#This Row],[Climate Zone]],methaneDefaults,2,FALSE) -> 0.7 | L128: Ecuador | M128: Latin America and Caribbean | N128: 218
B129: Belgium | C129: Europe and Central Asia | D129: Temperate, wet | E129: =VLOOKUP(Countries[[#This Row],[Climate Zone]],methaneDefaults,2,FALSE) -> 0 | L129: El Salvador | M129: Latin America and Caribbean | N129: 222
B130: Bulgaria | C130: Europe and Central Asia | D130: Temperate, dry | E130: =VLOOKUP(Countries[[#This Row],[Climate Zone]],methaneDefaults,2,FALSE) -> 0.7 | L130: Grenada | M130: Latin America and Caribbean | N130: 308
B131: Croatia | C131: Europe and Central Asia | D131: Temperate, dry | E131: =VLOOKUP(Countries[[#This Row],[Climate Zone]],methaneDefaults,2,FALSE) -> 0.7 | L131: Guatemala | M131: Latin America and Caribbean | N131: 320
B132: Cyprus | C132: Europe and Central Asia | D132: Temperate, dry | E132: =VLOOKUP(Countries[[#This Row],[Climate Zone]],methaneDefaults,2,FALSE) -> 0.7 | L132: Guinea | M132: Latin America and Caribbean | N132: 324
B133: Czech Republic | C133: Europe and Central Asia | D133: Temperate, dry | E133: =VLOOKUP(Countries[[#This Row],[Climate Zone]],methaneDefaults,2,FALSE) -> 0.7 | L133: Guinea-Bissau | M133: Latin America and Caribbean | N133: 624
B134: Denmark | C134: Europe and Central Asia | D134: Temperate, wet | E134: =VLOOKUP(Countries[[#This Row],[Climate Zone]],methaneDefaults,2,FALSE) -> 0 | L134: Guyana | M134: Latin America and Caribbean | N134: 328
B135: Estonia | C135: Europe and Central Asia | D135: Temperate, dry | E135: =VLOOKUP(Countries[[#This Row],[Climate Zone]],methaneDefaults,2,FALSE) -> 0.7 | L135: Haiti | M135: Latin America and Caribbean | N135: 332
B136: Finland | C136: Europe and Central Asia | D136: Temperate, dry | E136: =VLOOKUP(Countries[[#This Row],[Climate Zone]],methaneDefaults,2,FALSE) -> 0.7 | L136: Honduras | M136: Latin America and Caribbean | N136: 340
B137: France | C137: Europe and Central Asia | D137: Temperate, dry | E137: =VLOOKUP(Countries[[#This Row],[Climate Zone]],methaneDefaults,2,FALSE) -> 0.7 | L137: Jamaica | M137: Latin America and Caribbean | N137: 388
B138: Germany | C138: Europe and Central Asia | D138: Temperate, dry | E138: =VLOOKUP(Countries[[#This Row],[Climate Zone]],methaneDefaults,2,FALSE) -> 0.7 | L138: Mexico | M138: Latin America and Caribbean | N138: 484
B139: Greece | C139: Europe and Central Asia | D139: Temperate, dry | E139: =VLOOKUP(Countries[[#This Row],[Climate Zone]],methaneDefaults,2,FALSE) -> 0.7 | L139: Nicaragua | M139: Latin America and Caribbean | N139: 558
B140: Hungary | C140: Europe and Central Asia | D140: Temperate, dry | E140: =VLOOKUP(Countries[[#This Row],[Climate Zone]],methaneDefaults,2,FALSE) -> 0.7 | L140: Panama | M140: Latin America and Caribbean | N140: 591
B141: Iceland | C141: Europe and Central Asia | D141: Temperate, dry | E141: =VLOOKUP(Countries[[#This Row],[Climate Zone]],methaneDefaults,2,FALSE) -> 0.7 | L141: Paraguay | M141: Latin America and Caribbean | N141: 600
B142: Ireland | C142: Europe and Central Asia | D142: Temperate, wet | E142: =VLOOKUP(Countries[[#This Row],[Climate Zone]],methaneDefaults,2,FALSE) -> 0 | L142: Peru | M142: Latin America and Caribbean | N142: 604
B143: Italy | C143: Europe and Central Asia | D143: Temperate, dry | E143: =VLOOKUP(Countries[[#This Row],[Climate Zone]],methaneDefaults,2,FALSE) -> 0.7 | L143: Saint Kitts and Nevis | M143: Latin America and Caribbean | N143: 659
B144: Latvia | C144: Europe and Central Asia | D144: Temperate, dry | E144: =VLOOKUP(Countries[[#This Row],[Climate Zone]],methaneDefaults,2,FALSE) -> 0.7 | L144: Saint Lucia | M144: Latin America and Caribbean | N144: 662
B145: Lithuania | C145: Europe and Central Asia | D145: Temperate, dry | E145: =VLOOKUP(Countries[[#This Row],[Climate Zone]],methaneDefaults,2,FALSE) -> 0.7 | L145: Trinidad and Tobago | M145: Latin America and Caribbean | N145: 780
B146: Luxembourg | C146: Europe and Central Asia | D146: Temperate, dry | E146: =VLOOKUP(Countries[[#This Row],[Climate Zone]],methaneDefaults,2,FALSE) -> 0.7 | L146: Uruguay | M146: Latin America and Caribbean | N146: 858
B147: Malta | C147: Europe and Central Asia | D147: Temperate, dry | E147: =VLOOKUP(Countries[[#This Row],[Climate Zone]],methaneDefaults,2,FALSE) -> 0.7 | L147: Venezuela (Bolivarian Republic of) | M147: Latin America and Caribbean | N147: 862
B148: Netherlands | C148: Europe and Central Asia | D148: Temperate, wet | E148: =VLOOKUP(Countries[[#This Row],[Climate Zone]],methaneDefaults,2,FALSE) -> 0 | L148: Algeria | M148: Middle East and North Africa | N148: 12
B149: Norway | C149: Europe and Central Asia | D149: Temperate, dry | E149: =VLOOKUP(Countries[[#This Row],[Climate Zone]],methaneDefaults,2,FALSE) -> 0.7 | L149: Egypt | M149: Middle East and North Africa | N149: 818
B150: Poland | C150: Europe and Central Asia | D150: Temperate, dry | E150: =VLOOKUP(Countries[[#This Row],[Climate Zone]],methaneDefaults,2,FALSE) -> 0.7 | L150: Lebanon | M150: Middle East and North Africa | N150: 422
B151: Portugal | C151: Europe and Central Asia | D151: Temperate, dry | E151: =VLOOKUP(Countries[[#This Row],[Climate Zone]],methaneDefaults,2,FALSE) -> 0.7 | L151: Morocco | M151: Middle East and North Africa | N151: 504
B152: Romania | C152: Europe and Central Asia | D152: Temperate, dry | E152: =VLOOKUP(Countries[[#This Row],[Climate Zone]],methaneDefaults,2,FALSE) -> 0.7 | L152: Pakistan | M152: Middle East and North Africa | N152: 586
B153: Slovakia | C153: Europe and Central Asia | D153: Temperate, dry | E153: =VLOOKUP(Countries[[#This Row],[Climate Zone]],methaneDefaults,2,FALSE) -> 0.7 | L153: Tunisia | M153: Middle East and North Africa | N153: 788
B154: Slovenia | C154: Europe and Central Asia | D154: Temperate, dry | E154: =VLOOKUP(Countries[[#This Row],[Climate Zone]],methaneDefaults,2,FALSE) -> 0.7 | L154: Yemen | M154: Middle East and North Africa | N154: 887
B155: Spain | C155: Europe and Central Asia | D155: Temperate, dry | E155: =VLOOKUP(Countries[[#This Row],[Climate Zone]],methaneDefaults,2,FALSE) -> 0.7 | L155: Canada | M155: North America | N155: 124
B156: Sweden | C156: Europe and Central Asia | D156: Temperate, dry | E156: =VLOOKUP(Countries[[#This Row],[Climate Zone]],methaneDefaults,2,FALSE) -> 0.7 | L156: United States of America | M156: North America | N156: 840
B157: Switzerland | C157: Europe and Central Asia | D157: Temperate, dry | E157: =VLOOKUP(Countries[[#This Row],[Climate Zone]],methaneDefaults,2,FALSE) -> 0.7 | L157: Bangladesh | M157: South Asia | N157: 50
B158: United Kingdom | C158: Europe and Central Asia | D158: Temperate, wet | E158: =VLOOKUP(Countries[[#This Row],[Climate Zone]],methaneDefaults,2,FALSE) -> 0 | L158: Bhutan | M158: South Asia | N158: 64
B159: Australia | C159: East Asia and Pacific | D159: Tropical, dry | E159: =VLOOKUP(Countries[[#This Row],[Climate Zone]],methaneDefaults,2,FALSE) -> 0.5 | L159: India | M159: South Asia | N159: 356
B160: Japan | C160: East Asia and Pacific | D160: Temperate, dry | E160: =VLOOKUP(Countries[[#This Row],[Climate Zone]],methaneDefaults,2,FALSE) -> 0.7 | L160: Maldives | M160: South Asia | N160: 462
B161: New Zealand | C161: East Asia and Pacific | D161: Temperate, dry | E161: =VLOOKUP(Countries[[#This Row],[Climate Zone]],methaneDefaults,2,FALSE) -> 0.7 | L161: Myanmar | M161: South Asia | N161: 104
B162: United States of America | C162: North America | D162: Temperate, dry | E162: =VLOOKUP(Countries[[#This Row],[Climate Zone]],methaneDefaults,2,FALSE) -> 0.7 | L162: Nepal | M162: South Asia | N162: 524
B163: Canada | C163: North America | D163: Temperate, dry | E163: =VLOOKUP(Countries[[#This Row],[Climate Zone]],methaneDefaults,2,FALSE) -> 0.7 | L163: Sri Lanka | M163: South Asia | N163: 144

Sheet Country List (hidden)
H3: World Bank Group Classification | L3: World bank Waste data | M3: Yield data (MapSMAP) | N3: Water use data | O3: UN country | Q3: WWF country risk profiles (Biodiversity and Water)
B4: IFC Country | C4: Region | D4: FAO country name | G4: Tool country list | H4: WB Group country | I4: Code | J4: Region | K4: Income group | L4: WB Waste country | M4: MapSPAM classification | N4: Water Footprint Network | O4: UN country | P4: UN country code | Q4: WWF risk profile country
B5: Algeria | C5: Middle East & North Africa | H5: Afghanistan | I5: AFG | J5: South Asia | K5: Low income | L5: Afghanistan | M5: Afghanistan | N5: Afghanistan | O5: Afghanistan | P5: =IFERROR(INDEX(UNcountrycodes[M49 Code],MATCH(CountryMapping[[#This Row],[UN country]],UNcountrycodes[Country or Area],0)),"") -> 4 | Q5: Afghanistan
B6: Angola | C6: Sub-Saharan Africa | H6: Albania | I6: ALB | J6: Europe & Central Asia | K6: Upper middle income | L6: Albania | M6: Albania | N6: Albania | O6: Albania | P6: =IFERROR(INDEX(UNcountrycodes[M49 Code],MATCH(CountryMapping[[#This Row],[UN country]],UNcountrycodes[Country or Area],0)),"") -> 8 | Q6: Albania
B7: Antigua and Barbuda | C7: Latin America & Caribbean | G7: Algeria | H7: Algeria | I7: DZA | J7: Middle East & North Africa | K7: Upper middle income | L7: Algeria | M7: Algeria | N7: Algeria | O7: Algeria | P7: =IFERROR(INDEX(UNcountrycodes[M49 Code],MATCH(CountryMapping[[#This Row],[UN country]],UNcountrycodes[Country or Area],0)),"") -> 12 | Q7: Algeria
B8: Argentina | C8: Latin America & Caribbean | H8: American Samoa | I8: ASM | J8: East Asia & Pacific | K8: High income | L8: American Samoa | N8: American Samoa | O8: American Samoa | P8: =IFERROR(INDEX(UNcountrycodes[M49 Code],MATCH(CountryMapping[[#This Row],[UN country]],UNcountrycodes[Country or Area],0)),"") -> 16 | Q8: American Samoa
B9: Armenia | C9: Europe & Central Asia | H9: Andorra | I9: AND | J9: Europe & Central Asia | K9: High income | L9: Andorra | O9: Andorra | P9: =IFERROR(INDEX(UNcountrycodes[M49 Code],MATCH(CountryMapping[[#This Row],[UN country]],UNcountrycodes[Country or Area],0)),"") -> 20 | Q9: Andorra
B10: Australia | C10: East Asia & Pacific | G10: Angola | H10: Angola | I10: AGO | J10: Sub-Saharan Africa | K10: Lower middle income | L10: Angola | M10: Angola | N10: Angola | O10: Angola | P10: =IFERROR(INDEX(UNcountrycodes[M49 Code],MATCH(CountryMapping[[#This Row],[UN country]],UNcountrycodes[Country or Area],0)),"") -> 24 | Q10: Angola
B11: Austria | C11: Europe & Central Asia | G11: Antigua and Barbuda | H11: Antigua and Barbuda | I11: ATG | J11: Latin America & Caribbean | K11: High income | L11: Antigua and Barbuda | M11: Antigua and Barbuda | N11: Antigua and Barbuda | O11: Antigua and Barbuda | P11: =IFERROR(INDEX(UNcountrycodes[M49 Code],MATCH(CountryMapping[[#This Row],[UN country]],UNcountrycodes[Country or Area],0)),"") -> 28 | Q11: Antigua and Barbuda
B12: Azerbaijan | C12: Europe & Central Asia | G12: Argentina | H12: Argentina | I12: ARG | J12: Latin America & Caribbean | K12: Upper middle income | L12: Argentina | M12: Argentina | N12: Argentina | O12: Argentina | P12: =IFERROR(INDEX(UNcountrycodes[M49 Code],MATCH(CountryMapping[[#This Row],[UN country]],UNcountrycodes[Country or Area],0)),"") -> 32 | Q12: Argentina
B13: Bahamas | C13: Latin America & Caribbean | G13: Armenia | H13: Armenia | I13: ARM | J13: Europe & Central Asia | K13: Upper middle income | L13: Armenia | M13: Armenia | N13: Armenia | O13: Armenia | P13: =IFERROR(INDEX(UNcountrycodes[M49 Code],MATCH(CountryMapping[[#This Row],[UN country]],UNcountrycodes[Country or Area],0)),"") -> 51 | Q13: Armenia
B14: Bangladesh | C14: South Asia | H14: Aruba | I14: ABW | J14: Latin America & Caribbean | K14: High income | L14: Aruba | O14: Aruba | P14: =IFERROR(INDEX(UNcountrycodes[M49 Code],MATCH(CountryMapping[[#This Row],[UN country]],UNcountrycodes[Country or Area],0)),"") -> 533 | Q14: Aruba
B15: Barbados | C15: Latin America & Caribbean | G15: Australia | H15: Australia | I15: AUS | J15: East Asia & Pacific | K15: High income | L15: Australia | M15: Australia | N15: Australia | O15: Australia | P15: =IFERROR(INDEX(UNcountrycodes[M49 Code],MATCH(CountryMapping[[#This Row],[UN country]],UNcountrycodes[Country or Area],0)),"") -> 36 | Q15: Australia
B16: Belgium | C16: Europe & Central Asia | G16: Austria | H16: Austria | I16: AUT | J16: Europe & Central Asia | K16: High income | L16: Austria | M16: Austria | N16: Austria | O16: Austria | P16: =IFERROR(INDEX(UNcountrycodes[M49 Code],MATCH(CountryMapping[[#This Row],[UN country]],UNcountrycodes[Country or Area],0)),"") -> 40 | Q16: Austria
B17: Belize | C17: Latin America & Caribbean | G17: Azerbaijan | H17: Azerbaijan | I17: AZE | J17: Europe & Central Asia | K17: Upper middle income | L17: Azerbaijan | M17: Azerbaijan | N17: Azerbaijan | O17: Azerbaijan | P17: =IFERROR(INDEX(UNcountrycodes[M49 Code],MATCH(CountryMapping[[#This Row],[UN country]],UNcountrycodes[Country or Area],0)),"") -> 31 | Q17: Azerbaijan
B18: Benin | C18: Sub-Saharan Africa | G18: Bahamas | H18: Bahamas, The | I18: BHS | J18: Latin America & Caribbean | K18: High income | L18: Bahamas, The | M18: Bahamas | N18: Bahamas, The | O18: Bahamas | P18: =IFERROR(INDEX(UNcountrycodes[M49 Code],MATCH(CountryMapping[[#This Row],[UN country]],UNcountrycodes[Country or Area],0)),"") -> 44 | Q18: Bahamas
B19: Bhutan | C19: South Asia | H19: Bahrain | I19: BHR | J19: Middle East & North Africa | K19: High income | L19: Bahrain | M19: Bahrain | N19: Bahrain | O19: Bahrain | P19: =IFERROR(INDEX(UNcountrycodes[M49 Code],MATCH(CountryMapping[[#This Row],[UN country]],UNcountrycodes[Country or Area],0)),"") -> 48 | Q19: Bahrain
B20: Bolivia (Plurinational State of) | C20: Latin America & Caribbean | G20: Bangladesh | H20: Bangladesh | I20: BGD | J20: South Asia | K20: Lower middle income | L20: Bangladesh | M20: Bangladesh | N20: Bangladesh | O20: Bangladesh | P20: =IFERROR(INDEX(UNcountrycodes[M49 Code],MATCH(CountryMapping[[#This Row],[UN country]],UNcountrycodes[Country or Area],0)),"") -> 50 | Q20: Bangladesh
B21: Bosnia and Herzegovina | C21: Europe & Central Asia | G21: Barbados | H21: Barbados | I21: BRB | J21: Latin America & Caribbean | K21: High income | L21: Barbados | M21: Barbados | N21: Barbados | O21: Barbados | P21: =IFERROR(INDEX(UNcountrycodes[M49 Code],MATCH(CountryMapping[[#This Row],[UN country]],UNcountrycodes[Country or Area],0)),"") -> 52 | Q21: Barbados
B22: Botswana | C22: Sub-Saharan Africa | H22: Belarus | I22: BLR | J22: Europe & Central Asia | K22: Upper middle income | L22: Belarus | M22: Belarus | N22: Belarus | O22: Belarus | P22: =IFERROR(INDEX(UNcountrycodes[M49 Code],MATCH(CountryMapping[[#This Row],[UN country]],UNcountrycodes[Country or Area],0)),"") -> 112 | Q22: Belarus
B23: Brazil | C23: Latin America & Caribbean | G23: Belgium | H23: Belgium | I23: BEL | J23: Europe & Central Asia | K23: High income | L23: Belgium | M23: Belgium | N23: Belgium | O23: Belgium | P23: =IFERROR(INDEX(UNcountrycodes[M49 Code],MATCH(CountryMapping[[#This Row],[UN country]],UNcountrycodes[Country or Area],0)),"") -> 56 | Q23: Belgium
B24: Bulgaria | C24: Europe & Central Asia | G24: Belize | H24: Belize | I24: BLZ | J24: Latin America & Caribbean | K24: Upper middle income | L24: Belize | M24: Belize | N24: Belize | O24: Belize | P24: =IFERROR(INDEX(UNcountrycodes[M49 Code],MATCH(CountryMapping[[#This Row],[UN country]],UNcountrycodes[Country or Area],0)),"") -> 84 | Q24: Belize
B25: Burkina Faso | C25: Sub-Saharan Africa | G25: Benin | H25: Benin | I25: BEN | J25: Sub-Saharan Africa | K25: Lower middle income | L25: Benin | M25: Benin | N25: Benin | O25: Benin | P25: =IFERROR(INDEX(UNcountrycodes[M49 Code],MATCH(CountryMapping[[#This Row],[UN country]],UNcountrycodes[Country or Area],0)),"") -> 204 | Q25: Benin
B26: Burundi | C26: Sub-Saharan Africa | H26: Bermuda | I26: BMU | J26: North America | K26: High income | L26: Bermuda | N26: Bermuda | O26: Bermuda | P26: =IFERROR(INDEX(UNcountrycodes[M49 Code],MATCH(CountryMapping[[#This Row],[UN country]],UNcountrycodes[Country or Area],0)),"") -> 60 | Q26: Bermuda
B27: Cabo Verde | C27: Sub-Saharan Africa | G27: Bhutan | H27: Bhutan | I27: BTN | J27: South Asia | K27: Lower middle income | L27: Bhutan | M27: Bhutan | N27: Bhutan | O27: Bhutan | P27: =IFERROR(INDEX(UNcountrycodes[M49 Code],MATCH(CountryMapping[[#This Row],[UN country]],UNcountrycodes[Country or Area],0)),"") -> 64 | Q27: Bhutan
B28: Cambodia | C28: East Asia & Pacific | G28: Bolivia (Plurinational State of) | H28: Bolivia | I28: BOL | J28: Latin America & Caribbean | K28: Lower middle income | L28: Bolivia | M28: Bolivia | N28: Bolivia | O28: Bolivia (Plurinational State of) | P28: =IFERROR(INDEX(UNcountrycodes[M49 Code],MATCH(CountryMapping[[#This Row],[UN country]],UNcountrycodes[Country or Area],0)),"") -> 68 | Q28: Bolivia
B29: Cameroon | C29: Sub-Saharan Africa | G29: Bosnia and Herzegovina | H29: Bosnia and Herzegovina | I29: BIH | J29: Europe & Central Asia | K29: Upper middle income | L29: Bosnia and Herzegovina | M29: Bosnia and Herzegovina | N29: Bosnia and Herzegovina | O29: Bosnia and Herzegovina | P29: =IFERROR(INDEX(UNcountrycodes[M49 Code],MATCH(CountryMapping[[#This Row],[UN country]],UNcountrycodes[Country or Area],0)),"") -> 70 | Q29: Bosnia and Herzegovina
B30: Canada | C30: North America | G30: Botswana | H30: Botswana | I30: BWA | J30: Sub-Saharan Africa | K30: Upper middle income | L30: Botswana | M30: Botswana | N30: Botswana | O30: Botswana | P30: =IFERROR(INDEX(UNcountrycodes[M49 Code],MATCH(CountryMapping[[#This Row],[UN country]],UNcountrycodes[Country or Area],0)),"") -> 72 | Q30: Botswana
B31: Central African Republic | C31: Sub-Saharan Africa | G31: Brazil | H31: Brazil | I31: BRA | J31: Latin America & Caribbean | K31: Upper middle income | L31: Brazil | M31: Brazil | N31: Brazil | O31: Brazil | P31: =IFERROR(INDEX(UNcountrycodes[M49 Code],MATCH(CountryMapping[[#This Row],[UN country]],UNcountrycodes[Country or Area],0)),"") -> 76 | Q31: Brazil
B32: Chad | C32: Sub-Saharan Africa | H32: British Virgin Islands | I32: VGB | J32: Latin America & Caribbean | K32: High income | L32: British Virgin Islands | O32: British Virgin Islands | P32: =IFERROR(INDEX(UNcountrycodes[M49 Code],MATCH(CountryMapping[[#This Row],[UN country]],UNcountrycodes[Country or Area],0)),"") -> 92 | Q32: British Virgin Islands
B33: Chile | C33: Latin America & Caribbean | H33: Brunei Darussalam | I33: BRN | J33: East Asia & Pacific | K33: High income | L33: Brunei Darussalam | M33: Brunei Darussalam | N33: Brunei Darussalam | O33: Brunei Darussalam | P33: =IFERROR(INDEX(UNcountrycodes[M49 Code],MATCH(CountryMapping[[#This Row],[UN country]],UNcountrycodes[Country or Area],0)),"") -> 96 | Q33: Brunei Darussalam
B34: China | C34: East Asia & Pacific | G34: Bulgaria | H34: Bulgaria | I34: BGR | J34: Europe & Central Asia | K34: High income | L34: Bulgaria | M34: Bulgaria | N34: Bulgaria | O34: Bulgaria | P34: =IFERROR(INDEX(UNcountrycodes[M49 Code],MATCH(CountryMapping[[#This Row],[UN country]],UNcountrycodes[Country or Area],0)),"") -> 100 | Q34: Bulgaria
B35: Colombia | C35: Latin America & Caribbean | G35: Burkina Faso | H35: Burkina Faso | I35: BFA | J35: Sub-Saharan Africa | K35: Low income | L35: Burkina Faso | M35: Burkina Faso | N35: Burkina Faso | O35: Burkina Faso | P35: =IFERROR(INDEX(UNcountrycodes[M49 Code],MATCH(CountryMapping[[#This Row],[UN country]],UNcountrycodes[Country or Area],0)),"") -> 854 | Q35: Burkina Faso
B36: Comoros | C36: Sub-Saharan Africa | G36: Burundi | H36: Burundi | I36: BDI | J36: Sub-Saharan Africa | K36: Low income | L36: Burundi | M36: Burundi | N36: Burundi | O36: Burundi | P36: =IFERROR(INDEX(UNcountrycodes[M49 Code],MATCH(CountryMapping[[#This Row],[UN country]],UNcountrycodes[Country or Area],0)),"") -> 108 | Q36: Burundi
B37: Congo | C37: Sub-Saharan Africa | G37: Cabo Verde | H37: Cabo Verde | I37: CPV | J37: Sub-Saharan Africa | K37: Lower middle income | L37: Cabo Verde | N37: Cape Verde | O37: Cabo Verde | P37: =IFERROR(INDEX(UNcountrycodes[M49 Code],MATCH(CountryMapping[[#This Row],[UN country]],UNcountrycodes[Country or Area],0)),"") -> 132 | Q37: Cabo Verde
B38: Costa Rica | C38: Latin America & Caribbean | G38: Cambodia | H38: Cambodia | I38: KHM | J38: East Asia & Pacific | K38: Lower middle income | L38: Cambodia | M38: Cambodia | N38: Cambodia | O38: Cambodia | P38: =IFERROR(INDEX(UNcountrycodes[M49 Code],MATCH(CountryMapping[[#This Row],[UN country]],UNcountrycodes[Country or Area],0)),"") -> 116 | Q38: Cambodia
B39: Cote d'Ivoire | C39: Sub-Saharan Africa | D39: Côte d'Ivoire | G39: Cameroon | H39: Cameroon | I39: CMR | J39: Sub-Saharan Africa | K39: Lower middle income | L39: Cameroon | M39: Cameroon | N39: Cameroon | O39: Cameroon | P39: =IFERROR(INDEX(UNcountrycodes[M49 Code],MATCH(CountryMapping[[#This Row],[UN country]],UNcountrycodes[Country or Area],0)),"") -> 120 | Q39: Cameroon
B40: Croatia | C40: Europe & Central Asia | G40: Canada | H40: Canada | I40: CAN | J40: North America | K40: High income | L40: Canada | M40: Canada | N40: Canada | O40: Canada | P40: =IFERROR(INDEX(UNcountrycodes[M49 Code],MATCH(CountryMapping[[#This Row],[UN country]],UNcountrycodes[Country or Area],0)),"") -> 124 | Q40: Canada
B41: Cyprus | C41: Europe & Central Asia | H41: Cayman Islands | I41: CYM | J41: Latin America & Caribbean | K41: High income | L41: Cayman Islands | N41: Cayman Islands | O41: Cayman Islands | P41: =IFERROR(INDEX(UNcountrycodes[M49 Code],MATCH(CountryMapping[[#This Row],[UN country]],UNcountrycodes[Country or Area],0)),"") -> 136 | Q41: Cayman Islands
B42: Czech Republic | C42: Europe & Central Asia | D42: Czechia | G42: Central African Republic | H42: Central African Republic | I42: CAF | J42: Sub-Saharan Africa | K42: Low income | L42: Central African Republic | M42: Central African Republic | N42: Central African Republic | O42: Central African Republic | P42: =IFERROR(INDEX(UNcountrycodes[M49 Code],MATCH(CountryMapping[[#This Row],[UN country]],UNcountrycodes[Country or Area],0)),"") -> 140 | Q42: Central African Republic
B43: Democratic Republic of the Congo | C43: Sub-Saharan Africa | G43: Chad | H43: Chad | I43: TCD | J43: Sub-Saharan Africa | K43: Low income | L43: Chad | M43: Chad | N43: Chad | O43: Chad | P43: =IFERROR(INDEX(UNcountrycodes[M49 Code],MATCH(CountryMapping[[#This Row],[UN country]],UNcountrycodes[Country or Area],0)),"") -> 148 | Q43: Chad
B44: Denmark | C44: Europe & Central Asia | H44: Channel Islands | I44: CHI | J44: Europe & Central Asia | K44: High income | L44: Channel Islands | P44: =IFERROR(INDEX(UNcountrycodes[M49 Code],MATCH(CountryMapping[[#This Row],[UN country]],UNcountrycodes[Country or Area],0)),"") -> 
B45: Dominica | C45: Latin America & Caribbean | G45: Chile | H45: Chile | I45: CHL | J45: Latin America & Caribbean | K45: High income | L45: Chile | M45: Chile | N45: Chile | O45: Chile | P45: =IFERROR(INDEX(UNcountrycodes[M49 Code],MATCH(CountryMapping[[#This Row],[UN country]],UNcountrycodes[Country or Area],0)),"") -> 152 | Q45: Chile
B46: Dominican Republic | C46: Latin America & Caribbean | G46: China | H46: China | I46: CHN | J46: East Asia & Pacific | K46: Upper middle income | L46: China | M46: China | N46: China | O46: China | P46: =IFERROR(INDEX(UNcountrycodes[M49 Code],MATCH(CountryMapping[[#This Row],[UN country]],UNcountrycodes[Country or Area],0)),"") -> 156 | Q46: China
B47: Ecuador | C47: Latin America & Caribbean | G47: Colombia | H47: Colombia | I47: COL | J47: Latin America & Caribbean | K47: Upper middle income | L47: Colombia | M47: Colombia | N47: Colombia | O47: Colombia | P47: =IFERROR(INDEX(UNcountrycodes[M49 Code],MATCH(CountryMapping[[#This Row],[UN country]],UNcountrycodes[Country or Area],0)),"") -> 170 | Q47: Colombia
B48: Egypt | C48: Middle East & North Africa | G48: Comoros | H48: Comoros | I48: COM | J48: Sub-Saharan Africa | K48: Lower middle income | L48: Comoros | N48: Comoros | O48: Comoros | P48: =IFERROR(INDEX(UNcountrycodes[M49 Code],MATCH(CountryMapping[[#This Row],[UN country]],UNcountrycodes[Country or Area],0)),"") -> 174 | Q48: Comoros
B49: El Salvador | C49: Latin America & Caribbean | G49: Democratic Republic of the Congo | H49: Congo, Dem. Rep. | I49: COD | J49: Sub-Saharan Africa | K49: Low income | L49: Congo, Dem. Rep. | M49: Democratic Republic of the Congo | N49: Congo, Democratic Republic of the | O49: Democratic Republic of the Congo | P49: =IFERROR(INDEX(UNcountrycodes[M49 Code],MATCH(CountryMapping[[#This Row],[UN country]],UNcountrycodes[Country or Area],0)),"") -> 180 | Q49: Congo
B50: Equatorial Guinea | C50: Sub-Saharan Africa | G50: Congo | H50: Congo, Rep. | I50: COG | J50: Sub-Saharan Africa | K50: Lower middle income | L50: Congo, Rep. | M50: Congo | N50: Congo | O50: Congo | P50: =IFERROR(INDEX(UNcountrycodes[M49 Code],MATCH(CountryMapping[[#This Row],[UN country]],UNcountrycodes[Country or Area],0)),"") -> 178 | Q50: Congo DRC
B51: Eritrea | C51: Sub-Saharan Africa | G51: Costa Rica | H51: Costa Rica | I51: CRI | J51: Latin America & Caribbean | K51: Upper middle income | L51: Costa Rica | M51: Costa Rica | N51: Costa Rica | O51: Costa Rica | P51: =IFERROR(INDEX(UNcountrycodes[M49 Code],MATCH(CountryMapping[[#This Row],[UN country]],UNcountrycodes[Country or Area],0)),"") -> 188 | Q51: Costa Rica
B52: Estonia | C52: Europe & Central Asia | G52: Cote d'Ivoire | H52: Côte d’Ivoire | I52: CIV | J52: Sub-Saharan Africa | K52: Lower middle income | L52: Côte d’Ivoire | M52: Cote dIvoire | N52: Cote d'Ivoire | O52: Côte d’Ivoire | P52: =IFERROR(INDEX(UNcountrycodes[M49 Code],MATCH(CountryMapping[[#This Row],[UN country]],UNcountrycodes[Country or Area],0)),"") -> 384 | Q52: Côte d'Ivoire
B53: Eswatini | C53: Sub-Saharan Africa | G53: Croatia | H53: Croatia | I53: HRV | J53: Europe & Central Asia | K53: High income | L53: Croatia | M53: Croatia | N53: Croatia | O53: Croatia | P53: =IFERROR(INDEX(UNcountrycodes[M49 Code],MATCH(CountryMapping[[#This Row],[UN country]],UNcountrycodes[Country or Area],0)),"") -> 191 | Q53: Croatia
B54: Ethiopia | C54: Sub-Saharan Africa | H54: Cuba | I54: CUB | J54: Latin America & Caribbean | K54: Upper middle income | L54: Cuba | M54: Cuba | N54: Cuba | O54: Cuba | P54: =IFERROR(INDEX(UNcountrycodes[M49 Code],MATCH(CountryMapping[[#This Row],[UN country]],UNcountrycodes[Country or Area],0)),"") -> 192 | Q54: Cuba
B55: Fiji | C55: East Asia & Pacific | H55: Curaçao | I55: CUW | J55: Latin America & Caribbean | K55: High income | L55: Curacao | O55: Curaçao | P55: =IFERROR(INDEX(UNcountrycodes[M49 Code],MATCH(CountryMapping[[#This Row],[UN country]],UNcountrycodes[Country or Area],0)),"") -> 531 | Q55: Curacao
B56: Finland | C56: Europe & Central Asia | G56: Cyprus | H56: Cyprus | I56: CYP | J56: Europe & Central Asia | K56: High income | L56: Cyprus | M56: Cyprus | N56: Cyprus | O56: Cyprus | P56: =IFERROR(INDEX(UNcountrycodes[M49 Code],MATCH(CountryMapping[[#This Row],[UN country]],UNcountrycodes[Country or Area],0)),"") -> 196 | Q56: Cyprus
B57: France | C57: Europe & Central Asia | G57: Czech Republic | H57: Czechia | I57: CZE | J57: Europe & Central Asia | K57: High income | L57: Czech Republic | M57: Czechia | N57: Czech Republic | O57: Czechia | P57: =IFERROR(INDEX(UNcountrycodes[M49 Code],MATCH(CountryMapping[[#This Row],[UN country]],UNcountrycodes[Country or Area],0)),"") -> 203 | Q57: Czech Republic
B58: Gabon | C58: Sub-Saharan Africa | G58: Denmark | H58: Denmark | I58: DNK | J58: Europe & Central Asia | K58: High income | L58: Denmark | M58: Denmark | N58: Denmark | O58: Denmark | P58: =IFERROR(INDEX(UNcountrycodes[M49 Code],MATCH(CountryMapping[[#This Row],[UN country]],UNcountrycodes[Country or Area],0)),"") -> 208 | Q58: Denmark
B59: Gambia | C59: Sub-Saharan Africa | H59: Djibouti | I59: DJI | J59: Middle East & North Africa | K59: Lower middle income | L59: Djibouti | M59: Djibouti | N59: Djibouti | O59: Djibouti | P59: =IFERROR(INDEX(UNcountrycodes[M49 Code],MATCH(CountryMapping[[#This Row],[UN country]],UNcountrycodes[Country or Area],0)),"") -> 262 | Q59: Djibouti
B60: Germany | C60: Europe & Central Asia | G60: Dominica | H60: Dominica | I60: DMA | J60: Latin America & Caribbean | K60: Upper middle income | L60: Dominica | M60: Dominica | N60: Dominica | O60: Dominica | P60: =IFERROR(INDEX(UNcountrycodes[M49 Code],MATCH(CountryMapping[[#This Row],[UN country]],UNcountrycodes[Country or Area],0)),"") -> 212 | Q60: Dominica
B61: Georgia | C61: Europe & Central Asia | G61: Dominican Republic | H61: Dominican Republic | I61: DOM | J61: Latin America & Caribbean | K61: Upper middle income | L61: Dominican Republic | M61: Dominican Republic | N61: Dominican Republic | O61: Dominican Republic | P61: =IFERROR(INDEX(UNcountrycodes[M49 Code],MATCH(CountryMapping[[#This Row],[UN country]],UNcountrycodes[Country or Area],0)),"") -> 214 | Q61: Dominican Republic
B62: Ghana | C62: Sub-Saharan Africa | G62: Ecuador | H62: Ecuador | I62: ECU | J62: Latin America & Caribbean | K62: Upper middle income | L62: Ecuador | M62: Ecuador | N62: Ecuador | O62: Ecuador | P62: =IFERROR(INDEX(UNcountrycodes[M49 Code],MATCH(CountryMapping[[#This Row],[UN country]],UNcountrycodes[Country or Area],0)),"") -> 218 | Q62: Ecuador
B63: Greece | C63: Europe & Central Asia | G63: Egypt | H63: Egypt, Arab Rep. | I63: EGY | J63: Middle East & North Africa | K63: Lower middle income | L63: Egypt, Arab Rep. | M63: Egypt | N63: Egypt | O63: Egypt | P63: =IFERROR(INDEX(UNcountrycodes[M49 Code],MATCH(CountryMapping[[#This Row],[UN country]],UNcountrycodes[Country or Area],0)),"") -> 818 | Q63: Egypt
B64: Grenada | C64: Latin America & Caribbean | G64: El Salvador | H64: El Salvador | I64: SLV | J64: Latin America & Caribbean | K64: Upper middle income | L64: El Salvador | M64: El Salvador | N64: El Salvador | O64: El Salvador | P64: =IFERROR(INDEX(UNcountrycodes[M49 Code],MATCH(CountryMapping[[#This Row],[UN country]],UNcountrycodes[Country or Area],0)),"") -> 222 | Q64: El Salvador
B65: Guatemala | C65: Latin America & Caribbean | G65: Equatorial Guinea | H65: Equatorial Guinea | I65: GNQ | J65: Sub-Saharan Africa | K65: Upper middle income | L65: Equatorial Guinea | M65: Equatorial Guinea | N65: Equatorial Guinea | O65: Equatorial Guinea | P65: =IFERROR(INDEX(UNcountrycodes[M49 Code],MATCH(CountryMapping[[#This Row],[UN country]],UNcountrycodes[Country or Area],0)),"") -> 226 | Q65: Equatorial Guinea
B66: Guinea | C66: Sub-Saharan Africa | G66: Eritrea | H66: Eritrea | I66: ERI | J66: Sub-Saharan Africa | K66: Low income | L66: Eritrea | M66: Eritrea | N66: Eritrea | O66: Eritrea | P66: =IFERROR(INDEX(UNcountrycodes[M49 Code],MATCH(CountryMapping[[#This Row],[UN country]],UNcountrycodes[Country or Area],0)),"") -> 232 | Q66: Eritrea
B67: Guinea-Bissau | C67: Sub-Saharan Africa | G67: Estonia | H67: Estonia | I67: EST | J67: Europe & Central Asia | K67: High income | L67: Estonia | M67: Estonia | N67: Estonia | O67: Estonia | P67: =IFERROR(INDEX(UNcountrycodes[M49 Code],MATCH(CountryMapping[[#This Row],[UN country]],UNcountrycodes[Country or Area],0)),"") -> 233 | Q67: Estonia
B68: Guyana | C68: Latin America & Caribbean | G68: Eswatini | H68: Eswatini | I68: SWZ | J68: Sub-Saharan Africa | K68: Lower middle income | L68: Eswatini | M68: Swaziland | N68: Swaziland | O68: Eswatini | P68: =IFERROR(INDEX(UNcountrycodes[M49 Code],MATCH(CountryMapping[[#This Row],[UN country]],UNcountrycodes[Country or Area],0)),"") -> 748 | Q68: Eswatini
B69: Haiti | C69: Latin America & Caribbean | G69: Ethiopia | H69: Ethiopia | I69: ETH | J69: Sub-Saharan Africa | K69: Low income | L69: Ethiopia | M69: Ethiopia | N69: Ethiopia | O69: Ethiopia | P69: =IFERROR(INDEX(UNcountrycodes[M49 Code],MATCH(CountryMapping[[#This Row],[UN country]],UNcountrycodes[Country or Area],0)),"") -> 231 | Q69: Ethiopia
B70: Honduras | C70: Latin America & Caribbean | H70: Faroe Islands | I70: FRO | J70: Europe & Central Asia | K70: High income | L70: Faeroe Islands | O70: Faroe Islands | P70: =IFERROR(INDEX(UNcountrycodes[M49 Code],MATCH(CountryMapping[[#This Row],[UN country]],UNcountrycodes[Country or Area],0)),"") -> 234 | Q70: Faroe Islands
B71: Hungary | C71: Europe & Central Asia | G71: Fiji | H71: Fiji | I71: FJI | J71: East Asia & Pacific | K71: Upper middle income | L71: Fiji | M71: Fiji | N71: Fiji | O71: Fiji | P71: =IFERROR(INDEX(UNcountrycodes[M49 Code],MATCH(CountryMapping[[#This Row],[UN country]],UNcountrycodes[Country or Area],0)),"") -> 242 | Q71: Fiji
B72: Iceland | C72: Europe & Central Asia | G72: Finland | H72: Finland | I72: FIN | J72: Europe & Central Asia | K72: High income | L72: Finland | M72: Finland | N72: Finland | O72: Finland | P72: =IFERROR(INDEX(UNcountrycodes[M49 Code],MATCH(CountryMapping[[#This Row],[UN country]],UNcountrycodes[Country or Area],0)),"") -> 246 | Q72: Finland
B73: India | C73: South Asia | G73: France | H73: France | I73: FRA | J73: Europe & Central Asia | K73: High income | L73: France | M73: France | N73: France | O73: France | P73: =IFERROR(INDEX(UNcountrycodes[M49 Code],MATCH(CountryMapping[[#This Row],[UN country]],UNcountrycodes[Country or Area],0)),"") -> 250 | Q73: France
B74: Indonesia | C74: East Asia & Pacific | H74: French Polynesia | I74: PYF | J74: East Asia & Pacific | K74: High income | L74: French Polynesia | N74: French Polynesia | O74: French Polynesia | P74: =IFERROR(INDEX(UNcountrycodes[M49 Code],MATCH(CountryMapping[[#This Row],[UN country]],UNcountrycodes[Country or Area],0)),"") -> 258 | Q74: French Polynesia
B75: Ireland | C75: Europe & Central Asia | G75: Gabon | H75: Gabon | I75: GAB | J75: Sub-Saharan Africa | K75: Upper middle income | L75: Gabon | M75: Gabon | N75: Gabon | O75: Gabon | P75: =IFERROR(INDEX(UNcountrycodes[M49 Code],MATCH(CountryMapping[[#This Row],[UN country]],UNcountrycodes[Country or Area],0)),"") -> 266 | Q75: Gabon
B76: Italy | C76: Europe & Central Asia | G76: Gambia | H76: Gambia, The | I76: GMB | J76: Sub-Saharan Africa | K76: Low income | L76: Gambia, The | M76: Gambia | N76: Gambia, The | O76: Gambia | P76: =IFERROR(INDEX(UNcountrycodes[M49 Code],MATCH(CountryMapping[[#This Row],[UN country]],UNcountrycodes[Country or Area],0)),"") -> 270 | Q76: Gambia
B77: Jamaica | C77: Latin America & Caribbean | G77: Georgia | H77: Georgia | I77: GEO | J77: Europe & Central Asia | K77: Upper middle income | L77: Georgia | M77: Georgia | N77: Georgia | O77: Georgia | P77: =IFERROR(INDEX(UNcountrycodes[M49 Code],MATCH(CountryMapping[[#This Row],[UN country]],UNcountrycodes[Country or Area],0)),"") -> 268 | Q77: Georgia
B78: Japan | C78: East Asia & Pacific | G78: Germany | H78: Germany | I78: DEU | J78: Europe & Central Asia | K78: High income | L78: Germany | M78: Germany | N78: Germany | O78: Germany | P78: =IFERROR(INDEX(UNcountrycodes[M49 Code],MATCH(CountryMapping[[#This Row],[UN country]],UNcountrycodes[Country or Area],0)),"") -> 276 | Q78: Germany
B79: Kazakhstan | C79: Europe & Central Asia | G79: Ghana | H79: Ghana | I79: GHA | J79: Sub-Saharan Africa | K79: Lower middle income | L79: Ghana | M79: Ghana | N79: Ghana | O79: Ghana | P79: =IFERROR(INDEX(UNcountrycodes[M49 Code],MATCH(CountryMapping[[#This Row],[UN country]],UNcountrycodes[Country or Area],0)),"") -> 288 | Q79: Ghana
B80: Kenya | C80: Sub-Saharan Africa | H80: Gibraltar | I80: GIB | J80: Europe & Central Asia | K80: High income | L80: Gibraltar | O80: Gibraltar | P80: =IFERROR(INDEX(UNcountrycodes[M49 Code],MATCH(CountryMapping[[#This Row],[UN country]],UNcountrycodes[Country or Area],0)),"") -> 292 | Q80: Gibraltar
B81: Kiribati | C81: East Asia & Pacific | G81: Greece | H81: Greece | I81: GRC | J81: Europe & Central Asia | K81: High income | L81: Greece | M81: Greece | N81: Greece | O81: Greece | P81: =IFERROR(INDEX(UNcountrycodes[M49 Code],MATCH(CountryMapping[[#This Row],[UN country]],UNcountrycodes[Country or Area],0)),"") -> 300 | Q81: Greece
B82: Kyrgyzstan | C82: Europe & Central Asia | H82: Greenland | I82: GRL | J82: Europe & Central Asia | K82: High income | L82: Greenland | O82: Greenland | P82: =IFERROR(INDEX(UNcountrycodes[M49 Code],MATCH(CountryMapping[[#This Row],[UN country]],UNcountrycodes[Country or Area],0)),"") -> 304 | Q82: Greenland
B83: Lao People's Democratic Republic | C83: East Asia & Pacific | G83: Grenada | H83: Grenada | I83: GRD | J83: Latin America & Caribbean | K83: Upper middle income | L83: Grenada | M83: Grenada | N83: Grenada | O83: Grenada | P83: =IFERROR(INDEX(UNcountrycodes[M49 Code],MATCH(CountryMapping[[#This Row],[UN country]],UNcountrycodes[Country or Area],0)),"") -> 308 | Q83: Grenada
B84: Latvia | C84: Europe & Central Asia | H84: Guam | I84: GUM | J84: East Asia & Pacific | K84: High income | L84: Guam | N84: Guam | O84: Guam | P84: =IFERROR(INDEX(UNcountrycodes[M49 Code],MATCH(CountryMapping[[#This Row],[UN country]],UNcountrycodes[Country or Area],0)),"") -> 316 | Q84: Guam
B85: Lebanon | C85: Middle East & North Africa | G85: Guatemala | H85: Guatemala | I85: GTM | J85: Latin America & Caribbean | K85: Upper middle income | L85: Guatemala | M85: Guatemala | N85: Guatemala | O85: Guatemala | P85: =IFERROR(INDEX(UNcountrycodes[M49 Code],MATCH(CountryMapping[[#This Row],[UN country]],UNcountrycodes[Country or Area],0)),"") -> 320 | Q85: Guatemala
